{"text_format":"1","workbook":"xlsx","n_sheets":5,"sheets":["Historical","Analysis","Launch","Customer Data","Update"],"not_rendered":{"charts":1,"images":0,"macros":1,"external_links":0,"defined_names":4,"comments":0,"pivot_tables":1},"unopened":[],"bounds":{"document_bytes":16777216,"sheet_cells":100000,"rows_first":2000,"rows_last":500,"rows_between":2000,"halvings":0,"cell_chars":16384,"cell_head_chars":4096},"cells_cut":0,"cells_raw":0,"read":"whole","date_system":"1900"}

{"sheet":"Historical","index":0,"n_rows":9,"n_cols":4,"rows_kept":9,"cut":false,"hidden":true,"merged":[]}
["Count of ComplaintNo","Column Labels"]
["Row Labels","Nov","Dec","Grand Total"]
["Billing",5,6,11]
["Delivery",5,10,15]
["Health Concern",null,2,2]
["Labeling",4,3,7]
["Oozing Taffy",1,4,5]
["Wrong Product",1,5,6]
["Grand Total",16,30,46]

{"sheet":"Analysis","index":1,"n_rows":47,"n_cols":8,"rows_kept":47,"cut":false,"hidden":true,"merged":[]}
["ComplaintNo","CustomerNo","ComplaintDate","ItemNo","ComplaintCategory","QuantityAffected","LotNumber","Status"]
["C126","T16340","2014-12-06","00411","Billing",1,null,"Open"]
["C127","A16118","2014-12-06","00419","Oozing Taffy",2,null,"Open"]
["C127","A16118","2014-12-06","00431","Oozing Taffy",1,null,"Open"]
["C128","V11304","2014-12-06","00473","Health Concern",1,null,"Open"]
["C133","F16109","2014-12-06","416","Billing",2,null,"Open"]
["C135","D16309","2014-12-06","412","Billing",2,null,"Closed"]
["C135","D16309","2014-12-06","420","Delivery",5,null,"Closed"]
["C157","A16118","2014-12-08","411","Delivery",2,null,"Closed"]
["C157","A16118","2014-12-08","411","Wrong Product",2,null,"Closed"]
["C166","A16118","2014-12-08","411","Delivery",2,null,"Open"]
["C175","A16118","2014-12-09","411","Delivery",2,null,"Open"]
["C177","A16118","2014-12-09","411","Delivery",4,null,"Open"]
["C178","A16118","2014-12-09","411","Delivery",5,null,"Open"]
["C179","A16118","2014-12-09","424","Delivery",5,null,"Open"]
["C180","T16203","2014-12-09","435","Delivery",5,null,"Open"]
["C181","T16106","2014-12-09","431","Labeling",10,null,"Open"]
["C182","G17312","2014-12-09","435","Billing",10,null,"Open"]
["C183","G12206","2014-12-09","424","Delivery",6,null,"Open"]
["C184","T16226","2014-12-09","424","Labeling",8,null,"Closed"]
["C184","T16226","2014-12-09","477","Wrong Product",20,null,"Closed"]
["C187","A16118","2014-12-09","411","Billing",50,null,"Closed"]
["C187","A16118","2014-12-09","411","Delivery",20,null,"Closed"]
["C188","B16200","2014-12-10","419","Oozing Taffy",10,"14300","Open"]
["C190","S16133","2014-12-10","431","Wrong Product",4,"12335","Open"]
["C190","S16133","2014-12-10","436","Wrong Product",5,"14336","Open"]
["C192","G17312","2014-12-10","431","Health Concern",7,"14328","Open"]
["C198","A09210","2014-12-10","431","Wrong Product",10,"?","Closed"]
["C77","A16118","2014-11-29","00411","Delivery",2,null,"Closed"]
["C77","A16118","2014-11-29","00411","Labeling",2,null,"Closed"]
["C89","Y11310","2014-12-01","411","Oozing Taffy",40,null,"Closed"]
["TG65","A0701","2014-11-25","00434","Delivery",2,null,"Closed"]
["TG65","A0701","2014-11-25","00434","Labeling",2,null,"Closed"]
["TG65","A0701","2014-11-25","00434","Wrong Product",2,null,"Closed"]
["TG67","A07301","2014-11-25","00488","Billing",4,null,"Closed"]
["TG67","A07301","2014-11-25","00488","Delivery",4,null,"Closed"]
["TG74","E09302","2014-11-25","00411","Billing",5,null,"Open"]
["TG74","E09302","2014-11-25","00411","Delivery",5,null,"Open"]
["TG76","T16340","2014-11-25","00434","Billing",1,null,"Closed"]
["TG76","T16340","2014-11-25","00434","Labeling",1,null,"Closed"]
["TG76","T16340","2014-11-25","00465","Billing",2,null,"Closed"]
["TG76","T16340","2014-11-25","00465","Labeling",2,null,"Closed"]
["TG76","T16340","2014-11-25","00465","Oozing Taffy",2,null,"Closed"]
["TG86","A16118","2014-11-26","00412","Billing",10,null,"Open"]
["TG86","A16118","2014-11-26","00412","Delivery",10,null,"Open"]
["C216","T16203","2014-12-11","411","Labeling",1,"14300","Open"]
["C217","T16203","2014-12-11","411","Billing",1,"14300","Open"]

{"sheet":"Launch","index":2,"n_rows":0,"n_cols":0,"rows_kept":0,"cut":false,"hidden":false,"merged":[]}

{"sheet":"Customer Data","index":3,"n_rows":1788,"n_cols":8,"rows_kept":1788,"cut":false,"hidden":true,"merged":[]}
["CustomerNo","CustomerName","City","State","ZipCode","EmailAddress","SalespersonNo","Column1"]
["O16102","123 INCORPORATED","Woodbury","NJ","08096",null,"0016",{"$f":"LEN(Table_Query_from_SOTAMAS90[[#This Row],[CustomerName]])","v":16}]
["T09102","1948 TRADING CO.","BRANDON","SD","57005",null,"0009",{"$f":"LEN(Table_Query_from_SOTAMAS90[[#This Row],[CustomerName]])","v":16}]
["T16119","2BUY CANDY","OOSTERHOUT","CR","4906","YOURI.VAN.SLINGERLAND@JAMIN.NL","0016",{"$f":"LEN(Table_Query_from_SOTAMAS90[[#This Row],[CustomerName]])","v":10}]
["S16151","2ND CHANCE WOOD CO","Corunna","MI","48817","INFO@2NDCHANCEWOOD.COM","0016",{"$f":"LEN(Table_Query_from_SOTAMAS90[[#This Row],[CustomerName]])","v":18}]
["A07301","A & B CANDY DELIGHT INC.","ROCHESTER","PA","15074","candyman620@comcast.net","0007",{"$f":"LEN(Table_Query_from_SOTAMAS90[[#This Row],[CustomerName]])","v":24}]
["A09211","A & D MAURIES","PEKIN","IL","61554",null,"0009",{"$f":"LEN(Table_Query_from_SOTAMAS90[[#This Row],[CustomerName]])","v":13}]
["A16204","A & G'S CANDY PIT","OROVILLE","CA","95965",null,"0016",{"$f":"LEN(Table_Query_from_SOTAMAS90[[#This Row],[CustomerName]])","v":17}]
["A16111","A COUNTRY CUPBOARD","GRAND JUNCTION","CO","81504","Michele McCoy <mccoymetalworx@bresnan.net>","0016",{"$f":"LEN(Table_Query_from_SOTAMAS90[[#This Row],[CustomerName]])","v":18}]
["A16117","A RUSTY WAGON","Victoria","TX","77905",null,"0016",{"$f":"LEN(Table_Query_from_SOTAMAS90[[#This Row],[CustomerName]])","v":13}]
["S06215","A SWEET PARADISE","WEST JORDAN","UT","84088",null,"0006",{"$f":"LEN(Table_Query_from_SOTAMAS90[[#This Row],[CustomerName]])","v":16}]
["A13301","A SWEET SPOT","BORDENTOWN","NJ","08505",null,"0013",{"$f":"LEN(Table_Query_from_SOTAMAS90[[#This Row],[CustomerName]])","v":12}]
["A09202","A. L. SCHUTZMAN","MILWAUKEE","WI","53224",null,"0009",{"$f":"LEN(Table_Query_from_SOTAMAS90[[#This Row],[CustomerName]])","v":15}]
["P13219","A.J. PEACHEY & SONS","BELLEVILLE","PA","17004",null,"0013",{"$f":"LEN(Table_Query_from_SOTAMAS90[[#This Row],[CustomerName]])","v":19}]
["A16202","ABBY BROWN'S CHOCOLATES","FORT WAYNE","IN","46805",null,"0007",{"$f":"LEN(Table_Query_from_SOTAMAS90[[#This Row],[CustomerName]])","v":23}]
["A16209","ABBYLAND TRUCK STOP LLC","CURTISS","WI","54422-0027","GHANSON@ABBYLAND.COM","0009",{"$f":"LEN(Table_Query_from_SOTAMAS90[[#This Row],[CustomerName]])","v":23}]
["A13307","ABBY'S CANDIES","SCRANTON","PA","18503",null,"0013",{"$f":"LEN(Table_Query_from_SOTAMAS90[[#This Row],[CustomerName]])","v":14}]
["A09210","ABDALLAHS INC.","BURNSVILLE","MN","55306",null,"0009",{"$f":"LEN(Table_Query_from_SOTAMAS90[[#This Row],[CustomerName]])","v":14}]
["A16219","ABILENE ORAL &","ABILENE","TX","79601",null,"0016",{"$f":"LEN(Table_Query_from_SOTAMAS90[[#This Row],[CustomerName]])","v":14}]
["A13209","ABMA FARM MARKET","WYCKOFF","NJ","07481",null,"0013",{"$f":"LEN(Table_Query_from_SOTAMAS90[[#This Row],[CustomerName]])","v":16}]
["A18301","ADA CANDY COMPANY","ADA","OK","74820",null,"0012",{"$f":"LEN(Table_Query_from_SOTAMAS90[[#This Row],[CustomerName]])","v":17}]
["A16375","ADVENTURE LANDS OF AMERICA","DES MOINES","IA","50316-0355","MICHAEL@ADVENTURELANDPARK.COM","0016",{"$f":"LEN(Table_Query_from_SOTAMAS90[[#This Row],[CustomerName]])","v":26}]
["A12305","AFFILIATED FOODS","AMARILLO","TX","79120",null,"0012",{"$f":"LEN(Table_Query_from_SOTAMAS90[[#This Row],[CustomerName]])","v":16}]
["A20304","AFFILIATED FOODS","NORFOLK","NE","68702-1067",null,"0020",{"$f":"LEN(Table_Query_from_SOTAMAS90[[#This Row],[CustomerName]])","v":16}]
["A07201","AGLAMESIS BROTHERS","CINCINNATI","OH","45209",null,"0007",{"$f":"LEN(Table_Query_from_SOTAMAS90[[#This Row],[CustomerName]])","v":18}]
["A16115","AGROPUR INC.","APPLETON","WI","54913",null,"0016",{"$f":"LEN(Table_Query_from_SOTAMAS90[[#This Row],[CustomerName]])","v":12}]
["A16206","AIRCELL","LOUISVILLE","CO","80027",null,"0016",{"$f":"LEN(Table_Query_from_SOTAMAS90[[#This Row],[CustomerName]])","v":7}]
["A09102","AJ VELVET","PETOSKEY","MI","49770",null,"0009",{"$f":"LEN(Table_Query_from_SOTAMAS90[[#This Row],[CustomerName]])","v":9}]
["A16118","ALASKAN FUDGE COMPANY","Juneau","AK","99801",null,"0016",{"$f":"LEN(Table_Query_from_SOTAMAS90[[#This Row],[CustomerName]])","v":21}]
["A16301","ALBANESE CONFECTIONERY GROUP","MERRILLVILLE","IN","46410",null,"0007",{"$f":"LEN(Table_Query_from_SOTAMAS90[[#This Row],[CustomerName]])","v":28}]
["A11307","ALBERTSON DISTRIBUTION CENTER","NORTH SALT LAKE","UT","84054",null,"0008",{"$f":"LEN(Table_Query_from_SOTAMAS90[[#This Row],[CustomerName]])","v":29}]
["A16229","ALDER LAKE CRANBERRY","MANITOWISH WATERS","WI","54545",null,"0009",{"$f":"LEN(Table_Query_from_SOTAMAS90[[#This Row],[CustomerName]])","v":20}]
["A13210","ALEXIS DINER","NEWBURGH","NY","12550",null,"0013",{"$f":"LEN(Table_Query_from_SOTAMAS90[[#This Row],[CustomerName]])","v":12}]
["S13101","ALEXIS DINER","BELLEVILLE","PA","17004",null,"0013",{"$f":"LEN(Table_Query_from_SOTAMAS90[[#This Row],[CustomerName]])","v":12}]
["A16316","ALICE'S KANDY & KORN","MACKINAW CITY","MI","49701",null,"0009",{"$f":"LEN(Table_Query_from_SOTAMAS90[[#This Row],[CustomerName]])","v":20}]
["A16101","ALISON'S PANTRY","Pleasant Grove","UT","84062",null,"0006",{"$f":"LEN(Table_Query_from_SOTAMAS90[[#This Row],[CustomerName]])","v":15}]
["A10200","ALL I SAW COOKWARE","WASILLA","AK","99654",null,"0010",{"$f":"LEN(Table_Query_from_SOTAMAS90[[#This Row],[CustomerName]])","v":18}]
["A16119","ALL STAR CATERING","Salt Lake City","UT","84101",null,"0016",{"$f":"LEN(Table_Query_from_SOTAMAS90[[#This Row],[CustomerName]])","v":17}]
["A16116","ALL STAR FIREWORKS","Mitchell","SD","57301",null,"0016",{"$f":"LEN(Table_Query_from_SOTAMAS90[[#This Row],[CustomerName]])","v":18}]
["A16108","ALL THINGS HERBAL LIMITED, CO.","PEQUOT LAKES","MN","56472","DAVID@ALLTHINGSHERBAL.COM","0016",{"$f":"LEN(Table_Query_from_SOTAMAS90[[#This Row],[CustomerName]])","v":30}]
["A11306","ALLEN'S","SPRINGVILLE","UT","84663",null,"0008",{"$f":"LEN(Table_Query_from_SOTAMAS90[[#This Row],[CustomerName]])","v":7}]
["A16310","ALOHA GOURMET PRODUCTS, INC.","HONOLULU","HI","96827",null,"0016",{"$f":"LEN(Table_Query_from_SOTAMAS90[[#This Row],[CustomerName]])","v":28}]
["A16112","ALPINE CHOCOLATE HAUS, LLC","GAYLORD","MI","49735",null,"0016",{"$f":"LEN(Table_Query_from_SOTAMAS90[[#This Row],[CustomerName]])","v":26}]
["A16208","ALPINE ICE CREAM & DELI","WEST POINT","IA","52656",null,"0016",{"$f":"LEN(Table_Query_from_SOTAMAS90[[#This Row],[CustomerName]])","v":23}]
["A09101","ALTRU AUX. GIFT SHOP","GRAND FORKS","ND","58206",null,"0009",{"$f":"LEN(Table_Query_from_SOTAMAS90[[#This Row],[CustomerName]])","v":20}]
["A16106","AMANA COLONIES POPCORN &","AMANA","IA","52203",null,"0016",{"$f":"LEN(Table_Query_from_SOTAMAS90[[#This Row],[CustomerName]])","v":24}]
["A16104","AMANA GENERAL STORE","AMANA","IA","52203","LMCCARTY@AMANAS.NET","0016",{"$f":"LEN(Table_Query_from_SOTAMAS90[[#This Row],[CustomerName]])","v":19}]
["A16203","AMAZE'N YELLOWSTONE","REXBURG","ID","83440",null,"0016",{"$f":"LEN(Table_Query_from_SOTAMAS90[[#This Row],[CustomerName]])","v":19}]
["A16220","AMERICAN HEALTHCARE LENDING","SANDY","UT","84070",null,"0016",{"$f":"LEN(Table_Query_from_SOTAMAS90[[#This Row],[CustomerName]])","v":27}]
["A16109","AMERICAN SCENTS","DUNCAN","OK","73533",null,"0016",{"$f":"LEN(Table_Query_from_SOTAMAS90[[#This Row],[CustomerName]])","v":15}]
["A09302","AMERICAN SPECIALTY CONFECTIONS","EAGAN","MN","55121",null,"0009",{"$f":"LEN(Table_Query_from_SOTAMAS90[[#This Row],[CustomerName]])","v":30}]
["A16300","AMERICAN SPECIALTY GLASS, INC","NORTH SALT LAKE","UT","84054","JIM@ASGGLASS.COM","0016",{"$f":"LEN(Table_Query_from_SOTAMAS90[[#This Row],[CustomerName]])","v":29}]
["A16107","AMISH DOOR MARKET","WILMOT","OH","44689","MARYILY@AMISHDOOR.COM","0007",{"$f":"LEN(Table_Query_from_SOTAMAS90[[#This Row],[CustomerName]])","v":17}]
["A09203","AMY LYN'S FINE CANDIES","WAUKESHA","WI","53186",null,"0009",{"$f":"LEN(Table_Query_from_SOTAMAS90[[#This Row],[CustomerName]])","v":22}]
["A09205","AMY'S CLASSIC CONFECTIONS","MINNEAPOLIS","MN","55402",null,"0009",{"$f":"LEN(Table_Query_from_SOTAMAS90[[#This Row],[CustomerName]])","v":25}]
["A16377","ANDEA INC.","ANCASTER","ON","L9G 4V5",null,"0016",{"$f":"LEN(Table_Query_from_SOTAMAS90[[#This Row],[CustomerName]])","v":10}]
["A16212","ANGELS ON THE ROUTE","Baxter Springs","KS","66713","SBLGAST@PACBELL.NET","0016",{"$f":"LEN(Table_Query_from_SOTAMAS90[[#This Row],[CustomerName]])","v":19}]
["A13305","ANNIE'S HALLMARK SHOP","SALEM","NH","03079",null,"0013",{"$f":"LEN(Table_Query_from_SOTAMAS90[[#This Row],[CustomerName]])","v":21}]
["A09104","ANNIE'S TRADING POST","ROSEAU","MN","56751","ANNIESTRADINGPOST@WIKTEL.COM","0009",{"$f":"LEN(Table_Query_from_SOTAMAS90[[#This Row],[CustomerName]])","v":20}]
["A16213","ANOTHER TIME, INC.","CHICAGO","IL","60614",null,"0016",{"$f":"LEN(Table_Query_from_SOTAMAS90[[#This Row],[CustomerName]])","v":18}]
["A16110","ANTELOPE ISLAND STATE PARK","SYRACUSE","UT","84075-6861",null,"0016",{"$f":"LEN(Table_Query_from_SOTAMAS90[[#This Row],[CustomerName]])","v":26}]
["A16302","ANTHONY-THOMAS CANDY COMPANY","Columbus","OH","43228",null,"0007",{"$f":"LEN(Table_Query_from_SOTAMAS90[[#This Row],[CustomerName]])","v":28}]
["A16311","ANTIQUE MARKET PLACE","HEBER SPRINGS","AR","72543",null,"0016",{"$f":"LEN(Table_Query_from_SOTAMAS90[[#This Row],[CustomerName]])","v":20}]
["A10210","APPLE TO ZINNIAS","SEATTLE","WA","98104",null,"0010",{"$f":"LEN(Table_Query_from_SOTAMAS90[[#This Row],[CustomerName]])","v":16}]
["A16102","APPLE TREE MALL","Woodward","IA","50276",null,"0016",{"$f":"LEN(Table_Query_from_SOTAMAS90[[#This Row],[CustomerName]])","v":15}]
["A16200","APPLE WAGON","Williamsburg","MO","63388",null,"0016",{"$f":"LEN(Table_Query_from_SOTAMAS90[[#This Row],[CustomerName]])","v":11}]
["A09103","APPLES OF EDEN","GREENDALE","WI","53129",null,"0009",{"$f":"LEN(Table_Query_from_SOTAMAS90[[#This Row],[CustomerName]])","v":14}]
["A09301","ARCHIBALD CANDY CORPORATION","CHICAGO","IL","60673-0339",null,"0009",{"$f":"LEN(Table_Query_from_SOTAMAS90[[#This Row],[CustomerName]])","v":27}]
["A17323","AREA DISTRIBUTING","SAN JOSE","CA","95155",null,"0017",{"$f":"LEN(Table_Query_from_SOTAMAS90[[#This Row],[CustomerName]])","v":17}]
["A16113","ARIZONA NATIVE GIFTS, LLC","BLACK CANYON CITY","AZ","85324",null,"0016",{"$f":"LEN(Table_Query_from_SOTAMAS90[[#This Row],[CustomerName]])","v":25}]
["A09204","ARNOLD BORCHER CO","WISCONSIN DELLS","WI","53965","BEN@ALPHABETAKAMA.COM","0009",{"$f":"LEN(Table_Query_from_SOTAMAS90[[#This Row],[CustomerName]])","v":17}]
["A08101","ARROYO SECO MERCANTILE","Arroyo Seco","NM","87514",null,"0008",{"$f":"LEN(Table_Query_from_SOTAMAS90[[#This Row],[CustomerName]])","v":22}]
["A16214","ARTICHOKE & COMPANY",null,null,null,null,"0016",{"$f":"LEN(Table_Query_from_SOTAMAS90[[#This Row],[CustomerName]])","v":19}]
["A16211","ARTISTIC EXPRESSIONS","Roseville","CA","95678",null,"0016",{"$f":"LEN(Table_Query_from_SOTAMAS90[[#This Row],[CustomerName]])","v":20}]
["A16230","ASEPTOPLAST INC.","CAP ROUGE","QB","G1Y1X5",null,"0016",{"$f":"LEN(Table_Query_from_SOTAMAS90[[#This Row],[CustomerName]])","v":16}]
["A16207","ASHLAND CANDY CELLAR","ASHLAND","OR","97520","HANDSOMECAM@HOTMAIL.COM","0010",{"$f":"LEN(Table_Query_from_SOTAMAS90[[#This Row],[CustomerName]])","v":20}]
["A09315","ASKWITH GIFTS","SAULT SAINTE MARIE","MI","49783","DECLINED@DIDNTWANTTO.COM","0009",{"$f":"LEN(Table_Query_from_SOTAMAS90[[#This Row],[CustomerName]])","v":13}]
["A11301","ASSOCIATED FOOD STORES","SALT LAKE CITY","UT","84130",null,"0004",{"$f":"LEN(Table_Query_from_SOTAMAS90[[#This Row],[CustomerName]])","v":22}]
["A10345","ASSOCIATED GROCERS INC.","SEATTLE","WA","98124",null,"0010",{"$f":"LEN(Table_Query_from_SOTAMAS90[[#This Row],[CustomerName]])","v":23}]
["A16103","ASSOCIATED REGIONAL AND","SALT LAKE CITY","UT","84108",null,"0016",{"$f":"LEN(Table_Query_from_SOTAMAS90[[#This Row],[CustomerName]])","v":23}]
["A09105","AT YOUR CONVENIENCE","SAINT PAUL","MN","55123",null,"0009",{"$f":"LEN(Table_Query_from_SOTAMAS90[[#This Row],[CustomerName]])","v":19}]
["A13208","ATKINS FARM","AMHERST","MA","01002",null,"0013",{"$f":"LEN(Table_Query_from_SOTAMAS90[[#This Row],[CustomerName]])","v":11}]
["A16205","ATKINSON'S MARKET","KETCHUM","ID","83340","SHARON@ATKINSONS.COM","0016",{"$f":"LEN(Table_Query_from_SOTAMAS90[[#This Row],[CustomerName]])","v":17}]
["A16216","ATOMIC CANDY","DENTON","TX","76201","info@atomic-candy.com","0016",{"$f":"LEN(Table_Query_from_SOTAMAS90[[#This Row],[CustomerName]])","v":12}]
["A16114","AUNT ANNIE'S KITCHEN LLC","AMMON","ID","83406","auntannie@auntannieskitchen.com","0006",{"$f":"LEN(Table_Query_from_SOTAMAS90[[#This Row],[CustomerName]])","v":24}]
["A09306","AUNT BELLE'S CONFECTIONERY","PARK RAPIDS","MN","56470","auntbelles@arvig.net","0009",{"$f":"LEN(Table_Query_from_SOTAMAS90[[#This Row],[CustomerName]])","v":26}]
["A07302","AUNT MILLIE'S","MIDDLEBURY","IN","46540","AUNTMILLIES@GMAIL.COM","0007",{"$f":"LEN(Table_Query_from_SOTAMAS90[[#This Row],[CustomerName]])","v":13}]
["A16305","AUNT NINA'S SWEETS N TREATS","CREST HILL","IL","60403","candycorn@yahoo.com","0016",{"$f":"LEN(Table_Query_from_SOTAMAS90[[#This Row],[CustomerName]])","v":27}]
["A16501","AUNT V'S CANDIES","Waveland","MS","39576","AUNTVSCANDIES@MCHSI.COM","0016",{"$f":"LEN(Table_Query_from_SOTAMAS90[[#This Row],[CustomerName]])","v":16}]
["A16210","AURUM TECHNOLOGY INC.","SALT LAKE CITY","UT","84111",null,"0016",{"$f":"LEN(Table_Query_from_SOTAMAS90[[#This Row],[CustomerName]])","v":21}]
["S16116","AVENTURA CLOTHING","SPARKS","NV","89431","tom@sportif.com","0016",{"$f":"LEN(Table_Query_from_SOTAMAS90[[#This Row],[CustomerName]])","v":17}]
["B16200","B & D INTERNET MERCHANDISING","SANDY","UT","84070",null,"0016",{"$f":"LEN(Table_Query_from_SOTAMAS90[[#This Row],[CustomerName]])","v":28}]
["B09207","B SWEET","EDMONTON","AB","T5P4Y3",null,"0009",{"$f":"LEN(Table_Query_from_SOTAMAS90[[#This Row],[CustomerName]])","v":7}]
["S16262","B.A.M. CANDY INC.","OCEANSIDE","NY","11572",null,"0016",{"$f":"LEN(Table_Query_from_SOTAMAS90[[#This Row],[CustomerName]])","v":17}]
["S07213","B.A.SWEETIE CANDY COMPANY","CLEVELAND","OH","44129-1104","SALES@SWEETIESCANDY.COM","0007",{"$f":"LEN(Table_Query_from_SOTAMAS90[[#This Row],[CustomerName]])","v":25}]
["B16272","BACK DOOR CANDY STORE","SAINT PAUL","MN","55110",null,"0016",{"$f":"LEN(Table_Query_from_SOTAMAS90[[#This Row],[CustomerName]])","v":21}]
["B16212","BACKDOOR GENERAL STORE","WHITEFISH","MT","59937",null,"0016",{"$f":"LEN(Table_Query_from_SOTAMAS90[[#This Row],[CustomerName]])","v":22}]
["B16301","BALBOA CANDY","Newport Beach","CA","92661","INFO@BALBOACANDY.COM","0016",{"$f":"LEN(Table_Query_from_SOTAMAS90[[#This Row],[CustomerName]])","v":12}]
["B10200","BALLARD MARKET","SEATTLE","WA","98107",null,"0010",{"$f":"LEN(Table_Query_from_SOTAMAS90[[#This Row],[CustomerName]])","v":14}]
["B09203","BANK OF SUN PRAIRIE","SUN PRAIRIE","WI","53590",null,"0009",{"$f":"LEN(Table_Query_from_SOTAMAS90[[#This Row],[CustomerName]])","v":19}]
["B09306","BARABOO CANDY CO., LLC","BARABOO","WI","53913",null,"0009",{"$f":"LEN(Table_Query_from_SOTAMAS90[[#This Row],[CustomerName]])","v":22}]
["B16307","BARBARA INC. DBA BRADLEY DIST.","NEWPORT","MN","55055",null,"0016",{"$f":"LEN(Table_Query_from_SOTAMAS90[[#This Row],[CustomerName]])","v":30}]
["B05101","BARBARA MCGREGOR","Venice","FL","34285",null,"0016",{"$f":"LEN(Table_Query_from_SOTAMAS90[[#This Row],[CustomerName]])","v":16}]
["B16118","BARB'S GENERAL STORE","STEELVILLE","MO","65565",null,"0016",{"$f":"LEN(Table_Query_from_SOTAMAS90[[#This Row],[CustomerName]])","v":20}]
["C17328","BARRELS-O-CANDY","Virginia City","NV","89440",null,"0017",{"$f":"LEN(Table_Query_from_SOTAMAS90[[#This Row],[CustomerName]])","v":15}]
["B16214","BASKETS BY DESIGN INC.","MAPLEWOOD","MN","55109","SALES@BBDUSA.COM","0016",{"$f":"LEN(Table_Query_from_SOTAMAS90[[#This Row],[CustomerName]])","v":22}]
["B16122","BATES NUT FARM","Valley Center","CA","92082",null,"0016",{"$f":"LEN(Table_Query_from_SOTAMAS90[[#This Row],[CustomerName]])","v":14}]
["B16202","BAY 1 ICE CREAM PARLOR","INDIAN SHORES","FL","33785",null,"0016",{"$f":"LEN(Table_Query_from_SOTAMAS90[[#This Row],[CustomerName]])","v":22}]
["B09301","BAY ISLAND, INC.","PLYMOUTH","MN","55441",null,"0009",{"$f":"LEN(Table_Query_from_SOTAMAS90[[#This Row],[CustomerName]])","v":16}]
["B16204","BAYFIELD INN, LLC","BAYFIELD","WI","54814",null,"0009",{"$f":"LEN(Table_Query_from_SOTAMAS90[[#This Row],[CustomerName]])","v":17}]
["B10201","BB SALES","SEATTLE","WA","98134",null,"0010",{"$f":"LEN(Table_Query_from_SOTAMAS90[[#This Row],[CustomerName]])","v":8}]
["W16302","BEACH BUCKET TAFFY","MORRO BAY","CA","93442",null,"0016",{"$f":"LEN(Table_Query_from_SOTAMAS90[[#This Row],[CustomerName]])","v":18}]
["B16116","BEACH BUNGALOW","LAS VEGAS","NV","89151",null,"0016",{"$f":"LEN(Table_Query_from_SOTAMAS90[[#This Row],[CustomerName]])","v":14}]
["B16305","BEAR CREEK OPERATIONS","MEDFORD","OR","97501",null,"0010",{"$f":"LEN(Table_Query_from_SOTAMAS90[[#This Row],[CustomerName]])","v":21}]
["B16209","BEAR TRACKS TOBACCO SHOP","BIGFORK","MT","59911",null,"0016",{"$f":"LEN(Table_Query_from_SOTAMAS90[[#This Row],[CustomerName]])","v":24}]
["B16302","BECKER PET & GARDEN","DETROIT LAKES","MN","56501","BECKERPET@ARVIG.NET","0016",{"$f":"LEN(Table_Query_from_SOTAMAS90[[#This Row],[CustomerName]])","v":19}]
["B16300","BECKY MARINES","HELPER","UT","84526",null,"0016",{"$f":"LEN(Table_Query_from_SOTAMAS90[[#This Row],[CustomerName]])","v":13}]
["B13208","BEDFORD BASKETS","WYCKOFF","NJ","07481",null,"0013",{"$f":"LEN(Table_Query_from_SOTAMAS90[[#This Row],[CustomerName]])","v":15}]
["B09205","BEERNTSEN'S CANDIES INC.","GREEN BAY","WI","54303",null,"0009",{"$f":"LEN(Table_Query_from_SOTAMAS90[[#This Row],[CustomerName]])","v":24}]
["B09303","BEERNTSEN'S CONFECTIONERY","MANITOWOC","WI","54220","DSCHADRIE@BEERNSTENS.COM","0009",{"$f":"LEN(Table_Query_from_SOTAMAS90[[#This Row],[CustomerName]])","v":25}]
["B16211","BELLA SEA","San Clemente","CA","92673",null,"0016",{"$f":"LEN(Table_Query_from_SOTAMAS90[[#This Row],[CustomerName]])","v":9}]
["B07101","BELLA'S CHOCOLATES","MIDDLEBURG HEIGHTS","OH","44130",null,"0007",{"$f":"LEN(Table_Query_from_SOTAMAS90[[#This Row],[CustomerName]])","v":18}]
["F13101","BELLEVILLE FIRE CO.","BELLEVILLE","PA","17004",null,"0013",{"$f":"LEN(Table_Query_from_SOTAMAS90[[#This Row],[CustomerName]])","v":19}]
["B16114","BEN & BILLS CHOCOLATE EMPORIUM","BAR HARBOR","ME","04609","BAR.HARBOR@BENANDBILLS.COM","0016",{"$f":"LEN(Table_Query_from_SOTAMAS90[[#This Row],[CustomerName]])","v":30}]
["B12301","BEN E. KEITH COMPANY","AMARILLO","TX","79105-1588",null,"0012",{"$f":"LEN(Table_Query_from_SOTAMAS90[[#This Row],[CustomerName]])","v":20}]
["B11323","BEN FRANKLIN STORES","LIBBY","MT","59923",null,"0004",{"$f":"LEN(Table_Query_from_SOTAMAS90[[#This Row],[CustomerName]])","v":19}]
["B16113","BEST WESTERN HUMBOLT BAY INN","EUREKA","CA","95501","STACYBWHBI@GMAIL.COM","0016",{"$f":"LEN(Table_Query_from_SOTAMAS90[[#This Row],[CustomerName]])","v":28}]
["B09101","BETH'S FUDGE AND GIFTS","GRAND MARAIS","MN","55604",null,"0009",{"$f":"LEN(Table_Query_from_SOTAMAS90[[#This Row],[CustomerName]])","v":22}]
["B16107","BETSY SEARS ENTERPRISES","HEMET","CA","92544",null,"0016",{"$f":"LEN(Table_Query_from_SOTAMAS90[[#This Row],[CustomerName]])","v":23}]
["B16266","BETTY'S CRAFTS","LAYTON","UT","84041",null,"0016",{"$f":"LEN(Table_Query_from_SOTAMAS90[[#This Row],[CustomerName]])","v":14}]
["B16325","BICAST INC.","WILLIAMSBURG","VA","23187",null,"0016",{"$f":"LEN(Table_Query_from_SOTAMAS90[[#This Row],[CustomerName]])","v":11}]
["B16308","BIG BEAR CANDY COMPANY","BIG BEAR LAKE","CA","92315",null,"0016",{"$f":"LEN(Table_Query_from_SOTAMAS90[[#This Row],[CustomerName]])","v":22}]
["B16213","BIG BUNNY'S FUDGE","LANCASTER","PA","17602",null,"0016",{"$f":"LEN(Table_Query_from_SOTAMAS90[[#This Row],[CustomerName]])","v":17}]
["B13209","BIG FLY SPORTS","Secaucus","NJ","07094","bigflypurchasing@gmail.com","0016",{"$f":"LEN(Table_Query_from_SOTAMAS90[[#This Row],[CustomerName]])","v":14}]
["R06102","BIG MOUNTAIN CANDY CO.","Kalispell","MT","59901",null,"0006",{"$f":"LEN(Table_Query_from_SOTAMAS90[[#This Row],[CustomerName]])","v":22}]
["B11217","BIG SKY CANDY","HAMILTON","MT","59840",null,"0006",{"$f":"LEN(Table_Query_from_SOTAMAS90[[#This Row],[CustomerName]])","v":13}]
["B16222","BIG TOP CANDY SHOP","Austin","TX","78704","PEGLEG@PRODIGY.NET","0016",{"$f":"LEN(Table_Query_from_SOTAMAS90[[#This Row],[CustomerName]])","v":18}]
["B16121","BIG WAVE TAFFY","Lahaina","HI","96761","BIGWAVETAFFY@GMAIL.COM","0016",{"$f":"LEN(Table_Query_from_SOTAMAS90[[#This Row],[CustomerName]])","v":14}]
["B13207","BIG Y","SPRINGFIELD","MA","01129",null,"0013",{"$f":"LEN(Table_Query_from_SOTAMAS90[[#This Row],[CustomerName]])","v":5}]
["B16227","BINGHAM LIONS DEN","BINGHAM CANYON","UT","84006",null,"0016",{"$f":"LEN(Table_Query_from_SOTAMAS90[[#This Row],[CustomerName]])","v":17}]
["B16110","BISHOP'S CANDY STORE","ROGERS","AR","72756",null,"0016",{"$f":"LEN(Table_Query_from_SOTAMAS90[[#This Row],[CustomerName]])","v":20}]
["B16206","BITTERMAN'S CANDY","KANSAS CITY","MO","64141-0227",null,"0016",{"$f":"LEN(Table_Query_from_SOTAMAS90[[#This Row],[CustomerName]])","v":17}]
["B16119","BLACK BUTTE GIFT SHOP","RED BLUFF","CA","96080",null,"0016",{"$f":"LEN(Table_Query_from_SOTAMAS90[[#This Row],[CustomerName]])","v":21}]
["B16124","BLACK CANYON JERKY","Cottonwood","AZ","86326",null,"0016",{"$f":"LEN(Table_Query_from_SOTAMAS90[[#This Row],[CustomerName]])","v":18}]
["B16101","BLACK RIVER CANDY SHOPPE","CHESTER","NJ","07930","INFO@BLACKRIVERCANDYSHOPPE.COM","0013",{"$f":"LEN(Table_Query_from_SOTAMAS90[[#This Row],[CustomerName]])","v":24}]
["C16321","BLACK TIE INTERNATIONAL","ENCINO","CA","91316","HOWARD'S CELL (818)383-2859","0016",{"$f":"LEN(Table_Query_from_SOTAMAS90[[#This Row],[CustomerName]])","v":23}]
["B16217","BLACK WALNUT CANDY SHOP","Spirit Lake","IA","51360",null,"0016",{"$f":"LEN(Table_Query_from_SOTAMAS90[[#This Row],[CustomerName]])","v":23}]
["B16104","BLACKNER CARD & SOUVENIR","Layton","UT","84041",null,"0016",{"$f":"LEN(Table_Query_from_SOTAMAS90[[#This Row],[CustomerName]])","v":24}]
["B16223","BLAKELEE'S CHOCOLATES","Eau Claire","WI","54703",null,"0009",{"$f":"LEN(Table_Query_from_SOTAMAS90[[#This Row],[CustomerName]])","v":21}]
["B16111","BLANK PARK ZOO","DES MOINES","IA","50315","PSMADSEN@BLANKPARKZOO.ORG","0016",{"$f":"LEN(Table_Query_from_SOTAMAS90[[#This Row],[CustomerName]])","v":14}]
["B16216","BLOND GIRAFFE INC.","PIGEON FORGE","TN","37868",null,"0016",{"$f":"LEN(Table_Query_from_SOTAMAS90[[#This Row],[CustomerName]])","v":18}]
["B09100","BLUE EGG SWEETS","MONTICELLO","MN","55362","ROBIN@BLUEEGGMARKET.COM","0009",{"$f":"LEN(Table_Query_from_SOTAMAS90[[#This Row],[CustomerName]])","v":15}]
["B11211","BLUE SKY CANDY","CODY","WY","82414",null,"0006",{"$f":"LEN(Table_Query_from_SOTAMAS90[[#This Row],[CustomerName]])","v":14}]
["B16224","BLUE WATER TAFFY","PORT HURON","MI","48060",null,"0016",{"$f":"LEN(Table_Query_from_SOTAMAS90[[#This Row],[CustomerName]])","v":16}]
["B11212","BLUEBIRD CANDY","LOGAN","UT","84321",null,"0006",{"$f":"LEN(Table_Query_from_SOTAMAS90[[#This Row],[CustomerName]])","v":14}]
["B06203","BMK ENTERPRISES, INC.","LIVINGSTON","MT","59047",null,"0006",{"$f":"LEN(Table_Query_from_SOTAMAS90[[#This Row],[CustomerName]])","v":21}]
["B16215","BMW MANAGEMENT, INC","Temecula","CA","92590","ANGEL.TOVES@BMWMANAGEMENT.COM","0016",{"$f":"LEN(Table_Query_from_SOTAMAS90[[#This Row],[CustomerName]])","v":19}]
["B16112","BOARDWALK BILLIES","CHARLOTTE","NC","28203",null,"0016",{"$f":"LEN(Table_Query_from_SOTAMAS90[[#This Row],[CustomerName]])","v":17}]
["B16207","BOARDWALK SCOOPS","LAKESHORE","MN","56468","(763)226-4321 phone number","0009",{"$f":"LEN(Table_Query_from_SOTAMAS90[[#This Row],[CustomerName]])","v":16}]
["B09304","BODIN'S","BAYFIELD","WI","54814",null,"0009",{"$f":"LEN(Table_Query_from_SOTAMAS90[[#This Row],[CustomerName]])","v":7}]
["B16106","BOEHMS CANDY","YAKIMA","WA","98908","SHARONLVANCE@GMAIL.COM","0010",{"$f":"LEN(Table_Query_from_SOTAMAS90[[#This Row],[CustomerName]])","v":12}]
["B06205","BOISE AT ITS BEST FLOWERS","BOISE","ID","83705",null,"0006",{"$f":"LEN(Table_Query_from_SOTAMAS90[[#This Row],[CustomerName]])","v":25}]
["B16120","BOJI SWEET TOOTH","Dyersville","IA","52040",null,"0016",{"$f":"LEN(Table_Query_from_SOTAMAS90[[#This Row],[CustomerName]])","v":16}]
["B13201","BOLTON ORCHARDS","Bolton","MA","01740",null,"0013",{"$f":"LEN(Table_Query_from_SOTAMAS90[[#This Row],[CustomerName]])","v":15}]
["B16221","BOMGAARS","Sioux City","IA","51103",null,"0016",{"$f":"LEN(Table_Query_from_SOTAMAS90[[#This Row],[CustomerName]])","v":8}]
["B16273","BON BON ENTERPRISES","BAINBRIDGE ISLAND","WA","98110","LISA@BONBONCANDIES.COM","0010",{"$f":"LEN(Table_Query_from_SOTAMAS90[[#This Row],[CustomerName]])","v":19}]
["B13202","BONARD'S VILLAGE GOURMET","Buffalo","NY","14206",null,"0013",{"$f":"LEN(Table_Query_from_SOTAMAS90[[#This Row],[CustomerName]])","v":24}]
["B07102","BOND'S DRUGSTORE","WASHINGTON","WV","26181",null,"0007",{"$f":"LEN(Table_Query_from_SOTAMAS90[[#This Row],[CustomerName]])","v":16}]
["B08200","BOOK TRAIN","Glenwood Springs","CO","81601",null,"0008",{"$f":"LEN(Table_Query_from_SOTAMAS90[[#This Row],[CustomerName]])","v":10}]
["B16203","BOOMERANG CANDY","Provo","UT","84604","SCOTTW@NETBROOK.COM","0016",{"$f":"LEN(Table_Query_from_SOTAMAS90[[#This Row],[CustomerName]])","v":15}]
["B16117","BOONDOCKS/HAPPY DAYS","DEADWOOD","SD","57732","JORGIES@RUSHMORE.COM","0016",{"$f":"LEN(Table_Query_from_SOTAMAS90[[#This Row],[CustomerName]])","v":20}]
["B13205","BOSTON CONE & CANDY","MANCHESTER","NH","03103",null,"0013",{"$f":"LEN(Table_Query_from_SOTAMAS90[[#This Row],[CustomerName]])","v":19}]
["B17333","BOSWELL ENTERPRISES, INC.","DANVILLE","CA","94526",null,"0017",{"$f":"LEN(Table_Query_from_SOTAMAS90[[#This Row],[CustomerName]])","v":25}]
["B09305","BOWLBY CANDY CO. INC.","WAUPACA","WI","54981",null,"0009",{"$f":"LEN(Table_Query_from_SOTAMAS90[[#This Row],[CustomerName]])","v":21}]
["B16304","BOX-O-BOX, LLC","FREEHOLD","NJ","07728","ACCOUNTING@BOXOBOX.COM","0016",{"$f":"LEN(Table_Query_from_SOTAMAS90[[#This Row],[CustomerName]])","v":14}]
["B16108","BOYD'S RETRO CANDY STORE","TOLEDO","OH","43612","junk-it-junction@bex.net","0007",{"$f":"LEN(Table_Query_from_SOTAMAS90[[#This Row],[CustomerName]])","v":24}]
["B16271","BRANDY'S TOYS","FAIRBANKS","AK","99707",null,"0016",{"$f":"LEN(Table_Query_from_SOTAMAS90[[#This Row],[CustomerName]])","v":13}]
["B16219","BREAKING THE MOLD","SALT LAKE CITY","UT","84101",null,"0016",{"$f":"LEN(Table_Query_from_SOTAMAS90[[#This Row],[CustomerName]])","v":17}]
["B16270","BRIAN DAVIS VISION CENTER","SOUTH JORDAN","UT","84095",null,"0016",{"$f":"LEN(Table_Query_from_SOTAMAS90[[#This Row],[CustomerName]])","v":25}]
["B16210","BRINKLEY DRUG COMPANY","BRINKLEY","AR","72021",null,"0016",{"$f":"LEN(Table_Query_from_SOTAMAS90[[#This Row],[CustomerName]])","v":21}]
["B16103","BROADBENT & SON","LEHI","UT","84043",null,"0016",{"$f":"LEN(Table_Query_from_SOTAMAS90[[#This Row],[CustomerName]])","v":15}]
["B08102","BROADMOOR HOTEL","Colorado Springs","CO","80901",null,"0008",{"$f":"LEN(Table_Query_from_SOTAMAS90[[#This Row],[CustomerName]])","v":15}]
["B06201","BROCKEL'S CHOCOLATES","BILLINGS","MT","59101",null,"0006",{"$f":"LEN(Table_Query_from_SOTAMAS90[[#This Row],[CustomerName]])","v":20}]
["B12305","BROOKSHIRE GROCERY","TYLER","TX","75710",null,"0012",{"$f":"LEN(Table_Query_from_SOTAMAS90[[#This Row],[CustomerName]])","v":18}]
["B16105","BROWNS COUNTRY STORE","Benton","AR","72018",null,"0016",{"$f":"LEN(Table_Query_from_SOTAMAS90[[#This Row],[CustomerName]])","v":20}]
["B07201","BRUMMERS CHOCOLATES","Vermilion","OH","44089","SANDY.BRUMMER@BRUMMERS.COM","0007",{"$f":"LEN(Table_Query_from_SOTAMAS90[[#This Row],[CustomerName]])","v":19}]
["B16102","BRUTTLE CANDIES","Spokane","WA","99206","JESSICA@BRUTTLES.COM","0010",{"$f":"LEN(Table_Query_from_SOTAMAS90[[#This Row],[CustomerName]])","v":15}]
["B16333","BRYAN'S WAREHOUSE","BELLMORE","NY","11710",null,"0016",{"$f":"LEN(Table_Query_from_SOTAMAS90[[#This Row],[CustomerName]])","v":17}]
["B16205","BUBBLES SOAP FACTORY","MITCHELL","SD","57301",null,"0016",{"$f":"LEN(Table_Query_from_SOTAMAS90[[#This Row],[CustomerName]])","v":20}]
["B07209","BUCCANEER CAMPSITES","JEFFERSON","OH","44045",null,"0007",{"$f":"LEN(Table_Query_from_SOTAMAS90[[#This Row],[CustomerName]])","v":19}]
["B16220","BUDDY & HOWIE'S OLD","Ocean Shores","WA","98569","BUDDYANDHOWIE@COASTACCESS.COM","0016",{"$f":"LEN(Table_Query_from_SOTAMAS90[[#This Row],[CustomerName]])","v":19}]
["B16115","BUDS CORNER MART, LLC","WISCONSIN RAPIDS","WI","54494",null,"0016",{"$f":"LEN(Table_Query_from_SOTAMAS90[[#This Row],[CustomerName]])","v":21}]
["B08101","BUDS, CUT FLOWERS AND MORE","Taos","NM","87571",null,"0008",{"$f":"LEN(Table_Query_from_SOTAMAS90[[#This Row],[CustomerName]])","v":26}]
["B16218","BUFFALO POINT/ANTELPOE ISLAND","Clearfield","UT","84016",null,"0016",{"$f":"LEN(Table_Query_from_SOTAMAS90[[#This Row],[CustomerName]])","v":29}]
["B13203","BULL RUN BEEF & SPECIALTY","HOOKSETT","NH","03106",null,"0013",{"$f":"LEN(Table_Query_from_SOTAMAS90[[#This Row],[CustomerName]])","v":25}]
["B16109","BUNNY HILL DESIGNS","DISCOVERY BAY","CA","94505",null,"0016",{"$f":"LEN(Table_Query_from_SOTAMAS90[[#This Row],[CustomerName]])","v":18}]
["B06212","BURCH CREEK MERCANTILE","OGDEN","UT","84401",null,"0006",{"$f":"LEN(Table_Query_from_SOTAMAS90[[#This Row],[CustomerName]])","v":22}]
["B10320","BURKE'S","SPOKANE","WA","99202","DBURKESPO@AOL.COM","0016",{"$f":"LEN(Table_Query_from_SOTAMAS90[[#This Row],[CustomerName]])","v":7}]
["B13206","BURKHOLDERS MARKET","SPRING MILLS","PA","16875",null,"0013",{"$f":"LEN(Table_Query_from_SOTAMAS90[[#This Row],[CustomerName]])","v":18}]
["B09204","BURNETT DAIRY CHEESE SHOP","GRANSTBURG","WI","54840",null,"0009",{"$f":"LEN(Table_Query_from_SOTAMAS90[[#This Row],[CustomerName]])","v":25}]
["B16208","BURNSTAD'S BROS., INC.","TOMAH","WI","54660",null,"0016",{"$f":"LEN(Table_Query_from_SOTAMAS90[[#This Row],[CustomerName]])","v":22}]
["B13204","BUTCHERBOY MARKETS","NORTH ANDOVER","MA","01845",null,"0013",{"$f":"LEN(Table_Query_from_SOTAMAS90[[#This Row],[CustomerName]])","v":18}]
["B12304","BUY FOR LESS","OKLAHOMA CITY","OK","73120",null,"0012",{"$f":"LEN(Table_Query_from_SOTAMAS90[[#This Row],[CustomerName]])","v":12}]
["B16315","BUZZ ON BROADWAY","SEASIDE","OR","97138",null,"0010",{"$f":"LEN(Table_Query_from_SOTAMAS90[[#This Row],[CustomerName]])","v":16}]
["B09314","BYERLY'S GIFT FOODS","ROCKFORD","MN","55373",null,"0009",{"$f":"LEN(Table_Query_from_SOTAMAS90[[#This Row],[CustomerName]])","v":19}]
["B11205","BYU BOOKSTORE","PROVO","UT","84602",null,"0006",{"$f":"LEN(Table_Query_from_SOTAMAS90[[#This Row],[CustomerName]])","v":13}]
["C11113","C. KAY CUMMINGS CANDIES","SALT LAKE CITY","UT","84109",null,"0006",{"$f":"LEN(Table_Query_from_SOTAMAS90[[#This Row],[CustomerName]])","v":23}]
["C16275","CABIN FEVER","SALT LAKE CITY","UT","84102","CABINFEVERSLCUT@AOL.COM","0016",{"$f":"LEN(Table_Query_from_SOTAMAS90[[#This Row],[CustomerName]])","v":11}]
["C12304","CAJUN COUNTRY","NEDERLAND","TX","77627",null,"0012",{"$f":"LEN(Table_Query_from_SOTAMAS90[[#This Row],[CustomerName]])","v":13}]
["C11307","C-A-L RANCH STORE","IDAHO FALLS","ID","83403",null,"0008",{"$f":"LEN(Table_Query_from_SOTAMAS90[[#This Row],[CustomerName]])","v":17}]
["C16342","CALAMITY JANE CONFECTIONS","Colfax","CA","95713","STORE PHONE NUMBER 530-346-7314","0016",{"$f":"LEN(Table_Query_from_SOTAMAS90[[#This Row],[CustomerName]])","v":25}]
["C13301","CALEF'S COUNTRY STORE","BARRINGTON","NH","03825-0057","INFO@CALEFS.COM","0013",{"$f":"LEN(Table_Query_from_SOTAMAS90[[#This Row],[CustomerName]])","v":21}]
["C13217","CALEF'S COUNTRY STORE, LLC","BARRINGTON","NH","03825","INFO@CALEFS.COM","0013",{"$f":"LEN(Table_Query_from_SOTAMAS90[[#This Row],[CustomerName]])","v":26}]
["C06201","CALICO COTTAGE, INC.","AMITYVILLE","NY","11701-1116",null,"0006",{"$f":"LEN(Table_Query_from_SOTAMAS90[[#This Row],[CustomerName]])","v":20}]
["C16299","CALIFORNIA CANDY COMPANY","HILLSBOROUGH","CA","94010","CHERYL@CALIFORNIACANDY.COM","0016",{"$f":"LEN(Table_Query_from_SOTAMAS90[[#This Row],[CustomerName]])","v":24}]
["C16311","CALUMET MERCANTILE","CALUMET","MI","49913",null,"0016",{"$f":"LEN(Table_Query_from_SOTAMAS90[[#This Row],[CustomerName]])","v":18}]
["C16268","CAMP RICHARDSON RESORT, INC.","SOUTH LAKE TAHOE","CA","96158","TRAVIS@CAMPRICHARDSON.COM","0016",{"$f":"LEN(Table_Query_from_SOTAMAS90[[#This Row],[CustomerName]])","v":28}]
["C16127","CANADIAN PHARMACY","CANADIAN","TX","79014",null,"0016",{"$f":"LEN(Table_Query_from_SOTAMAS90[[#This Row],[CustomerName]])","v":17}]
["C16106","CANDI BOWL","SALT LAKE CITY","UT","84106",null,"0016",{"$f":"LEN(Table_Query_from_SOTAMAS90[[#This Row],[CustomerName]])","v":10}]
["C16254","CANDI'S CANDIES LLC","ALDIE","VA","20105","EKREB@COX.NET","0016",{"$f":"LEN(Table_Query_from_SOTAMAS90[[#This Row],[CustomerName]])","v":19}]
["C16355","CANDY AND CANVAS","SIOUX FALLS","SD","57104",null,"0016",{"$f":"LEN(Table_Query_from_SOTAMAS90[[#This Row],[CustomerName]])","v":16}]
["C16237","CANDY BAR, LLC.","LARAMIE","WY","82072",null,"0016",{"$f":"LEN(Table_Query_from_SOTAMAS90[[#This Row],[CustomerName]])","v":15}]
["C16351","CANDY BARN","STATEN ISLAND","NY","10314",null,"0016",{"$f":"LEN(Table_Query_from_SOTAMAS90[[#This Row],[CustomerName]])","v":10}]
["C05301","CANDY BARON OF LAGUNA","LAGUNA BEACH","CA","92651",null,"0017",{"$f":"LEN(Table_Query_from_SOTAMAS90[[#This Row],[CustomerName]])","v":21}]
["C05304","CANDY BARON OF MONTEREY","MONTEREY","CA","93940","ECKARTISAN@AOL.COM","0017",{"$f":"LEN(Table_Query_from_SOTAMAS90[[#This Row],[CustomerName]])","v":23}]
["C05305","CANDY BARON OF SANTA MONICA","LAGUNA BEACH","CA","92651",null,"0017",{"$f":"LEN(Table_Query_from_SOTAMAS90[[#This Row],[CustomerName]])","v":27}]
["C16304","CANDY BARREL OF FLORIDA INC.","ODESSA","FL","33556","JOSEPHFAGAN@VERIZON.NET","0016",{"$f":"LEN(Table_Query_from_SOTAMAS90[[#This Row],[CustomerName]])","v":28}]
["C17317","CANDY BARREL OF MOVIELAND, THE","RENO","NV","89570",null,"0017",{"$f":"LEN(Table_Query_from_SOTAMAS90[[#This Row],[CustomerName]])","v":30}]
["C16214","CANDY BARREL OF MYRTLE BEACH","MYRTLE BEACH","SC","29579","KLCAMP2004@YAHOO.COM","0016",{"$f":"LEN(Table_Query_from_SOTAMAS90[[#This Row],[CustomerName]])","v":28}]
["C17316","CANDY BARREL OF OLD TOWN, THE","SACRAMENTO","CA","95814",null,"0017",{"$f":"LEN(Table_Query_from_SOTAMAS90[[#This Row],[CustomerName]])","v":29}]
["C16216","CANDY BARREL OF RENO","RENO","NV","89595",null,"0016",{"$f":"LEN(Table_Query_from_SOTAMAS90[[#This Row],[CustomerName]])","v":20}]
["C16316","CANDY BARREL OF SALT LAKE","SANDY","UT","84070",null,"0016",{"$f":"LEN(Table_Query_from_SOTAMAS90[[#This Row],[CustomerName]])","v":25}]
["C17336","CANDY BARREL OF SAN FRANCISCO","SAN FRANCISCO","CA","94133",null,"0017",{"$f":"LEN(Table_Query_from_SOTAMAS90[[#This Row],[CustomerName]])","v":29}]
["C16309","CANDY BASKET","JULIAN","CA","92036",null,"0016",{"$f":"LEN(Table_Query_from_SOTAMAS90[[#This Row],[CustomerName]])","v":12}]
["C16107","CANDY BOUQUET","PIQUA","OH","45356",null,"0007",{"$f":"LEN(Table_Query_from_SOTAMAS90[[#This Row],[CustomerName]])","v":13}]
["C16227","CANDY BOUQUET","MASON CITY","IA","50401",null,"0016",{"$f":"LEN(Table_Query_from_SOTAMAS90[[#This Row],[CustomerName]])","v":13}]
["C16244","CANDY BOUQUET","MOUNTAIN HOME","AR","72653",null,"0016",{"$f":"LEN(Table_Query_from_SOTAMAS90[[#This Row],[CustomerName]])","v":13}]
["C16267","CANDY BOUQUET","BRIDGEPORT","AL","35740",null,"0016",{"$f":"LEN(Table_Query_from_SOTAMAS90[[#This Row],[CustomerName]])","v":13}]
["C04209","CANDY BOUQUET #1915","WORLAND","WY","82401",null,"0016",{"$f":"LEN(Table_Query_from_SOTAMAS90[[#This Row],[CustomerName]])","v":19}]
["C16201","CANDY BOUQUET #2130","COOKEVILLE","TN","38501",null,"0016",{"$f":"LEN(Table_Query_from_SOTAMAS90[[#This Row],[CustomerName]])","v":19}]
["C16240","CANDY BOUQUET #2355","YPSILANTI","MI","48197",null,"0016",{"$f":"LEN(Table_Query_from_SOTAMAS90[[#This Row],[CustomerName]])","v":19}]
["C16113","CANDY BOUQUET #6605","LEXINGTON","NE","68850",null,"0016",{"$f":"LEN(Table_Query_from_SOTAMAS90[[#This Row],[CustomerName]])","v":19}]
["C16128","CANDY BOUQUET #7000","LAKE JACKSON","TX","77566","CANDYBOUQUET7000@YAHOO.COM","0016",{"$f":"LEN(Table_Query_from_SOTAMAS90[[#This Row],[CustomerName]])","v":19}]
["C16266","CANDY BOUQUET & GIFTS","MENOMONEE FALLS","WI","53051",null,"0016",{"$f":"LEN(Table_Query_from_SOTAMAS90[[#This Row],[CustomerName]])","v":21}]
["C16257","CANDY BOUQUET & UNIQUE GIFTS","Gilbert","AZ","85296",null,"0016",{"$f":"LEN(Table_Query_from_SOTAMAS90[[#This Row],[CustomerName]])","v":28}]
["C16252","CANDY BOUQUET 3610","Templeton","CA","93465","CANDYBOUQUET3610@SBCGLOBAL.NET","0016",{"$f":"LEN(Table_Query_from_SOTAMAS90[[#This Row],[CustomerName]])","v":18}]
["C16315","CANDY BOUQUET 6510","BOCA RATON","FL","33433",null,"0016",{"$f":"LEN(Table_Query_from_SOTAMAS90[[#This Row],[CustomerName]])","v":18}]
["C16119","CANDY BOUQUET FRANCHISE #6345","ALVA","OK","73717",null,"0016",{"$f":"LEN(Table_Query_from_SOTAMAS90[[#This Row],[CustomerName]])","v":29}]
["C16116","CANDY BOUQUET OF GREENVILLE","GREENVILLE","OH","45331",null,"0007",{"$f":"LEN(Table_Query_from_SOTAMAS90[[#This Row],[CustomerName]])","v":27}]
["C16121","CANDY BOUQUET SIMPLY SWEET","STERLING","IL","61081","BCBABEL@CIN.NET","0016",{"$f":"LEN(Table_Query_from_SOTAMAS90[[#This Row],[CustomerName]])","v":26}]
["C16111","CANDY BOUQUET-6235","DOTHAN","AL","36305",null,"0016",{"$f":"LEN(Table_Query_from_SOTAMAS90[[#This Row],[CustomerName]])","v":18}]
["C13201","CANDY CAFE","HYANNIS","MA","02601",null,"0013",{"$f":"LEN(Table_Query_from_SOTAMAS90[[#This Row],[CustomerName]])","v":10}]
["C16109","CANDY CAFE","HYANNIS","MA","02601",null,"0016",{"$f":"LEN(Table_Query_from_SOTAMAS90[[#This Row],[CustomerName]])","v":10}]
["C10310","CANDY CASTLE","KELSO","WA","98626",null,"0010",{"$f":"LEN(Table_Query_from_SOTAMAS90[[#This Row],[CustomerName]])","v":12}]
["C16255","CANDY CASTLE","FOND DU LAC","WI","54935",null,"0016",{"$f":"LEN(Table_Query_from_SOTAMAS90[[#This Row],[CustomerName]])","v":12}]
["C16207","CANDY CELLAR, THE","Calistoga","CA","94515","THECANDYCELLAR@SBCGLOBAL.NET","0016",{"$f":"LEN(Table_Query_from_SOTAMAS90[[#This Row],[CustomerName]])","v":17}]
["C16261","CANDY CHEMIST","HENDERSON","NV","89074",null,"0016",{"$f":"LEN(Table_Query_from_SOTAMAS90[[#This Row],[CustomerName]])","v":13}]
["C09201","CANDY CORNER","CHAMPLIN","MN","55316",null,"0009",{"$f":"LEN(Table_Query_from_SOTAMAS90[[#This Row],[CustomerName]])","v":12}]
["C16204","CANDY CORNER","HAMPTON BEACH","NH","03842",null,"0013",{"$f":"LEN(Table_Query_from_SOTAMAS90[[#This Row],[CustomerName]])","v":12}]
["C16206","CANDY CORNER","YORK BEACH","ME","03910","cell # (781) 608-5281","0013",{"$f":"LEN(Table_Query_from_SOTAMAS90[[#This Row],[CustomerName]])","v":12}]
["D09201","CANDY CORNER","WISCONSIN DELLS","WI","53965",null,"0009",{"$f":"LEN(Table_Query_from_SOTAMAS90[[#This Row],[CustomerName]])","v":12}]
["C16325","CANDY CORNS","DALLAS","TX","75205",null,"0016",{"$f":"LEN(Table_Query_from_SOTAMAS90[[#This Row],[CustomerName]])","v":11}]
["C16260","CANDY CRATE INC.","Hesperia","CA","92345","CANDYCRATE@AOL.COM","0016",{"$f":"LEN(Table_Query_from_SOTAMAS90[[#This Row],[CustomerName]])","v":16}]
["F16230","CANDY CROSSING LLC","CLINTON","CT","06413",null,"0016",{"$f":"LEN(Table_Query_from_SOTAMAS90[[#This Row],[CustomerName]])","v":18}]
["C17200","CANDY DEPOT","ROSEVILLE","CA","95661",null,"0017",{"$f":"LEN(Table_Query_from_SOTAMAS90[[#This Row],[CustomerName]])","v":11}]
["C16221","CANDY DIRECT, INC.","CHULA VISTA","CA","91911",null,"0017",{"$f":"LEN(Table_Query_from_SOTAMAS90[[#This Row],[CustomerName]])","v":18}]
["C16307","CANDY DISH","NASHVILLE","IN","47448-0392","FRANK.C.MILLER@HOTMAIL.COM","0007",{"$f":"LEN(Table_Query_from_SOTAMAS90[[#This Row],[CustomerName]])","v":10}]
["C16329","CANDY EXPRESS","NILES","OH","44446",null,"0007",{"$f":"LEN(Table_Query_from_SOTAMAS90[[#This Row],[CustomerName]])","v":13}]
["C16274","CANDY EXPRESS BWI","ALEXANDRIA","VA","22308",null,"0016",{"$f":"LEN(Table_Query_from_SOTAMAS90[[#This Row],[CustomerName]])","v":17}]
["C07322","CANDY EXPRESS OF PITTSBURGH","JOHNSTOWN","PA","15904",null,"0007",{"$f":"LEN(Table_Query_from_SOTAMAS90[[#This Row],[CustomerName]])","v":27}]
["C16213","CANDY EXPRESS, GEORGIA","ATLANTA","GA","30320",null,"0016",{"$f":"LEN(Table_Query_from_SOTAMAS90[[#This Row],[CustomerName]])","v":22}]
["C17345","CANDY HEAVEN","SACRAMENTO","CA","95814",null,"0017",{"$f":"LEN(Table_Query_from_SOTAMAS90[[#This Row],[CustomerName]])","v":12}]
["C07308","CANDY HUT OF OHIO, LTD","MILAN","OH","44846",null,"0007",{"$f":"LEN(Table_Query_from_SOTAMAS90[[#This Row],[CustomerName]])","v":22}]
["C16230","CANDY JAR","MINNEAPOLIS","MN","55407","SUSANANDMORGAN@AOL.COM","0016",{"$f":"LEN(Table_Query_from_SOTAMAS90[[#This Row],[CustomerName]])","v":9}]
["C16284","CANDY JUNCTION","IDAHO FALLS","ID","83402",null,"0016",{"$f":"LEN(Table_Query_from_SOTAMAS90[[#This Row],[CustomerName]])","v":14}]
["C16251","CANDY MAN","KENNEBUNKPORT","ME","04046",null,"0016",{"$f":"LEN(Table_Query_from_SOTAMAS90[[#This Row],[CustomerName]])","v":9}]
["R11211","CANDY MASTERPIECE","Great Falls","MT","59401",null,"0006",{"$f":"LEN(Table_Query_from_SOTAMAS90[[#This Row],[CustomerName]])","v":17}]
["C16278","CANDY NATION","PHOENIXVILLE","PA","19460",null,"0016",{"$f":"LEN(Table_Query_from_SOTAMAS90[[#This Row],[CustomerName]])","v":12}]
["C16115","CANDY ORBIT","WINDSOR","ON","N9A-3L2",null,"0016",{"$f":"LEN(Table_Query_from_SOTAMAS90[[#This Row],[CustomerName]])","v":11}]
["C16203","CANDY PALACE","BERRYVILLE","AR","72616",null,"0016",{"$f":"LEN(Table_Query_from_SOTAMAS90[[#This Row],[CustomerName]])","v":12}]
["C16312","CANDY RAMA","PITTSBURGH","PA","15201",null,"0016",{"$f":"LEN(Table_Query_from_SOTAMAS90[[#This Row],[CustomerName]])","v":10}]
["C09322","CANDY SHOPPE","BAYFIELD","WI","54814","BELLESTAD@GMAIL.COM","0009",{"$f":"LEN(Table_Query_from_SOTAMAS90[[#This Row],[CustomerName]])","v":12}]
["C16271","CANDY STATION","BENSON","AZ","85602",null,"0016",{"$f":"LEN(Table_Query_from_SOTAMAS90[[#This Row],[CustomerName]])","v":13}]
["S16212","CANDY STORE / SWEETHINGS","DALLAS","TX","75240",null,"0016",{"$f":"LEN(Table_Query_from_SOTAMAS90[[#This Row],[CustomerName]])","v":24}]
["C16245","CANDY STORE SWEET NOTHINGS","DALLAS","TX","75240",null,"0016",{"$f":"LEN(Table_Query_from_SOTAMAS90[[#This Row],[CustomerName]])","v":26}]
["C09203","CANDY STORE, THE","SISTER BAY","WI","54234",null,"0009",{"$f":"LEN(Table_Query_from_SOTAMAS90[[#This Row],[CustomerName]])","v":16}]
["C16238","CANDY STRIKE","PLACERVILLE","CA","95667","CANDYSTRIKE@USA.COM","0016",{"$f":"LEN(Table_Query_from_SOTAMAS90[[#This Row],[CustomerName]])","v":12}]
["C08100","CANDY TIME SHOPPE & NOVELTIES","GRAND JUNCTION","CO","81501","CANDYTIMESHOPPE@GMAIL.COM","0008",{"$f":"LEN(Table_Query_from_SOTAMAS90[[#This Row],[CustomerName]])","v":29}]
["C16264","CANDY TOWN","GUNNISON","UT","84634",null,"0016",{"$f":"LEN(Table_Query_from_SOTAMAS90[[#This Row],[CustomerName]])","v":10}]
["C17312","CANDY TOWN","SAN PEDRO","CA","90732",null,"0017",{"$f":"LEN(Table_Query_from_SOTAMAS90[[#This Row],[CustomerName]])","v":10}]
["C06203","CANDY TOWN USA","BILLINGS","MT","59103","CANDYTOWNUSA@BRESNAN.NET","0006",{"$f":"LEN(Table_Query_from_SOTAMAS90[[#This Row],[CustomerName]])","v":14}]
["C07301","CANDY WORLD","COLUMBUS","OH","43231",null,"0007",{"$f":"LEN(Table_Query_from_SOTAMAS90[[#This Row],[CustomerName]])","v":11}]
["G16109","CANDY.COM","WEYMOUTH","MA","02188",null,"0016",{"$f":"LEN(Table_Query_from_SOTAMAS90[[#This Row],[CustomerName]])","v":9}]
["C09306","CANDYLAND","ST. PAUL","MN","55102",null,"0009",{"$f":"LEN(Table_Query_from_SOTAMAS90[[#This Row],[CustomerName]])","v":9}]
["C16303","CANDYLAND","EL DORADO HILLS","CA","95762",null,"0016",{"$f":"LEN(Table_Query_from_SOTAMAS90[[#This Row],[CustomerName]])","v":9}]
["C16306","CANDYLAND","MONTEREY","CA","93940","CANDYMANROD@YAHOO.COM","0016",{"$f":"LEN(Table_Query_from_SOTAMAS90[[#This Row],[CustomerName]])","v":9}]
["C16277","CANDYLAND COTTAGE & ICE CREAM","RAYNE","LA","70578","CANLANCOT@BELLSOUTH.NET","0016",{"$f":"LEN(Table_Query_from_SOTAMAS90[[#This Row],[CustomerName]])","v":29}]
["B11222","CANDYLAND SHOPPE","Ogden","UT","84405",null,"0006",{"$f":"LEN(Table_Query_from_SOTAMAS90[[#This Row],[CustomerName]])","v":16}]
["C17301","CANDYMAN CAN, LLC","Danville","CA","94526",null,"0017",{"$f":"LEN(Table_Query_from_SOTAMAS90[[#This Row],[CustomerName]])","v":17}]
["C16122","CANDYONLINE.CA INC.","LONDON","ON","N6T 2L4","SAM@CANDYONLINE.CA","0016",{"$f":"LEN(Table_Query_from_SOTAMAS90[[#This Row],[CustomerName]])","v":19}]
["C10207","CANDY'S CHOCOLATES & CONFECTIO","PUYALLUP","WA","98371",null,"0010",{"$f":"LEN(Table_Query_from_SOTAMAS90[[#This Row],[CustomerName]])","v":30}]
["C16327","CANDYWAREHOUSE.COM, INC.","EL SEGUNDO","CA","90245","FTOSCANO@CANDYWAREHOUSE.COM","0017",{"$f":"LEN(Table_Query_from_SOTAMAS90[[#This Row],[CustomerName]])","v":24}]
["C09205","CANE LAKE CANDIES","VIRGINIA","MN","55792",null,"0009",{"$f":"LEN(Table_Query_from_SOTAMAS90[[#This Row],[CustomerName]])","v":17}]
["C16281","CAPTAIN FITCH'S","San Diego","CA","92110","ntraditions@aol.com","0016",{"$f":"LEN(Table_Query_from_SOTAMAS90[[#This Row],[CustomerName]])","v":15}]
["C16310","CARAMEL CORN","ESTES PARK","CO","80517",null,"0016",{"$f":"LEN(Table_Query_from_SOTAMAS90[[#This Row],[CustomerName]])","v":12}]
["C11201","CARAMEL CORN & SWEET SHOP LLC","BOZEMAN","MT","59715",null,"0006",{"$f":"LEN(Table_Query_from_SOTAMAS90[[#This Row],[CustomerName]])","v":29}]
["C16226","CARAMEL CREEK CONFECTIONS","BOISE","ID","83713-6644",null,"0016",{"$f":"LEN(Table_Query_from_SOTAMAS90[[#This Row],[CustomerName]])","v":25}]
["C16323","CARLSON'S CANDY CASTLE","PLEASANT GROVE","UT","84062",null,"0016",{"$f":"LEN(Table_Query_from_SOTAMAS90[[#This Row],[CustomerName]])","v":22}]
["C16301","CARMCO","BELLEVUE","OH","44811",null,"0007",{"$f":"LEN(Table_Query_from_SOTAMAS90[[#This Row],[CustomerName]])","v":6}]
["C16319","CARMEL CANDY & CONFECTION","SEASIDE","CA","93955",null,"0016",{"$f":"LEN(Table_Query_from_SOTAMAS90[[#This Row],[CustomerName]])","v":25}]
["C16212","CARNIVAL CONFECTIONS, LLC","JACKSON","NJ","08527",null,"0013",{"$f":"LEN(Table_Query_from_SOTAMAS90[[#This Row],[CustomerName]])","v":25}]
["C16302","CAROLE GLADE DIST. CO.","West Jordan","UT","84088",null,"0016",{"$f":"LEN(Table_Query_from_SOTAMAS90[[#This Row],[CustomerName]])","v":22}]
["C09217","CAROL'S CRANNY","TOMAH","WI","54660",null,"0009",{"$f":"LEN(Table_Query_from_SOTAMAS90[[#This Row],[CustomerName]])","v":14}]
["C16305","CAROUSEL TAFFY","MORRO BAY","CA","93442","ETAFFYZ@YAHOO.COM","0016",{"$f":"LEN(Table_Query_from_SOTAMAS90[[#This Row],[CustomerName]])","v":14}]
["C16135","CARRIER'S TAFFY","Lake Havasu City","AZ","86404",null,"0016",{"$f":"LEN(Table_Query_from_SOTAMAS90[[#This Row],[CustomerName]])","v":15}]
["C09215","CARUSO CANDY, INC","OKEMOS","MI","48864",null,"0009",{"$f":"LEN(Table_Query_from_SOTAMAS90[[#This Row],[CustomerName]])","v":17}]
["C16104","CARY ANN HALLMARK","Waterford","MI","48327",null,"0016",{"$f":"LEN(Table_Query_from_SOTAMAS90[[#This Row],[CustomerName]])","v":17}]
["C16125","CARY'S BEN FRANKLIN /","SIREN","WI","54872",null,"0016",{"$f":"LEN(Table_Query_from_SOTAMAS90[[#This Row],[CustomerName]])","v":21}]
["C17341","CASA DE FRUTA","HOLLISTER","CA","95023",null,"0017",{"$f":"LEN(Table_Query_from_SOTAMAS90[[#This Row],[CustomerName]])","v":13}]
["C10206","CASCADE OFFICE SUPPLY","NORTH BEND","WA","98045",null,"0010",{"$f":"LEN(Table_Query_from_SOTAMAS90[[#This Row],[CustomerName]])","v":21}]
["Z16999","CASH SALES",null,null,null,null,"0016",{"$f":"LEN(Table_Query_from_SOTAMAS90[[#This Row],[CustomerName]])","v":10}]
["C16234","CASTLE ROCK COFFEE+CANDY","ALPINE","UT","84004",null,"0016",{"$f":"LEN(Table_Query_from_SOTAMAS90[[#This Row],[CustomerName]])","v":24}]
["C16101","CATE'S GOURMET","Waupaca","WI","54981",null,"0016",{"$f":"LEN(Table_Query_from_SOTAMAS90[[#This Row],[CustomerName]])","v":14}]
["C17302","CAW TECHNOLOGY, INC.","UNION CITY","CA","94587",null,"0017",{"$f":"LEN(Table_Query_from_SOTAMAS90[[#This Row],[CustomerName]])","v":20}]
["C16228","CED","SALT LAKE CITY","UT","84115",null,"0016",{"$f":"LEN(Table_Query_from_SOTAMAS90[[#This Row],[CustomerName]])","v":3}]
["C10104","CENTENTIAL MARKET","Springfield","OR","97477",null,"0010",{"$f":"LEN(Table_Query_from_SOTAMAS90[[#This Row],[CustomerName]])","v":17}]
["C10202","CENTRAL MARKET","POULSBO","WA","98370",null,"0010",{"$f":"LEN(Table_Query_from_SOTAMAS90[[#This Row],[CustomerName]])","v":14}]
["C10301","CENTRAL MARKET MILL CREEK","MILL CREEK","WA","98012",null,"0010",{"$f":"LEN(Table_Query_from_SOTAMAS90[[#This Row],[CustomerName]])","v":25}]
["C10204","CENTRAL MARKET-POULSBO","POULSBO","WA","98370",null,"0010",{"$f":"LEN(Table_Query_from_SOTAMAS90[[#This Row],[CustomerName]])","v":22}]
["C10205","CENTRAL SHORELINE MARKET","SEATTLE","WA","98133",null,"0010",{"$f":"LEN(Table_Query_from_SOTAMAS90[[#This Row],[CustomerName]])","v":24}]
["C16265","CHANCE PRIDE FOODS","BEAUMONT","TX","77720",null,"0016",{"$f":"LEN(Table_Query_from_SOTAMAS90[[#This Row],[CustomerName]])","v":18}]
["C07100","CHARLIE MAXWELL'S MALT SHOP","INDEPENDENCE","KY","41051",null,"0007",{"$f":"LEN(Table_Query_from_SOTAMAS90[[#This Row],[CustomerName]])","v":27}]
["C16215","CHARM N CANDY BOUQUET","GALT","CA","95632",null,"0016",{"$f":"LEN(Table_Query_from_SOTAMAS90[[#This Row],[CustomerName]])","v":21}]
["C09103","CHEESE BOARD OF WISCONSIN","MINOCQUA","WI","54548",null,"0009",{"$f":"LEN(Table_Query_from_SOTAMAS90[[#This Row],[CustomerName]])","v":25}]
["C09207","CHERRY COUNTRY","TRAVERSE CITY","MI","49686",null,"0009",{"$f":"LEN(Table_Query_from_SOTAMAS90[[#This Row],[CustomerName]])","v":14}]
["C09303","CHIPPEWA VALLEY CHEESE","BLACK RIVER FALLS","WI","54615",null,"0009",{"$f":"LEN(Table_Query_from_SOTAMAS90[[#This Row],[CustomerName]])","v":22}]
["C16222","CHOCOLAT","LAKEPORT","CA","95453",null,"0016",{"$f":"LEN(Table_Query_from_SOTAMAS90[[#This Row],[CustomerName]])","v":8}]
["C09106","CHOCOLATE & ICE CREAM DELIGHT","SEATTLE","WA","98101",null,"0010",{"$f":"LEN(Table_Query_from_SOTAMAS90[[#This Row],[CustomerName]])","v":29}]
["C10215","CHOCOLATE AFFAIRS","Bothell","WA","98012",null,"0010",{"$f":"LEN(Table_Query_from_SOTAMAS90[[#This Row],[CustomerName]])","v":17}]
["C10201","CHOCOLATE BAR","TUKWILA","WA","98188",null,"0010",{"$f":"LEN(Table_Query_from_SOTAMAS90[[#This Row],[CustomerName]])","v":13}]
["C16246","CHO-COL-ATE CREATIONS","JOPLIN","MO","64804",null,"0016",{"$f":"LEN(Table_Query_from_SOTAMAS90[[#This Row],[CustomerName]])","v":21}]
["C09301","CHOCOLATE HOUSE INC., THE","Milwaukee","WI","53221-8005",null,"0009",{"$f":"LEN(Table_Query_from_SOTAMAS90[[#This Row],[CustomerName]])","v":25}]
["C16219","CHOCOLATE KEY, THE","NAPERVILLE","IL","60540",null,"0016",{"$f":"LEN(Table_Query_from_SOTAMAS90[[#This Row],[CustomerName]])","v":18}]
["B16201","CHOCOLATE ORCHARD","CRESTON","BC","V0B1G1","bob_arlie@yahoo.ca","0016",{"$f":"LEN(Table_Query_from_SOTAMAS90[[#This Row],[CustomerName]])","v":17}]
["C09302","CHOCOLATE OX","CROSSLAKE","MN","56442",null,"0009",{"$f":"LEN(Table_Query_from_SOTAMAS90[[#This Row],[CustomerName]])","v":12}]
["C09104","CHOCOLATE SHOPPE ICE CREAM","MADISON","WI","53711",null,"0009",{"$f":"LEN(Table_Query_from_SOTAMAS90[[#This Row],[CustomerName]])","v":26}]
["C16346","CHOCOLATE SPOON, THE","ARCADIA","OK","73007",null,"0016",{"$f":"LEN(Table_Query_from_SOTAMAS90[[#This Row],[CustomerName]])","v":20}]
["C09208","CHOCOLATE TREE (THE)","WEST BEND","WI","53095",null,"0009",{"$f":"LEN(Table_Query_from_SOTAMAS90[[#This Row],[CustomerName]])","v":20}]
["C16349","CHOCOLATE TREE INC., THE","BEAUFORT","SC","29902","choctree@islc.net","0016",{"$f":"LEN(Table_Query_from_SOTAMAS90[[#This Row],[CustomerName]])","v":24}]
["C13205","CHOCOLATE WORKS","EAST LONGMEADOW","MA","01028",null,"0013",{"$f":"LEN(Table_Query_from_SOTAMAS90[[#This Row],[CustomerName]])","v":15}]
["C16235","CHRISSY'S ICE CREAM PARLOR","PILLAGER","MN","56473",null,"0016",{"$f":"LEN(Table_Query_from_SOTAMAS90[[#This Row],[CustomerName]])","v":26}]
["C06209","CHRISTENSEN DEPARTMENT STORE","RICHFIELD","UT","84701","CHRISTENSENSRICHFIELD@YAHOO.COM","0006",{"$f":"LEN(Table_Query_from_SOTAMAS90[[#This Row],[CustomerName]])","v":28}]
["C10208","CHRISTMAS MOUNTAIN MAGIC","SISTERS","OR","97759",null,"0010",{"$f":"LEN(Table_Query_from_SOTAMAS90[[#This Row],[CustomerName]])","v":24}]
["C16118","CINDY BOWMAN","ROSEVILLE","CA","95678",null,"0016",{"$f":"LEN(Table_Query_from_SOTAMAS90[[#This Row],[CustomerName]])","v":12}]
["C16356","CINDY'S CREATIONS","SAINT CHARLES","MO","63303",null,"0016",{"$f":"LEN(Table_Query_from_SOTAMAS90[[#This Row],[CustomerName]])","v":17}]
["C16314","CITRA PRODUCTS OF FLORIDA, INC","WINTER HAVEN","FL","33880",null,"0016",{"$f":"LEN(Table_Query_from_SOTAMAS90[[#This Row],[CustomerName]])","v":30}]
["C16352","CITRUS COUNTRY GROVE","Dade City","FL","33523","JMCCLELLAND@DCBUSINESSCENTER.COM","0016",{"$f":"LEN(Table_Query_from_SOTAMAS90[[#This Row],[CustomerName]])","v":20}]
["C16232","CITRUS HEIGHTS FARMS","MESA","AZ","85215","GARDNER.OFFICE@GMAIL.COM","0016",{"$f":"LEN(Table_Query_from_SOTAMAS90[[#This Row],[CustomerName]])","v":20}]
["C06233","CITY PEANUT SHOP","BOISE","ID","83703",null,"0006",{"$f":"LEN(Table_Query_from_SOTAMAS90[[#This Row],[CustomerName]])","v":16}]
["C16200","CJ'S CANDIES","SHELBYVILLE","KY","40065","CJSCANDIES@INSIGHTBB.COM","0007",{"$f":"LEN(Table_Query_from_SOTAMAS90[[#This Row],[CustomerName]])","v":12}]
["C10103","CLALLAM CO-OP","SEQUIM","WA","98382","JMKUGEL@KUGELSCHEESE.COM","0010",{"$f":"LEN(Table_Query_from_SOTAMAS90[[#This Row],[CustomerName]])","v":13}]
["C06205","CLARK'S CROSSING","LIVINGSTON","MT","59047","GINNYA@WISPWEST.NET","0006",{"$f":"LEN(Table_Query_from_SOTAMAS90[[#This Row],[CustomerName]])","v":16}]
["C16308","CLASSIC COYOTEE","Arnold","NE","69120",null,"0016",{"$f":"LEN(Table_Query_from_SOTAMAS90[[#This Row],[CustomerName]])","v":15}]
["C10209","CLAYTON KENDRICK, INC","Seattle","WA","98107",null,"0010",{"$f":"LEN(Table_Query_from_SOTAMAS90[[#This Row],[CustomerName]])","v":21}]
["C16322","CLOUD NINE","OCEAN SHORES","WA","98569","OTHER PHONE # (360)289-4424","0010",{"$f":"LEN(Table_Query_from_SOTAMAS90[[#This Row],[CustomerName]])","v":10}]
["C16223","CLOUDCROFT CANDY","CLOUDCROFT","NM","88317",null,"0016",{"$f":"LEN(Table_Query_from_SOTAMAS90[[#This Row],[CustomerName]])","v":16}]
["C07209","CLOWN CONES & CONFECTIONS","COLUMBUS","OH","43224",null,"0007",{"$f":"LEN(Table_Query_from_SOTAMAS90[[#This Row],[CustomerName]])","v":25}]
["C17106","CLUTTERBUG","Gualala","CA","95445",null,"0017",{"$f":"LEN(Table_Query_from_SOTAMAS90[[#This Row],[CustomerName]])","v":10}]
["C16285","CMC ENTERPRISES","Saint Paul","MN","55125",null,"0016",{"$f":"LEN(Table_Query_from_SOTAMAS90[[#This Row],[CustomerName]])","v":15}]
["C16132","COASTAL VINEYARDS","Moorpark","CA","93021",null,"0016",{"$f":"LEN(Table_Query_from_SOTAMAS90[[#This Row],[CustomerName]])","v":17}]
["C16134","COBBLESTONE BAKERY","Riverbank","CA","95367",null,"0016",{"$f":"LEN(Table_Query_from_SOTAMAS90[[#This Row],[CustomerName]])","v":18}]
["C16231","COLLEGE OF SEQUOIAS","VISALIA","CA","93277",null,"0016",{"$f":"LEN(Table_Query_from_SOTAMAS90[[#This Row],[CustomerName]])","v":19}]
["C16130","COLONIAL CANDY CORNER","HOT SPRINGS NATL PK","AR","71901",null,"0016",{"$f":"LEN(Table_Query_from_SOTAMAS90[[#This Row],[CustomerName]])","v":21}]
["C16320","COLOR, INC.","HOLLISTON","MA","01746","ACCOUNTSPAYABLE@THECOLORSTORES.COM","0013",{"$f":"LEN(Table_Query_from_SOTAMAS90[[#This Row],[CustomerName]])","v":11}]
["C16280","COLT COMMUNICATIONS LLC","PARADISE VALLEY","AZ","85253","ADDTL PHONE (602) 956-0848","0016",{"$f":"LEN(Table_Query_from_SOTAMAS90[[#This Row],[CustomerName]])","v":23}]
["C16218","COMBEST","Huntington Beach","CA","92647",null,"0016",{"$f":"LEN(Table_Query_from_SOTAMAS90[[#This Row],[CustomerName]])","v":7}]
["C17306","COMPANY OF NUTS","SAN DIEGO","CA","92101",null,"0017",{"$f":"LEN(Table_Query_from_SOTAMAS90[[#This Row],[CustomerName]])","v":15}]
["C16328","CONCEPT SNACKS","HAMILTON","ON","L8S 4S3","CAROL@CONCEPTSNACKS.COM","0016",{"$f":"LEN(Table_Query_from_SOTAMAS90[[#This Row],[CustomerName]])","v":14}]
["C16114","CONCH REPUBLIC CANDY COMPANY","KEY LARGO","FL","33037",null,"0016",{"$f":"LEN(Table_Query_from_SOTAMAS90[[#This Row],[CustomerName]])","v":28}]
["C16229","CONFECTIONS FOR ANY OCCASION","THERESA","WI","53091","CHEFJOEL@CONECTIONSBYJOEL.COM","0016",{"$f":"LEN(Table_Query_from_SOTAMAS90[[#This Row],[CustomerName]])","v":28}]
["C10102","CONSOLIDATED FOODS","KENT","WA","98035",null,"0010",{"$f":"LEN(Table_Query_from_SOTAMAS90[[#This Row],[CustomerName]])","v":18}]
["C16250","COOKIE & CANDY CREATIONS","GLENDALE","MO","63122",null,"0016",{"$f":"LEN(Table_Query_from_SOTAMAS90[[#This Row],[CustomerName]])","v":24}]
["C16112","COOL SHOPPE","BARTOW","FL","33830",null,"0016",{"$f":"LEN(Table_Query_from_SOTAMAS90[[#This Row],[CustomerName]])","v":11}]
["C16236","COPPER KETTLE CHOCOLATES","BUTTE","MT","59701",null,"0016",{"$f":"LEN(Table_Query_from_SOTAMAS90[[#This Row],[CustomerName]])","v":24}]
["C16269","CORN-FUSION","CEDAR RAPIDS","IA","52402",null,"0016",{"$f":"LEN(Table_Query_from_SOTAMAS90[[#This Row],[CustomerName]])","v":11}]
["C16241","CORNWELL'S TURKEYVILLE U.S.A.","MARSHALL","MI","49068","AMY@TURKEYVILLE.COM","0016",{"$f":"LEN(Table_Query_from_SOTAMAS90[[#This Row],[CustomerName]])","v":29}]
["C17105","COSENTINOS VEGETABLE HAVEN","SAN JOSE","CA","95124","BROKER GUARANTEE-NANCY SCHERR","0017",{"$f":"LEN(Table_Query_from_SOTAMAS90[[#This Row],[CustomerName]])","v":26}]
["S09210","COSMIC ENTERPRISES","MENOMINEE","MI","49858",null,"0009",{"$f":"LEN(Table_Query_from_SOTAMAS90[[#This Row],[CustomerName]])","v":18}]
["C17305","COST LESS #4","HANFORD","CA","93230",null,"0017",{"$f":"LEN(Table_Query_from_SOTAMAS90[[#This Row],[CustomerName]])","v":12}]
["C17303","COST LESS #8","JACKSON","CA","95642",null,"0017",{"$f":"LEN(Table_Query_from_SOTAMAS90[[#This Row],[CustomerName]])","v":12}]
["C17346","COST PLUS MANAGEMENT SERVICES","OAKLAND","CA","94623",null,"0017",{"$f":"LEN(Table_Query_from_SOTAMAS90[[#This Row],[CustomerName]])","v":29}]
["C03102","COSTCO WHOLESALE CANADA LTD.","SEATTLE","WA","98124",null,"0003",{"$f":"LEN(Table_Query_from_SOTAMAS90[[#This Row],[CustomerName]])","v":28}]
["C16217","COTTON CANDY KRAZY","MANTECA","CA","95336",null,"0016",{"$f":"LEN(Table_Query_from_SOTAMAS90[[#This Row],[CustomerName]])","v":18}]
["C11215","COTTONWOOD SWEETS","SALT LAKE CITY","UT","84117",null,"0006",{"$f":"LEN(Table_Query_from_SOTAMAS90[[#This Row],[CustomerName]])","v":17}]
["C06204","COUNTRY CANDY CO","Salmon","ID","83467",null,"0006",{"$f":"LEN(Table_Query_from_SOTAMAS90[[#This Row],[CustomerName]])","v":16}]
["C16248","COUNTRY CLASSICS","MONTROSE","CA","91020",null,"0016",{"$f":"LEN(Table_Query_from_SOTAMAS90[[#This Row],[CustomerName]])","v":16}]
["C16126","COUNTRY CONFECTIONS CHOCOLATES","CANONSBURG","PA","15317",null,"0016",{"$f":"LEN(Table_Query_from_SOTAMAS90[[#This Row],[CustomerName]])","v":30}]
["C13202","COUNTRY CUPBOARD INC.","LEWISBURG","PA","17837",null,"0013",{"$f":"LEN(Table_Query_from_SOTAMAS90[[#This Row],[CustomerName]])","v":21}]
["C16120","COUNTRY ELEGANCE","SHIPSHEWANA","IN","46565",null,"0007",{"$f":"LEN(Table_Query_from_SOTAMAS90[[#This Row],[CustomerName]])","v":16}]
["C09102","COUNTRY HIDEAWAY","HAZEN","ND","58545",null,"0009",{"$f":"LEN(Table_Query_from_SOTAMAS90[[#This Row],[CustomerName]])","v":16}]
["C16110","COUNTRY KERNALS","WAUNA","WA","98395",null,"0010",{"$f":"LEN(Table_Query_from_SOTAMAS90[[#This Row],[CustomerName]])","v":15}]
["C16131","COUNTRY LADIES","Cle Elum","WA","98922","COUNTRYLADIESTRADING@YAHOO.COM","0016",{"$f":"LEN(Table_Query_from_SOTAMAS90[[#This Row],[CustomerName]])","v":14}]
["C07213","COUNTRY MARKET, THE","ZIONSVILLE","IN","46077",null,"0007",{"$f":"LEN(Table_Query_from_SOTAMAS90[[#This Row],[CustomerName]])","v":19}]
["C10211","COUNTRY MERCANTILE","Pasco","WA","99301",null,"0010",{"$f":"LEN(Table_Query_from_SOTAMAS90[[#This Row],[CustomerName]])","v":18}]
["C09200","COUNTRY STORE","Pleasantville","NY","10572-0540",null,"0009",{"$f":"LEN(Table_Query_from_SOTAMAS90[[#This Row],[CustomerName]])","v":13}]
["C16210","COUNTRY STORE & GARDENS","VASHON ISLAND","WA","98070",null,"0010",{"$f":"LEN(Table_Query_from_SOTAMAS90[[#This Row],[CustomerName]])","v":23}]
["C09315","COUNTRY STORE OF EAGLE RIVER","EAGLE RIVER","WI","54521",null,"0009",{"$f":"LEN(Table_Query_from_SOTAMAS90[[#This Row],[CustomerName]])","v":28}]
["C16247","COURY'S CHOCOLATES","JENSEN BEACH","FL","34957",null,"0016",{"$f":"LEN(Table_Query_from_SOTAMAS90[[#This Row],[CustomerName]])","v":18}]
["C16350","COURY'S CHOCOLATES & ICE CREAM","JENSEN BEACH","FL","34957",null,"0016",{"$f":"LEN(Table_Query_from_SOTAMAS90[[#This Row],[CustomerName]])","v":30}]
["C16270","COUSIN'S SUPER-C","EARLY","TX","76802",null,"0016",{"$f":"LEN(Table_Query_from_SOTAMAS90[[#This Row],[CustomerName]])","v":16}]
["C16318","COW TOWN CANDY","Cody","WY","82414",null,"0016",{"$f":"LEN(Table_Query_from_SOTAMAS90[[#This Row],[CustomerName]])","v":14}]
["C11208","COX HONEYLAND & GIFTS","Providence","UT","84332","COXHONEYLAND@PCU.NET","0006",{"$f":"LEN(Table_Query_from_SOTAMAS90[[#This Row],[CustomerName]])","v":21}]
["C16205","CRAFT STORE ON MAIN, THE","BOERNE","TX","78006",null,"0016",{"$f":"LEN(Table_Query_from_SOTAMAS90[[#This Row],[CustomerName]])","v":24}]
["C16224","CRAFTMALL PLUS","MAZON","IL","60444",null,"0016",{"$f":"LEN(Table_Query_from_SOTAMAS90[[#This Row],[CustomerName]])","v":14}]
["C16220","CRANBERRY CONNECTIONS","WISCONSIN DELLS","WI","53965",null,"0016",{"$f":"LEN(Table_Query_from_SOTAMAS90[[#This Row],[CustomerName]])","v":21}]
["C16272","CRANBERRY CREEK","STEVENS POINT","WI","54481",null,"0016",{"$f":"LEN(Table_Query_from_SOTAMAS90[[#This Row],[CustomerName]])","v":15}]
["C16273","CRANBERRY MUSEUM","LONG BEACH","WA","98631",null,"0010",{"$f":"LEN(Table_Query_from_SOTAMAS90[[#This Row],[CustomerName]])","v":16}]
["C09220","CRANBERRY SQUARE","MANITOWISH WATERS","WI","54545",null,"0009",{"$f":"LEN(Table_Query_from_SOTAMAS90[[#This Row],[CustomerName]])","v":16}]
["C10203","CRANBERRY SWEETS","COOS BAY","OR","97420","CLAYTON.SHAW@COMCAST.NET","0010",{"$f":"LEN(Table_Query_from_SOTAMAS90[[#This Row],[CustomerName]])","v":16}]
["C09320","CRAVINGS","MINNEAPOLIS","MN","55402",null,"0009",{"$f":"LEN(Table_Query_from_SOTAMAS90[[#This Row],[CustomerName]])","v":8}]
["C16324","CRAZY CATS","ELLSWORTH","WI","54011",null,"0009",{"$f":"LEN(Table_Query_from_SOTAMAS90[[#This Row],[CustomerName]])","v":10}]
["C16133","CREATIVE KIDSTUFF","Minneapolis","MN","55406","KRUEDY@CREATIVEKIDSTUFF.COM","0016",{"$f":"LEN(Table_Query_from_SOTAMAS90[[#This Row],[CustomerName]])","v":17}]
["C16202","CREATIVE SERVICES","SAINT LOUIS","MO","63117",null,"0016",{"$f":"LEN(Table_Query_from_SOTAMAS90[[#This Row],[CustomerName]])","v":17}]
["C16129","CREATIVE TOUCH","HUTTO","TX","78634",null,"0016",{"$f":"LEN(Table_Query_from_SOTAMAS90[[#This Row],[CustomerName]])","v":14}]
["Z16888","CREDIT CARD SALES",null,null,null,null,"0016",{"$f":"LEN(Table_Query_from_SOTAMAS90[[#This Row],[CustomerName]])","v":17}]
["C12315","CREST DISCOUNT FOODS","EDMOND","OK","73083-7510",null,"0012",{"$f":"LEN(Table_Query_from_SOTAMAS90[[#This Row],[CustomerName]])","v":20}]
["C16242","CRILLS SALT WATER TAFFY","MORRO BAY","CA","93442",null,"0016",{"$f":"LEN(Table_Query_from_SOTAMAS90[[#This Row],[CustomerName]])","v":23}]
["C16357","CRIMSON CLUB","SALT LAKE CITY","UT","84112",null,"0016",{"$f":"LEN(Table_Query_from_SOTAMAS90[[#This Row],[CustomerName]])","v":12}]
["C09101","CROCK & ROCKER","Michigamme","MI","49861",null,"0009",{"$f":"LEN(Table_Query_from_SOTAMAS90[[#This Row],[CustomerName]])","v":14}]
["C04210","CROSSROADS SALES","DRAPER","UT","84020",null,"0004",{"$f":"LEN(Table_Query_from_SOTAMAS90[[#This Row],[CustomerName]])","v":16}]
["C10210","CROWN PACIFIC FINE FOODS","KENT","WA","98031",null,"0010",{"$f":"LEN(Table_Query_from_SOTAMAS90[[#This Row],[CustomerName]])","v":24}]
["C16336","CRYSTAL TEMPTATIONS","BROOKLYN","NY","11205",null,"0016",{"$f":"LEN(Table_Query_from_SOTAMAS90[[#This Row],[CustomerName]])","v":19}]
["C16239","CRYSTAL'S CRAFTS","OGDEN","UT","84414",null,"0016",{"$f":"LEN(Table_Query_from_SOTAMAS90[[#This Row],[CustomerName]])","v":16}]
["C11308","CUBAN CIGAR CO.","SALT LAKE CITY","UT","84165",null,"0004",{"$f":"LEN(Table_Query_from_SOTAMAS90[[#This Row],[CustomerName]])","v":15}]
["C11103","CUMMINGS STUDIO-SALT LAKE","SALT LAKE CITY","UT","84105","NOWAY@DOESNOTCARE.COM","0006",{"$f":"LEN(Table_Query_from_SOTAMAS90[[#This Row],[CustomerName]])","v":25}]
["C06220","CUMMINGS STUDIO-WEST JORDAN","WEST JORDAN","UT","84084",null,"0006",{"$f":"LEN(Table_Query_from_SOTAMAS90[[#This Row],[CustomerName]])","v":27}]
["C16253","CURRENT","Colorado Springs","CO","80901",null,"0016",{"$f":"LEN(Table_Query_from_SOTAMAS90[[#This Row],[CustomerName]])","v":7}]
["C16283","CUSTOM CHOCOLATE","WACONIA","MN","55387",null,"0016",{"$f":"LEN(Table_Query_from_SOTAMAS90[[#This Row],[CustomerName]])","v":16}]
["C16100","CUSTOM PRINT",null,null,null,null,"0016",{"$f":"LEN(Table_Query_from_SOTAMAS90[[#This Row],[CustomerName]])","v":12}]
["C09330","CUZZIN'S CANDY STORE","PARK RAPIDS","MN","56470",null,"0009",{"$f":"LEN(Table_Query_from_SOTAMAS90[[#This Row],[CustomerName]])","v":20}]
["C16263","CY'S ECLECTIC, INC.","SALT LAKE CITY","UT","84119",null,"0016",{"$f":"LEN(Table_Query_from_SOTAMAS90[[#This Row],[CustomerName]])","v":19}]
["D16309","D & D SWEETS","Eustis","FL","32726",null,"0016",{"$f":"LEN(Table_Query_from_SOTAMAS90[[#This Row],[CustomerName]])","v":12}]
["D17302","DALE COX DISTRIBUTING, INC.","PETALUMA","CA","94954",null,"0017",{"$f":"LEN(Table_Query_from_SOTAMAS90[[#This Row],[CustomerName]])","v":27}]
["D16203","DALY DRUG","WISCONSIN RAPIDS","WI","54494",null,"0016",{"$f":"LEN(Table_Query_from_SOTAMAS90[[#This Row],[CustomerName]])","v":9}]
["D16307","DANNY STRILEY","AMARILLO","TX","79106",null,"0016",{"$f":"LEN(Table_Query_from_SOTAMAS90[[#This Row],[CustomerName]])","v":13}]
["D11302","DAN'S FOODS","SALT LAKE CITY","UT","84117",null,"0008",{"$f":"LEN(Table_Query_from_SOTAMAS90[[#This Row],[CustomerName]])","v":11}]
["D09306","DAN'S MINOCQUA FUDGE","MINOCQUA","WI","54548","BOCA0786@MSN.COM","0009",{"$f":"LEN(Table_Query_from_SOTAMAS90[[#This Row],[CustomerName]])","v":20}]
["D16117","DAN'S STEAKHOUSE-PERRYTON","WOODWARD","OK","73801",null,"0016",{"$f":"LEN(Table_Query_from_SOTAMAS90[[#This Row],[CustomerName]])","v":25}]
["D16111","DAN'S STEAKHOUSE-WOODWARD","WOODWARD","OK","73801","DANSTEAKHOUSE@ATT.NET","0016",{"$f":"LEN(Table_Query_from_SOTAMAS90[[#This Row],[CustomerName]])","v":25}]
["D16302","DAN'S SUPERMARET, INC.","BISMARCK","ND","58504",null,"0016",{"$f":"LEN(Table_Query_from_SOTAMAS90[[#This Row],[CustomerName]])","v":22}]
["D16104","DAUGHTER OF PIONEER SPRINGVILL","SPRINGVILLE","UT","84663",null,"0016",{"$f":"LEN(Table_Query_from_SOTAMAS90[[#This Row],[CustomerName]])","v":30}]
["D16201","DAUGHTER'S OF THE UTAH PIONEER","SALT LAKE CITY","UT","84103-1699",null,"0016",{"$f":"LEN(Table_Query_from_SOTAMAS90[[#This Row],[CustomerName]])","v":30}]
["D16102","DAUGHTERS OF UTAH- VERNAL","VERNAL","UT","84078",null,"0016",{"$f":"LEN(Table_Query_from_SOTAMAS90[[#This Row],[CustomerName]])","v":25}]
["D16107","DAUGHTERS UTAH PIONEER-OGDEN","OGDEN","UT","84405",null,"0016",{"$f":"LEN(Table_Query_from_SOTAMAS90[[#This Row],[CustomerName]])","v":28}]
["C16123","DAVE'S EXPRESS LUBE","HELENA","MT","59602",null,"0016",{"$f":"LEN(Table_Query_from_SOTAMAS90[[#This Row],[CustomerName]])","v":19}]
["D12301","DAVID'S SUPERMARKET","GRANDVIEW","TX","76050",null,"0012",{"$f":"LEN(Table_Query_from_SOTAMAS90[[#This Row],[CustomerName]])","v":19}]
["D16202","DAVIS DISTRIBUTING","SALT LAKE CITY","UT","84115","CLARRABEE1001@QWESTOFFICE.NET","0016",{"$f":"LEN(Table_Query_from_SOTAMAS90[[#This Row],[CustomerName]])","v":18}]
["D09203","DAVISON OFFICE PRODUCTS","Davison","MI","48423",null,"0009",{"$f":"LEN(Table_Query_from_SOTAMAS90[[#This Row],[CustomerName]])","v":23}]
["D16106","DAYS GONE BY","FORT GIBSON","OK","74434",null,"0016",{"$f":"LEN(Table_Query_from_SOTAMAS90[[#This Row],[CustomerName]])","v":12}]
["D07201","DAYTON NUT SPECIALTIES, INC.","DAYTON","OH","45405",null,"0007",{"$f":"LEN(Table_Query_from_SOTAMAS90[[#This Row],[CustomerName]])","v":28}]
["D13200","DE PIERO'S FARM","MONTVALE","NJ","07645",null,"0013",{"$f":"LEN(Table_Query_from_SOTAMAS90[[#This Row],[CustomerName]])","v":15}]
["D09207","DE ZOETE HAAN","HOLLAND","MI","49424","DALEGREGG55@GMAIL.COM","0009",{"$f":"LEN(Table_Query_from_SOTAMAS90[[#This Row],[CustomerName]])","v":13}]
["D09205","DEBBIE'S SWEETS 'N TREATS","OAK CREEK","WI","53154","sales@nostalgiccandy.com","0009",{"$f":"LEN(Table_Query_from_SOTAMAS90[[#This Row],[CustomerName]])","v":25}]
["D16105","DEBORAH ANN'S","RIDGEFIELD","CT","06877","DEBORAH@DEBORAHANNS.COM","0016",{"$f":"LEN(Table_Query_from_SOTAMAS90[[#This Row],[CustomerName]])","v":13}]
["D16209","DEBRITO CHOCOLATE FACTORY","HOLLISTER","CA","95023",null,"0016",{"$f":"LEN(Table_Query_from_SOTAMAS90[[#This Row],[CustomerName]])","v":25}]
["D16114","DEDICATED MARKETING GROUP LTD","WINDSOR","ON","N9E 4V8",null,"0016",{"$f":"LEN(Table_Query_from_SOTAMAS90[[#This Row],[CustomerName]])","v":29}]
["G16209","DEIDRA'S","SPICER","MN","56288",null,"0016",{"$f":"LEN(Table_Query_from_SOTAMAS90[[#This Row],[CustomerName]])","v":8}]
["D09202","DELICATE DESIGNS GIFT SHOP","ALGER","MI","48610",null,"0009",{"$f":"LEN(Table_Query_from_SOTAMAS90[[#This Row],[CustomerName]])","v":26}]
["D09209","DEL'S POPCORN SHOP-DECATUR","Decatur","IL","62523",null,"0009",{"$f":"LEN(Table_Query_from_SOTAMAS90[[#This Row],[CustomerName]])","v":26}]
["D13201","DEMAREST FARM","HILLSDALE","NJ","07642",null,"0013",{"$f":"LEN(Table_Query_from_SOTAMAS90[[#This Row],[CustomerName]])","v":13}]
["D17303","DENNIS FOLAND INC.","ONTARIO","CA","91761",null,"0017",{"$f":"LEN(Table_Query_from_SOTAMAS90[[#This Row],[CustomerName]])","v":18}]
["D16116","DER DUTCHMAN RESTAURANT","WALNUT CREEK","OH","44687",null,"0016",{"$f":"LEN(Table_Query_from_SOTAMAS90[[#This Row],[CustomerName]])","v":23}]
["D16103","DESERET BOOK","SALT LAKE CITY","UT","84130",null,"0006",{"$f":"LEN(Table_Query_from_SOTAMAS90[[#This Row],[CustomerName]])","v":12}]
["D16216","DESERET VILLAGE","SALT LAKE CITY","UT","84108",null,"0016",{"$f":"LEN(Table_Query_from_SOTAMAS90[[#This Row],[CustomerName]])","v":15}]
["D09301","DESIGN PAC","MELROSE PARK","IL","60160",null,"0009",{"$f":"LEN(Table_Query_from_SOTAMAS90[[#This Row],[CustomerName]])","v":10}]
["D16112","DEVAUGHN'S OLD FASHION POPCORN","JACKSON","MI","49202","DEVAUGHNSPOPCORN@ATT.NET","0016",{"$f":"LEN(Table_Query_from_SOTAMAS90[[#This Row],[CustomerName]])","v":30}]
["D16303","DIAMOND HEAD TAFFY, LLC","Honolulu","HI","96816",null,"0016",{"$f":"LEN(Table_Query_from_SOTAMAS90[[#This Row],[CustomerName]])","v":23}]
["D16207","DILLARDS DEPT. STORE","LITTLE ROCK","AR","72203","ray 501-455-6405","0016",{"$f":"LEN(Table_Query_from_SOTAMAS90[[#This Row],[CustomerName]])","v":20}]
["D16213","DINSTUHL'S FINE CANDY COMPANY","MEMPHIS","TN","38134","MARISSA@DINSTUHLS.COM","0016",{"$f":"LEN(Table_Query_from_SOTAMAS90[[#This Row],[CustomerName]])","v":29}]
["D11203","DIVERSIFIED BROKERAGE","LEHI","UT","84043",null,"0004",{"$f":"LEN(Table_Query_from_SOTAMAS90[[#This Row],[CustomerName]])","v":21}]
["D20310","DIVERSIFIED DISTRIBUTING","DES MOINES","IA","50325",null,"0020",{"$f":"LEN(Table_Query_from_SOTAMAS90[[#This Row],[CustomerName]])","v":24}]
["H20310","DIVERSIFIED DISTRIBUTING","DES MOINES","IA","50325",null,"0020",{"$f":"LEN(Table_Query_from_SOTAMAS90[[#This Row],[CustomerName]])","v":24}]
["D07202","DMT, INC.","UHRICHSVILLE","OH","44683",null,"0007",{"$f":"LEN(Table_Query_from_SOTAMAS90[[#This Row],[CustomerName]])","v":9}]
["D16211","DO ENTERPRISES","MALIBU","CA","90265",null,"0016",{"$f":"LEN(Table_Query_from_SOTAMAS90[[#This Row],[CustomerName]])","v":14}]
["D10201","DOCKSIDE TREASURES","FRIDAY HARBOR","WA","98250",null,"0010",{"$f":"LEN(Table_Query_from_SOTAMAS90[[#This Row],[CustomerName]])","v":18}]
["D16300","DOLLAR TREE MERCHANDISING","Chesapeake","VA","23320",null,"0016",{"$f":"LEN(Table_Query_from_SOTAMAS90[[#This Row],[CustomerName]])","v":25}]
["D16222","DON JOHNS SUPERIOR FLOORS, INC","PALM BAY","FL","32907",null,"0016",{"$f":"LEN(Table_Query_from_SOTAMAS90[[#This Row],[CustomerName]])","v":30}]
["D16999","DONATIONS",null,null,null,null,"0016",{"$f":"LEN(Table_Query_from_SOTAMAS90[[#This Row],[CustomerName]])","v":9}]
["D09315","DONCKERS CANDIES & GIFTS","MARQUETTE","MI","49855",null,"0009",{"$f":"LEN(Table_Query_from_SOTAMAS90[[#This Row],[CustomerName]])","v":24}]
["D16304","DON'S SALES","STEVENS POINT","WI","54481",null,"0016",{"$f":"LEN(Table_Query_from_SOTAMAS90[[#This Row],[CustomerName]])","v":11}]
["D16115","DOOR COUNTY CANDY","STURGEON BAY","WI","54235",null,"0016",{"$f":"LEN(Table_Query_from_SOTAMAS90[[#This Row],[CustomerName]])","v":17}]
["D16206","DOOR COUNTY CONFECTIONERY","STURGEON BAY","WI","54235","NANCY@DOORCOUNTYCONFECTIONERY.COM","0009",{"$f":"LEN(Table_Query_from_SOTAMAS90[[#This Row],[CustomerName]])","v":25}]
["D16113","DOUBLE H BAR","JACKSON","WY","83002",null,"0016",{"$f":"LEN(Table_Query_from_SOTAMAS90[[#This Row],[CustomerName]])","v":12}]
["D16204","DOUG MURDICK'S FUDGE","Traverse City","MI","49684",null,"0016",{"$f":"LEN(Table_Query_from_SOTAMAS90[[#This Row],[CustomerName]])","v":20}]
["C16353","DOWDLE FOLK ART","Lehi","UT","84043",null,"0016",{"$f":"LEN(Table_Query_from_SOTAMAS90[[#This Row],[CustomerName]])","v":15}]
["D16208","DOWN EAST CANDIES","BOOTHBAY HARBOR","ME","04538",null,"0013",{"$f":"LEN(Table_Query_from_SOTAMAS90[[#This Row],[CustomerName]])","v":17}]
["D09208","DOWN HOME DELI","DELAVAN","WI","53115",null,"0009",{"$f":"LEN(Table_Query_from_SOTAMAS90[[#This Row],[CustomerName]])","v":14}]
["D16320","DOWNEY'S","SOLVANG","CA","93463","kkrsolvca@aol.com","0016",{"$f":"LEN(Table_Query_from_SOTAMAS90[[#This Row],[CustomerName]])","v":8}]
["D11322","DOYLE'S","HAYDEN LAKE","ID","83835",null,"0008",{"$f":"LEN(Table_Query_from_SOTAMAS90[[#This Row],[CustomerName]])","v":7}]
["D16214","DR. ROOTBEER'S INC","NORTH MYRTLE BEACH","SC","29582",null,"0016",{"$f":"LEN(Table_Query_from_SOTAMAS90[[#This Row],[CustomerName]])","v":18}]
["D16110","DREAM POINT DESIGN","DENHAM SPRINGS","LA","70726",null,"0016",{"$f":"LEN(Table_Query_from_SOTAMAS90[[#This Row],[CustomerName]])","v":18}]
["D16108","DREAMS AND DELIGHTS","SANDY","UT","84092",null,"0016",{"$f":"LEN(Table_Query_from_SOTAMAS90[[#This Row],[CustomerName]])","v":19}]
["D16220","DRIVE MARKETING","SANDY","UT","84070",null,"0016",{"$f":"LEN(Table_Query_from_SOTAMAS90[[#This Row],[CustomerName]])","v":15}]
["D06101","DROVERS RUN AT JAQUES SPUR","Culdesac","ID","83524","ARIBERRY@GMAIL.COM","0009",{"$f":"LEN(Table_Query_from_SOTAMAS90[[#This Row],[CustomerName]])","v":26}]
["D12117","DRUG EMPORIUM","WACO","TX","76710",null,"0012",{"$f":"LEN(Table_Query_from_SOTAMAS90[[#This Row],[CustomerName]])","v":13}]
["D12101","DRUG EMPORIUM STORE 101","DENTON","TX","76201",null,"0012",{"$f":"LEN(Table_Query_from_SOTAMAS90[[#This Row],[CustomerName]])","v":23}]
["D12200","DRUG EMPORIUM STORE 200","LONGVIEW","TX","75604",null,"0012",{"$f":"LEN(Table_Query_from_SOTAMAS90[[#This Row],[CustomerName]])","v":23}]
["D12240","DRUG EMPORIUM STORE 240","LITTLE ROCK","AR","72205",null,"0012",{"$f":"LEN(Table_Query_from_SOTAMAS90[[#This Row],[CustomerName]])","v":23}]
["D12262","DRUG EMPORIUM STORE 262","LUBBOCK","TX","79424",null,"0012",{"$f":"LEN(Table_Query_from_SOTAMAS90[[#This Row],[CustomerName]])","v":23}]
["D12273","DRUG EMPORIUM STORE 273","WACO","TX","76710",null,"0012",{"$f":"LEN(Table_Query_from_SOTAMAS90[[#This Row],[CustomerName]])","v":23}]
["D12284","DRUG EMPORIUM STORE 284","TYLER","TX","75703",null,"0016",{"$f":"LEN(Table_Query_from_SOTAMAS90[[#This Row],[CustomerName]])","v":23}]
["D12102","DSD SERVICES INC","Shiner","TX","77984",null,"0016",{"$f":"LEN(Table_Query_from_SOTAMAS90[[#This Row],[CustomerName]])","v":16}]
["D16210","DUBBY'S BUY THE OUNCE","CHICAGO","IL","60622",null,"0016",{"$f":"LEN(Table_Query_from_SOTAMAS90[[#This Row],[CustomerName]])","v":21}]
["D13301","DUCK SOUP","SUDBURY","MA","01776",null,"0013",{"$f":"LEN(Table_Query_from_SOTAMAS90[[#This Row],[CustomerName]])","v":9}]
["D09320","DUEBER'S INC.","YOUNG AMERICA","MN","55397-3005",null,"0009",{"$f":"LEN(Table_Query_from_SOTAMAS90[[#This Row],[CustomerName]])","v":13}]
["D16101","DUFFY'S FINE CONFECTIONS","ASTORIA","OR","97103",null,"0010",{"$f":"LEN(Table_Query_from_SOTAMAS90[[#This Row],[CustomerName]])","v":24}]
["D16205","DUGAN'S DAIRY FARM","Chandler","AZ","85248",null,"0016",{"$f":"LEN(Table_Query_from_SOTAMAS90[[#This Row],[CustomerName]])","v":18}]
["D10101","DURIS CUCUMBER FARM","Puyallup","WA","98371",null,"0010",{"$f":"LEN(Table_Query_from_SOTAMAS90[[#This Row],[CustomerName]])","v":19}]
["D13305","DUTCH VALLEY FOOD DIST. INC","MYERSTOWN","PA","17067","AP@DUTCHVALLEYFOODS.COM","0013",{"$f":"LEN(Table_Query_from_SOTAMAS90[[#This Row],[CustomerName]])","v":27}]
["D16301","DUTCHMAN'S HIDDEN VALLEY","HAMILTON","TX","76531","DHR@HTCOM.NET","0016",{"$f":"LEN(Table_Query_from_SOTAMAS90[[#This Row],[CustomerName]])","v":24}]
["D16109","DUVALL TRUE VALUE HARDWARE& GA","Duvall","WA","98019","DSWTVACCOUNTING@TRUEVALUE.NET","0010",{"$f":"LEN(Table_Query_from_SOTAMAS90[[#This Row],[CustomerName]])","v":30}]
["C16256","EAGLE USA","Castro Valley","CA","94546","CLEE@RUNBOX.COM","0016",{"$f":"LEN(Table_Query_from_SOTAMAS90[[#This Row],[CustomerName]])","v":9}]
["E09102","EARTH SPORTS LLC/ EREHWON","ARLINGTON HEIGHTS","IL","60005",null,"0009",{"$f":"LEN(Table_Query_from_SOTAMAS90[[#This Row],[CustomerName]])","v":25}]
["E09101","EAST RIVER NURSERY","HURON","SD","57350",null,"0009",{"$f":"LEN(Table_Query_from_SOTAMAS90[[#This Row],[CustomerName]])","v":18}]
["E16102","EAT'N ICE CREAM, LLC","LOVELAND","CO","80538","TERKLINE@COMCAST.NET","0016",{"$f":"LEN(Table_Query_from_SOTAMAS90[[#This Row],[CustomerName]])","v":20}]
["E16205","EBULKCANDY.COM","Trenton","NJ","08628","must be paid by ccard only/chg card prior to shipp","0013",{"$f":"LEN(Table_Query_from_SOTAMAS90[[#This Row],[CustomerName]])","v":14}]
["E09305","ECKERT'S, INC.","BELLEVILLE","IL","62220-4814",null,"0009",{"$f":"LEN(Table_Query_from_SOTAMAS90[[#This Row],[CustomerName]])","v":14}]
["E07101","EDGEWOOD DESIGNS","HARRISON","OH","45030",null,"0007",{"$f":"LEN(Table_Query_from_SOTAMAS90[[#This Row],[CustomerName]])","v":16}]
["E09304","EHLENBACH'S CHEESE CHALET","DE FOREST","WI","53532",null,"0009",{"$f":"LEN(Table_Query_from_SOTAMAS90[[#This Row],[CustomerName]])","v":25}]
["E09302","EILLIENS CANDIES","GREEN BAY","WI","54304",null,"0009",{"$f":"LEN(Table_Query_from_SOTAMAS90[[#This Row],[CustomerName]])","v":16}]
["A07213","EL AZTECA","FORT WAYNE","IN","46805",null,"0007",{"$f":"LEN(Table_Query_from_SOTAMAS90[[#This Row],[CustomerName]])","v":9}]
["E16210","ELEGANT GOURMET INC.","KIRKLAND","WA","98033",null,"0010",{"$f":"LEN(Table_Query_from_SOTAMAS90[[#This Row],[CustomerName]])","v":20}]
["E16217","ELEVATED ICE CREAM CO.","Port Townsend","WA","98368","candyshop@elevatedicecream.com","0010",{"$f":"LEN(Table_Query_from_SOTAMAS90[[#This Row],[CustomerName]])","v":22}]
["E16215","ELI'S MANHATTEN","NEW YORK","NY","10028",null,"0016",{"$f":"LEN(Table_Query_from_SOTAMAS90[[#This Row],[CustomerName]])","v":15}]
["E08200","ELITCH GARDENS","Denver","CO","80204",null,"0008",{"$f":"LEN(Table_Query_from_SOTAMAS90[[#This Row],[CustomerName]])","v":14}]
["E16107","ELITE INVESTIGATIONS","Las Vegas","NV","89123","JULIAG@ELITEINVESTIGATIONS.COM","0016",{"$f":"LEN(Table_Query_from_SOTAMAS90[[#This Row],[CustomerName]])","v":20}]
["E16308","ELIZABAR.COM","NEW YORK","NY","10128",null,"0016",{"$f":"LEN(Table_Query_from_SOTAMAS90[[#This Row],[CustomerName]])","v":12}]
["E16101","ELLIS ACE HARDWARE","SENECA","IL","61360",null,"0016",{"$f":"LEN(Table_Query_from_SOTAMAS90[[#This Row],[CustomerName]])","v":18}]
["E16202","EMBASSY SUITES HOTEL","SALT LAKE CITY","UT","84101",null,"0016",{"$f":"LEN(Table_Query_from_SOTAMAS90[[#This Row],[CustomerName]])","v":20}]
["E16103","EMPLOYEES",null,null,null,null,"0016",{"$f":"LEN(Table_Query_from_SOTAMAS90[[#This Row],[CustomerName]])","v":9}]
["E09103","END OF THE TRAIL CANDY SHOPPE","Waupun","WI","53963",null,"0009",{"$f":"LEN(Table_Query_from_SOTAMAS90[[#This Row],[CustomerName]])","v":29}]
["E16203","ENSTROM CANDIES","GRAND JUNCTION","CO","81501",null,"0008",{"$f":"LEN(Table_Query_from_SOTAMAS90[[#This Row],[CustomerName]])","v":15}]
["E07100","ENTERTAINMENT JUNCTION","WEST CHESTER","OH","45069","TDUMOND@ENTERTAINMENTJUNCTION.COM","0007",{"$f":"LEN(Table_Query_from_SOTAMAS90[[#This Row],[CustomerName]])","v":22}]
["E16208","EQUITA FINANCIAL","Dallas","TX","75243",null,"0016",{"$f":"LEN(Table_Query_from_SOTAMAS90[[#This Row],[CustomerName]])","v":16}]
["E16305","ESTES PARK TIMES & CANDY","ESTES PARK","CO","80517",null,"0016",{"$f":"LEN(Table_Query_from_SOTAMAS90[[#This Row],[CustomerName]])","v":24}]
["E07201","ESTHER PRICE CANDIES CORP.","DAYTON","OH","45410",null,"0007",{"$f":"LEN(Table_Query_from_SOTAMAS90[[#This Row],[CustomerName]])","v":26}]
["E16105","EULONIA COUNTRY STORE","Townsend","GA","31331",null,"0016",{"$f":"LEN(Table_Query_from_SOTAMAS90[[#This Row],[CustomerName]])","v":21}]
["E16104","EVELYN & ANGELS","Cambridge","MA","02138",null,"0016",{"$f":"LEN(Table_Query_from_SOTAMAS90[[#This Row],[CustomerName]])","v":15}]
["E16206","EVENT NETWORK","SAN DIEGO","CA","92123","NICOLE.STUHLER@EVENTNETWORK.COM","0016",{"$f":"LEN(Table_Query_from_SOTAMAS90[[#This Row],[CustomerName]])","v":13}]
["E16204","EVERGREEN FRIENDS","SEOUL",null,null,null,"0016",{"$f":"LEN(Table_Query_from_SOTAMAS90[[#This Row],[CustomerName]])","v":17}]
["E16201","EVERGREEN MARKET","GREENVILLE","CA","95947",null,"0016",{"$f":"LEN(Table_Query_from_SOTAMAS90[[#This Row],[CustomerName]])","v":16}]
["E10215","EVERYBODY'S STORE","DEMING","WA","98244",null,"0010",{"$f":"LEN(Table_Query_from_SOTAMAS90[[#This Row],[CustomerName]])","v":17}]
["E16207","EVERYTHING SHASTA","Redding","CA","96002","NANCYCURRAN3@YAHOO.COM","0016",{"$f":"LEN(Table_Query_from_SOTAMAS90[[#This Row],[CustomerName]])","v":17}]
["E16318","EXCEL TRADE LTD.","SEATTLE","WA","98199","EXCELTRADE@EARTHLINK.NET","0016",{"$f":"LEN(Table_Query_from_SOTAMAS90[[#This Row],[CustomerName]])","v":16}]
["E16106","EXPRESS FOOD SHOP","Campbell","MO","63933",null,"0016",{"$f":"LEN(Table_Query_from_SOTAMAS90[[#This Row],[CustomerName]])","v":17}]
["F16109","F.S. CHOCOLATIERS","Mansfield","OH","44906",null,"0016",{"$f":"LEN(Table_Query_from_SOTAMAS90[[#This Row],[CustomerName]])","v":17}]
["F09101","FAIR HILLS RESORT","Detroit Lakes","MN","56502","SUSAN@FAIRHILLSRESORT.COM","0009",{"$f":"LEN(Table_Query_from_SOTAMAS90[[#This Row],[CustomerName]])","v":17}]
["F16218","FAMILY FAIR","SOUTH PASADENA","CA","91030","CHARGE THEIR CREDIT CARD IF ACCT IS PAST DUE!","0016",{"$f":"LEN(Table_Query_from_SOTAMAS90[[#This Row],[CustomerName]])","v":11}]
["F16312","FANTA SEA RESORTS","ATLANTIC CITY","NJ","08401",null,"0016",{"$f":"LEN(Table_Query_from_SOTAMAS90[[#This Row],[CustomerName]])","v":17}]
["F16208","FANTASTIC FUDGE","FERNANDINA BEACH","FL","32034","LINDSAY.STANFIELD@GMAIL.COM","0016",{"$f":"LEN(Table_Query_from_SOTAMAS90[[#This Row],[CustomerName]])","v":15}]
["F13301","FAO SCWARTZ","NEW YORK","NY","10153",null,"0013",{"$f":"LEN(Table_Query_from_SOTAMAS90[[#This Row],[CustomerName]])","v":11}]
["F16217","FAR WEST BOOKSTORE","FRESNO","CA","93710",null,"0016",{"$f":"LEN(Table_Query_from_SOTAMAS90[[#This Row],[CustomerName]])","v":18}]
["F16306","FARNER-BOCKEN COMPANY","CARROLL","IA","51401",null,"0016",{"$f":"LEN(Table_Query_from_SOTAMAS90[[#This Row],[CustomerName]])","v":21}]
["F16101","FARNSWORTH FAMILY FARMS","Sandy","UT","84070",null,"0016",{"$f":"LEN(Table_Query_from_SOTAMAS90[[#This Row],[CustomerName]])","v":23}]
["F07303","FAROH CANDIES, INC.","CLEVELAND","OH","44130",null,"0007",{"$f":"LEN(Table_Query_from_SOTAMAS90[[#This Row],[CustomerName]])","v":19}]
["F13201","FASTACHI","WATERTOWN","MA","02472",null,"0013",{"$f":"LEN(Table_Query_from_SOTAMAS90[[#This Row],[CustomerName]])","v":8}]
["F16204","FDR MANAGEMENT GROUP, LLC","HOUSTON","TX","77074",null,"0016",{"$f":"LEN(Table_Query_from_SOTAMAS90[[#This Row],[CustomerName]])","v":25}]
["F09303","FERRIS COFFEE & NUT","GRAND RAPIDS","MI","49504",null,"0009",{"$f":"LEN(Table_Query_from_SOTAMAS90[[#This Row],[CustomerName]])","v":19}]
["F16904","FERRON CITY","FERRON","UT","84523","FERRONCITY@FERRONCITY.ORG","0016",{"$f":"LEN(Table_Query_from_SOTAMAS90[[#This Row],[CustomerName]])","v":11}]
["F10200","FIDDLE STICKS","YAKIMA","WA","98902",null,"0010",{"$f":"LEN(Table_Query_from_SOTAMAS90[[#This Row],[CustomerName]])","v":13}]
["F09301","FIGI'S INC.","MARSHFIELD","WI","54449",null,"0009",{"$f":"LEN(Table_Query_from_SOTAMAS90[[#This Row],[CustomerName]])","v":11}]
["F16201","FINISH LINE","BOISE","ID","83702",null,"0016",{"$f":"LEN(Table_Query_from_SOTAMAS90[[#This Row],[CustomerName]])","v":11}]
["F16226","FIRESIDE INN & CAFE LLC","MANZANITA","OR","97130","SPINDRIFT.INNKEEPER@GMAIL.COM","0010",{"$f":"LEN(Table_Query_from_SOTAMAS90[[#This Row],[CustomerName]])","v":23}]
["G17305","FIRST SOURCE, LLC","Pico Rivera","CA","90660",null,"0017",{"$f":"LEN(Table_Query_from_SOTAMAS90[[#This Row],[CustomerName]])","v":17}]
["F16307","FISH SHANTY","MORRO BAY","CA","93442",null,"0016",{"$f":"LEN(Table_Query_from_SOTAMAS90[[#This Row],[CustomerName]])","v":11}]
["F09204","FLEURISH","Wayzata","MN","55391",null,"0009",{"$f":"LEN(Table_Query_from_SOTAMAS90[[#This Row],[CustomerName]])","v":8}]
["F16210","FLOODWOOD FARM & FEED","FLOODWOOD","MN","55736",null,"0016",{"$f":"LEN(Table_Query_from_SOTAMAS90[[#This Row],[CustomerName]])","v":21}]
["F16105","FLORAL TRADITIONS","Priest River","ID","83856",null,"0016",{"$f":"LEN(Table_Query_from_SOTAMAS90[[#This Row],[CustomerName]])","v":17}]
["F07201","FLOWER FACTORY, INC.","CANTON","OH","44720","MGLOSS@FLOWERFACTORY.INC","0007",{"$f":"LEN(Table_Query_from_SOTAMAS90[[#This Row],[CustomerName]])","v":20}]
["F16206","FONTANA FRUIT & VEGETABLE","ROGERS","AR","72756",null,"0016",{"$f":"LEN(Table_Query_from_SOTAMAS90[[#This Row],[CustomerName]])","v":25}]
["F17311","FOOD 4 LESS - WOODLAND","WOODLAND","CA","95695",null,"0017",{"$f":"LEN(Table_Query_from_SOTAMAS90[[#This Row],[CustomerName]])","v":22}]
["F16223","FOOD EMPORIUM","LYNNWOOD","WA","98037",null,"0010",{"$f":"LEN(Table_Query_from_SOTAMAS90[[#This Row],[CustomerName]])","v":13}]
["F16205","FOOTPRINTS GIFTS","MIRAMAR BEACH","FL","32550",null,"0016",{"$f":"LEN(Table_Query_from_SOTAMAS90[[#This Row],[CustomerName]])","v":16}]
["F09202","FOREVER IN SEASON","PRENTICE","WI","54556",null,"0009",{"$f":"LEN(Table_Query_from_SOTAMAS90[[#This Row],[CustomerName]])","v":17}]
["F16103","FORT LUPTON AMOCO","FORT LUPTON","CO","80621","BDAVIS105@MSN.COM","0016",{"$f":"LEN(Table_Query_from_SOTAMAS90[[#This Row],[CustomerName]])","v":17}]
["F16225","FORT WORTH ZOOLOGICAL ASSOC.","FORT WORTH","TX","76110","CHOOD@FORTWORTHZOO.ORG","0016",{"$f":"LEN(Table_Query_from_SOTAMAS90[[#This Row],[CustomerName]])","v":28}]
["F17320","FOUR SEASON CANDY","San Diego","CA","92120",null,"0017",{"$f":"LEN(Table_Query_from_SOTAMAS90[[#This Row],[CustomerName]])","v":17}]
["F16305","FRANCHISE MANAGEMENT, INC.","SPOKANE","WA","99216",null,"0010",{"$f":"LEN(Table_Query_from_SOTAMAS90[[#This Row],[CustomerName]])","v":26}]
["F16104","FRANK SHIMKUS","MINNEAPOLIS","MN","55431","FSHIMKUS@BBFG.COM","0016",{"$f":"LEN(Table_Query_from_SOTAMAS90[[#This Row],[CustomerName]])","v":13}]
["F16106","FRANKENMUTH CANDY","FRANKENMUTH","MI","48734",null,"0009",{"$f":"LEN(Table_Query_from_SOTAMAS90[[#This Row],[CustomerName]])","v":17}]
["F10301","FRANKFURTER U.S.A., INC.","SEATTLE","WA","98108",null,"0010",{"$f":"LEN(Table_Query_from_SOTAMAS90[[#This Row],[CustomerName]])","v":24}]
["F07200","FRANNY'S HALLMARK SHOP & GIFT","W. WORTHINGTON","OH","43235",null,"0007",{"$f":"LEN(Table_Query_from_SOTAMAS90[[#This Row],[CustomerName]])","v":29}]
["F13102","FRESH ACRES MARKET","SPRINGFIELD","MA","01129",null,"0013",{"$f":"LEN(Table_Query_from_SOTAMAS90[[#This Row],[CustomerName]])","v":18}]
["F16102","FRIENDS OF SOUTH PASS","SOUTH PASS CITY","WY","82520","LAYMANSUSAN@YMAIL.COM","0016",{"$f":"LEN(Table_Query_from_SOTAMAS90[[#This Row],[CustomerName]])","v":21}]
["F09302","FRITZ COMPANY, INC.","NEWPORT","MN","55055-1542",null,"0009",{"$f":"LEN(Table_Query_from_SOTAMAS90[[#This Row],[CustomerName]])","v":19}]
["F07101","FROM THE HEART GIFTS","BRYAN","OH","43506-1316",null,"0007",{"$f":"LEN(Table_Query_from_SOTAMAS90[[#This Row],[CustomerName]])","v":20}]
["F13302","FRUIT BASKETS UNLIMITED","BEACON FALLS","CT","06403",null,"0013",{"$f":"LEN(Table_Query_from_SOTAMAS90[[#This Row],[CustomerName]])","v":23}]
["F13200","FRUIT CENTER MARKETPLACE","MILTON","MA","02186",null,"0013",{"$f":"LEN(Table_Query_from_SOTAMAS90[[#This Row],[CustomerName]])","v":24}]
["F13202","FRUIT CENTER MARKETPLACE","HINGHAM","MA","02043",null,"0013",{"$f":"LEN(Table_Query_from_SOTAMAS90[[#This Row],[CustomerName]])","v":24}]
["F16202","FS  CHOCOLATIERS","MANSFIELD","OH","44906",null,"0007",{"$f":"LEN(Table_Query_from_SOTAMAS90[[#This Row],[CustomerName]])","v":16}]
["F16303","FUDGE FACTOR, THE","ANACONDA","MT","59711",null,"0016",{"$f":"LEN(Table_Query_from_SOTAMAS90[[#This Row],[CustomerName]])","v":17}]
["F16308","FUDGE FACTORY OF OCEAN CITY","OCEAN CITY","MD","21842",null,"0016",{"$f":"LEN(Table_Query_from_SOTAMAS90[[#This Row],[CustomerName]])","v":27}]
["F16302","FUDGE HOUSE","Danville","CA","94526","SHIP PPD & ADD","0016",{"$f":"LEN(Table_Query_from_SOTAMAS90[[#This Row],[CustomerName]])","v":11}]
["F16107","FUDGEES, INC","CENTRAL LAKE","MI","49622",null,"0016",{"$f":"LEN(Table_Query_from_SOTAMAS90[[#This Row],[CustomerName]])","v":12}]
["F16231","FUDGE'N STUFF","BRANSON","MO","65616",null,"0016",{"$f":"LEN(Table_Query_from_SOTAMAS90[[#This Row],[CustomerName]])","v":13}]
["F16310","FUN FLAVORED FUDGE","Houston","TX","77042","MNEWMAN@FUNFLAVOREDFUDGE.COM","0007",{"$f":"LEN(Table_Query_from_SOTAMAS90[[#This Row],[CustomerName]])","v":18}]
["F16203","FUZZIWIGS CANDY COMP","Lewis Center","OH","43035",null,"0007",{"$f":"LEN(Table_Query_from_SOTAMAS90[[#This Row],[CustomerName]])","v":20}]
["F16207","FUZZIWIG'S CANDY FACTORY","BIRMINGHAM","MI","48009","FAX (970)870-8618","0016",{"$f":"LEN(Table_Query_from_SOTAMAS90[[#This Row],[CustomerName]])","v":24}]
["F16255","FUZZIWIG'S CANDY FACTORY","Peoria","IL","61615",null,"0016",{"$f":"LEN(Table_Query_from_SOTAMAS90[[#This Row],[CustomerName]])","v":24}]
["F16209","FUZZIWIG'S CANDY OF DURANGO","DURANGO","CO","81301",null,"0016",{"$f":"LEN(Table_Query_from_SOTAMAS90[[#This Row],[CustomerName]])","v":27}]
["F16311","FUZZIWIG'S CANDY OF ILLINOIS","Gurnee","IL","60031",null,"0016",{"$f":"LEN(Table_Query_from_SOTAMAS90[[#This Row],[CustomerName]])","v":28}]
["F16309","FUZZIWIG'S OF APPLETON","NEENAH","WI","54956",null,"0016",{"$f":"LEN(Table_Query_from_SOTAMAS90[[#This Row],[CustomerName]])","v":22}]
["F16213","FUZZIWIG'S OF STEAMBOAT","STEAMBOAT SPRINGS","CO","80488","LYNN CHRISTENSEN-CONTACT","0016",{"$f":"LEN(Table_Query_from_SOTAMAS90[[#This Row],[CustomerName]])","v":23}]
["G17312","G & G MARKET","SANTA ROSA","CA","95401",null,"0017",{"$f":"LEN(Table_Query_from_SOTAMAS90[[#This Row],[CustomerName]])","v":12}]
["G16206","G & J ACCENTS & GIFTS","HAYS","KS","67601",null,"0016",{"$f":"LEN(Table_Query_from_SOTAMAS90[[#This Row],[CustomerName]])","v":21}]
["G16302","GALENA'S KANDY KITCHEN","GALENA","IL","61036",null,"0016",{"$f":"LEN(Table_Query_from_SOTAMAS90[[#This Row],[CustomerName]])","v":22}]
["G07304","GALERIE AU CHOCOLAT","HEBRON","KY","41048",null,"0007",{"$f":"LEN(Table_Query_from_SOTAMAS90[[#This Row],[CustomerName]])","v":19}]
["B16268","GAP ACCOUNT CO.","THE WOODLANDS","TX","77387",null,"0016",{"$f":"LEN(Table_Query_from_SOTAMAS90[[#This Row],[CustomerName]])","v":15}]
["G12206","GARDEN RIDGE","KATY","TX","77491",null,"0012",{"$f":"LEN(Table_Query_from_SOTAMAS90[[#This Row],[CustomerName]])","v":12}]
["G16222","GARRY OWEN CONOCO","GARRYOWEN","MT","59031",null,"0016",{"$f":"LEN(Table_Query_from_SOTAMAS90[[#This Row],[CustomerName]])","v":17}]
["G09101","GATEWAY GENERAL","KABETOGAMA","MN","56669","GATEWAYBP_2003@YAHOO.COM","0009",{"$f":"LEN(Table_Query_from_SOTAMAS90[[#This Row],[CustomerName]])","v":15}]
["G16230","GELATO ENTERPRISES","PROVO","UT","84604",null,"0016",{"$f":"LEN(Table_Query_from_SOTAMAS90[[#This Row],[CustomerName]])","v":18}]
["G16113","GEM BERRY PRODUCTS","SANDPOINT","ID","83864",null,"0016",{"$f":"LEN(Table_Query_from_SOTAMAS90[[#This Row],[CustomerName]])","v":18}]
["G11305","GEM STATE DISTRIBUTORS","POCATELLO","ID","83201",null,"0008",{"$f":"LEN(Table_Query_from_SOTAMAS90[[#This Row],[CustomerName]])","v":22}]
["G12305","GENERAL DISTRIBUTORS","Albuquerque","NM","87113",null,"0012",{"$f":"LEN(Table_Query_from_SOTAMAS90[[#This Row],[CustomerName]])","v":20}]
["G09202","GENERAL STORE OF MINNETONKA","MINNETONKA","MN","55345","LIZ@GENERALSTOREOFMINNETONKA.COM","0009",{"$f":"LEN(Table_Query_from_SOTAMAS90[[#This Row],[CustomerName]])","v":27}]
["G16201","GENERATOR EXCHANGE","WEST JORDAN","UT","84081",null,"0016",{"$f":"LEN(Table_Query_from_SOTAMAS90[[#This Row],[CustomerName]])","v":18}]
["C16108","GENERIC ACCOUNTS",null,null,null,null,"0016",{"$f":"LEN(Table_Query_from_SOTAMAS90[[#This Row],[CustomerName]])","v":16}]
["G09304","GENEVA GIFTS","LAKE GENEVA","WI","53147","GENEVAGIFTS@SBCGLOBAL.NET","0009",{"$f":"LEN(Table_Query_from_SOTAMAS90[[#This Row],[CustomerName]])","v":12}]
["G16102","GENNIE'S CANDY KITCHEN","UNIVERSITY PLACE","WA","98466",null,"0016",{"$f":"LEN(Table_Query_from_SOTAMAS90[[#This Row],[CustomerName]])","v":22}]
["G16207","GENOA CANDY & COFFEE COMP","CARSON CITY","NV","89701",null,"0016",{"$f":"LEN(Table_Query_from_SOTAMAS90[[#This Row],[CustomerName]])","v":25}]
["G16210","GENOA CANDY & COFFEE COMP","Genoa","NV","89411",null,"0016",{"$f":"LEN(Table_Query_from_SOTAMAS90[[#This Row],[CustomerName]])","v":25}]
["G16303","GEORGIA NUT COMPANY","SKOKIE","IL","60077",null,"0016",{"$f":"LEN(Table_Query_from_SOTAMAS90[[#This Row],[CustomerName]])","v":19}]
["G16301","GERMACK PISTACHIO COMPANY","DETROIT","MI","48207","BILL@GERMACK.COM","0016",{"$f":"LEN(Table_Query_from_SOTAMAS90[[#This Row],[CustomerName]])","v":25}]
["G09213","GERTEN GREENHOUSE","INVER GROVE HEIGHTS","MN","55076",null,"0009",{"$f":"LEN(Table_Query_from_SOTAMAS90[[#This Row],[CustomerName]])","v":17}]
["G17202","GIA FOODS CO","Pleasanton","CA","94588",null,"0017",{"$f":"LEN(Table_Query_from_SOTAMAS90[[#This Row],[CustomerName]])","v":12}]
["G16106","GIAMBRI'S CANDIES","CLEMENTON","NJ","08021",null,"0016",{"$f":"LEN(Table_Query_from_SOTAMAS90[[#This Row],[CustomerName]])","v":17}]
["G13304","GIANT ARTICHOKE","CASTROVILLE","CA","95012",null,"0017",{"$f":"LEN(Table_Query_from_SOTAMAS90[[#This Row],[CustomerName]])","v":15}]
["G07201","GIANT EAGLE STORE #14","BETHEL PARK","PA","15102",null,"0007",{"$f":"LEN(Table_Query_from_SOTAMAS90[[#This Row],[CustomerName]])","v":21}]
["G07202","GIANT EAGLE STORE #40","PITTSBURGH","PA","15232",null,"0007",{"$f":"LEN(Table_Query_from_SOTAMAS90[[#This Row],[CustomerName]])","v":21}]
["G07203","GIANT EAGLE STORE #47","PITTSBURGH","PA","15205",null,"0007",{"$f":"LEN(Table_Query_from_SOTAMAS90[[#This Row],[CustomerName]])","v":21}]
["D16215","GIBSON WHOLESALE CO. INC.","WICHITA","KS","67203","SCOTTQBARNEYS@KSCOXMAIL.COM","0016",{"$f":"LEN(Table_Query_from_SOTAMAS90[[#This Row],[CustomerName]])","v":25}]
["G16307","GIFT BASKET AFFAIRS","Salt Lake City","UT","84111","GBA@CONNECT2.COM","0016",{"$f":"LEN(Table_Query_from_SOTAMAS90[[#This Row],[CustomerName]])","v":19}]
["G13201","GIFT BASKET GALLERY","WESTWOOD","NJ","07657",null,"0013",{"$f":"LEN(Table_Query_from_SOTAMAS90[[#This Row],[CustomerName]])","v":19}]
["G16304","GIFTED ONES","LONG ISLAND CITY","NY","11101",null,"0016",{"$f":"LEN(Table_Query_from_SOTAMAS90[[#This Row],[CustomerName]])","v":11}]
["G16254","GIFTHOUNDS",null,null,null,null,"0016",{"$f":"LEN(Table_Query_from_SOTAMAS90[[#This Row],[CustomerName]])","v":10}]
["G10217","GIFTS AHOY-SEASHANTY","WESTPORT","WA","98595","DGSTEEN@YAHOO.COM","0010",{"$f":"LEN(Table_Query_from_SOTAMAS90[[#This Row],[CustomerName]])","v":20}]
["G16108","GIFTS GREETINGS AND GOURMET","DAVENPORT","IA","52801",null,"0016",{"$f":"LEN(Table_Query_from_SOTAMAS90[[#This Row],[CustomerName]])","v":27}]
["G13200","GIFTS IN A BASKET","SOUTHINGTON","CT","06489",null,"0013",{"$f":"LEN(Table_Query_from_SOTAMAS90[[#This Row],[CustomerName]])","v":17}]
["G09102","GILBERT CHOCOLATES","Jackson","MI","49201",null,"0009",{"$f":"LEN(Table_Query_from_SOTAMAS90[[#This Row],[CustomerName]])","v":18}]
["G16101","GIRLFRIENDS","SARATOGA SPRINGS","UT","84045",null,"0016",{"$f":"LEN(Table_Query_from_SOTAMAS90[[#This Row],[CustomerName]])","v":11}]
["G16256","GIVEFAVORS, INC","IRVINE","CA","92603",null,"0016",{"$f":"LEN(Table_Query_from_SOTAMAS90[[#This Row],[CustomerName]])","v":15}]
["G16200","GLACIER CANDY","BIGFORK","MT","59911",null,"0006",{"$f":"LEN(Table_Query_from_SOTAMAS90[[#This Row],[CustomerName]])","v":13}]
["G11301","GLACIER WHOLESALERS, INC.","KALISPELL","MT","59903",null,"0006",{"$f":"LEN(Table_Query_from_SOTAMAS90[[#This Row],[CustomerName]])","v":25}]
["G16202","GLITZ GIFT STORES LLC","CLEARFIELD","UT","84015",null,"0016",{"$f":"LEN(Table_Query_from_SOTAMAS90[[#This Row],[CustomerName]])","v":21}]
["G16208","GLITZ SHERATON","SALT LAKE CITY","UT","84101",null,"0016",{"$f":"LEN(Table_Query_from_SOTAMAS90[[#This Row],[CustomerName]])","v":14}]
["G16211","GMAX MARKETING","HELENA","MT","59601",null,"0016",{"$f":"LEN(Table_Query_from_SOTAMAS90[[#This Row],[CustomerName]])","v":14}]
["G16116","GOETZ COMPANY","Portage","WI","53901-0489",null,"0016",{"$f":"LEN(Table_Query_from_SOTAMAS90[[#This Row],[CustomerName]])","v":13}]
["G17201","GOLDA & I","SANTA ANA","CA","92705",null,"0017",{"$f":"LEN(Table_Query_from_SOTAMAS90[[#This Row],[CustomerName]])","v":9}]
["G16204","GOLDEN ASPEN CANDY & TOY STORE","FLAGSTAFF","AZ","86003","ANAYAFFRAN@YAHOO.COM","0016",{"$f":"LEN(Table_Query_from_SOTAMAS90[[#This Row],[CustomerName]])","v":30}]
["G16105","GOLDEN EAGLE COUNTRY STORE","GOLDEN EAGLE","IL","62036",null,"0016",{"$f":"LEN(Table_Query_from_SOTAMAS90[[#This Row],[CustomerName]])","v":26}]
["G16310","GOLDEN GATE CANDY","YUMA","AZ","85367",null,"0016",{"$f":"LEN(Table_Query_from_SOTAMAS90[[#This Row],[CustomerName]])","v":17}]
["G16103","GOLDEN SWEETS, LLC","GOLDEN","CO","80401",null,"0016",{"$f":"LEN(Table_Query_from_SOTAMAS90[[#This Row],[CustomerName]])","v":18}]
["G09206","GOLDMANNS","MILWAUKEE","WI","53204",null,"0009",{"$f":"LEN(Table_Query_from_SOTAMAS90[[#This Row],[CustomerName]])","v":9}]
["G16205","GOLDMINER'S NUTS & CANDY","MANITOU SPRINGS","CO","80829",null,"0009",{"$f":"LEN(Table_Query_from_SOTAMAS90[[#This Row],[CustomerName]])","v":24}]
["G10201","GOODIES","BREMERTON","WA","98337",null,"0010",{"$f":"LEN(Table_Query_from_SOTAMAS90[[#This Row],[CustomerName]])","v":7}]
["G16215","GOODIES BY THE SEA","NEWPORT","RI","02840",null,"0013",{"$f":"LEN(Table_Query_from_SOTAMAS90[[#This Row],[CustomerName]])","v":18}]
["G09310","GOODY-GOODY GUMDROP KITCHEN","WISCONSIN DELLS","WI","53965",null,"0009",{"$f":"LEN(Table_Query_from_SOTAMAS90[[#This Row],[CustomerName]])","v":27}]
["G16228","GOPHER GLEN APPLE FARM","SAN LUIS OBISPO","CA","93405",null,"0016",{"$f":"LEN(Table_Query_from_SOTAMAS90[[#This Row],[CustomerName]])","v":22}]
["G07350","GORANT CANDIES","CLEVELAND","OH","44144-2398",null,"0007",{"$f":"LEN(Table_Query_from_SOTAMAS90[[#This Row],[CustomerName]])","v":14}]
["G07101","GORANT CHOCOLATIER","YOUNGSTOWN","OH","44515",null,"0007",{"$f":"LEN(Table_Query_from_SOTAMAS90[[#This Row],[CustomerName]])","v":18}]
["G15310","GORDY'S GIFT & GARDEN CENTER","DULUTH","MN","55811",null,"0009",{"$f":"LEN(Table_Query_from_SOTAMAS90[[#This Row],[CustomerName]])","v":28}]
["G16305","GOURMET DELIGHTZ","Stillwater","OK","74074",null,"0016",{"$f":"LEN(Table_Query_from_SOTAMAS90[[#This Row],[CustomerName]])","v":16}]
["G16218","GOURMET DISTRIBUTORS LTD.","CALGARY","AB","T2H1L8","TERRYV@GOURMETDISTRIBUTORS.COM","0016",{"$f":"LEN(Table_Query_from_SOTAMAS90[[#This Row],[CustomerName]])","v":25}]
["G16104","GOURMET DU VILLAGE MORIN HEIGH","MORIN HEIGHTS","QC","J0R1H0","GWENAELLES@GOURMETDUVILLAGE.COM","0016",{"$f":"LEN(Table_Query_from_SOTAMAS90[[#This Row],[CustomerName]])","v":30}]
["G16212","GRACIE'S CORNER","OAKRIDGE","OR","97463",null,"0010",{"$f":"LEN(Table_Query_from_SOTAMAS90[[#This Row],[CustomerName]])","v":15}]
["G07301","GRAETER'S","CINCINNATI","OH","45216",null,"0007",{"$f":"LEN(Table_Query_from_SOTAMAS90[[#This Row],[CustomerName]])","v":9}]
["G16111","GRAHAMS CHOCOLATES","GENEVA","IL","60134","grahamsorders@sbcglobal.net","0016",{"$f":"LEN(Table_Query_from_SOTAMAS90[[#This Row],[CustomerName]])","v":18}]
["G16114","GRAND AMERICA HOTEL","SALT LAKE CITY","UT","84111",null,"0016",{"$f":"LEN(Table_Query_from_SOTAMAS90[[#This Row],[CustomerName]])","v":19}]
["G16117","GRAND CASINO MILLE LACS","ONAMIA","MN","56359","korth@grcasinos.com","0016",{"$f":"LEN(Table_Query_from_SOTAMAS90[[#This Row],[CustomerName]])","v":23}]
["G09215","GRANDMA'S CANDIES","OCONTO","WI","54153",null,"0009",{"$f":"LEN(Table_Query_from_SOTAMAS90[[#This Row],[CustomerName]])","v":17}]
["G16306","GRANDMA'S CANDY KITCHEN","LAKE OZARK","MO","65049","PAGESTORESLLC@SBCGLOBAL.NET","0016",{"$f":"LEN(Table_Query_from_SOTAMAS90[[#This Row],[CustomerName]])","v":23}]
["G16112","GRANDMA'S PUMPKIN PATCH","HEALDSBURG","CA","95448",null,"0016",{"$f":"LEN(Table_Query_from_SOTAMAS90[[#This Row],[CustomerName]])","v":23}]
["G16213","GRANDPA SHORTER'S GIFTS","PETOSKEY","MI","49770",null,"0016",{"$f":"LEN(Table_Query_from_SOTAMAS90[[#This Row],[CustomerName]])","v":23}]
["G10210","GRANNY HAZEL'S","WESTPORT","WA","98595",null,"0010",{"$f":"LEN(Table_Query_from_SOTAMAS90[[#This Row],[CustomerName]])","v":14}]
["G09312","GRANNY'S PANTRY","BATTLE LAKE","MN","56515",null,"0009",{"$f":"LEN(Table_Query_from_SOTAMAS90[[#This Row],[CustomerName]])","v":15}]
["G09201","GRASCH'S FOOD MARKET","BROOKFIELD","WI","53005",null,"0009",{"$f":"LEN(Table_Query_from_SOTAMAS90[[#This Row],[CustomerName]])","v":20}]
["G16220","GRAY BEAR TRADING POST","LIBBY","MT","59923",null,"0016",{"$f":"LEN(Table_Query_from_SOTAMAS90[[#This Row],[CustomerName]])","v":22}]
["G16255","GREAT IDEAS","PLANO","TX","75023",null,"0016",{"$f":"LEN(Table_Query_from_SOTAMAS90[[#This Row],[CustomerName]])","v":11}]
["G10310","GREAT NORTHWEST POPCORN","TACOMA","WA","98402","PAT.GRIMES@COMCAST.NET","0010",{"$f":"LEN(Table_Query_from_SOTAMAS90[[#This Row],[CustomerName]])","v":23}]
["G10202","GREENWOOD MARKET","SEATTLE","WA","98107",null,"0010",{"$f":"LEN(Table_Query_from_SOTAMAS90[[#This Row],[CustomerName]])","v":16}]
["G09300","GROUPON GOODS, INC.","Chicago","IL","60654",null,"0009",{"$f":"LEN(Table_Query_from_SOTAMAS90[[#This Row],[CustomerName]])","v":19}]
["G16223","GRUESER ENTERPRISES","STEAMBOAT SPRINGS","CO","80488",null,"0016",{"$f":"LEN(Table_Query_from_SOTAMAS90[[#This Row],[CustomerName]])","v":19}]
["G12307","GRUMPE'S SPECIALTIES","BAIRD","TX","79504",null,"0016",{"$f":"LEN(Table_Query_from_SOTAMAS90[[#This Row],[CustomerName]])","v":20}]
["G16260","GUMDROP TREE, THE","AITKIN","MN","56431",null,"0016",{"$f":"LEN(Table_Query_from_SOTAMAS90[[#This Row],[CustomerName]])","v":17}]
["G16219","GUY'S CONCESSIONS","MONTICELLO","IN","47960",null,"0007",{"$f":"LEN(Table_Query_from_SOTAMAS90[[#This Row],[CustomerName]])","v":17}]
["H11304","H & M DISTRIBUTING","TWIN FALLS","ID","83303",null,"0004",{"$f":"LEN(Table_Query_from_SOTAMAS90[[#This Row],[CustomerName]])","v":18}]
["H06201","HAIR DYNAMICS/IT'S A GIFT","SALT LAKE CITY","UT","84117",null,"0006",{"$f":"LEN(Table_Query_from_SOTAMAS90[[#This Row],[CustomerName]])","v":25}]
["H08101","HAMMOND CANDIES","DENVER","CO","80216",null,"0008",{"$f":"LEN(Table_Query_from_SOTAMAS90[[#This Row],[CustomerName]])","v":15}]
["H09201","HAMMOND JAKLICH INC.","MADISON","WI","53703",null,"0009",{"$f":"LEN(Table_Query_from_SOTAMAS90[[#This Row],[CustomerName]])","v":20}]
["H16210","HAMPTON CLEANERS","OGDEN","UT","84403",null,"0016",{"$f":"LEN(Table_Query_from_SOTAMAS90[[#This Row],[CustomerName]])","v":16}]
["H16224","HAMPTON INN & SUITES SALT LAKE","SALT LAKE CITY","UT","84116",null,"0016",{"$f":"LEN(Table_Query_from_SOTAMAS90[[#This Row],[CustomerName]])","v":30}]
["H16206","HAMPTON INN FARMINGTON","FARMINGTON","UT","84025",null,"0016",{"$f":"LEN(Table_Query_from_SOTAMAS90[[#This Row],[CustomerName]])","v":22}]
["H09200","HANDI MEDICAL SUPPLY","SAINT PAUL","MN","55114",null,"0009",{"$f":"LEN(Table_Query_from_SOTAMAS90[[#This Row],[CustomerName]])","v":20}]
["H16112","HANSEL'S ACE HARDWARE","ARCATA","CA","95521",null,"0016",{"$f":"LEN(Table_Query_from_SOTAMAS90[[#This Row],[CustomerName]])","v":21}]
["H16222","HAPPY THOUGHTS","VISALIA","CA","93277",null,"0016",{"$f":"LEN(Table_Query_from_SOTAMAS90[[#This Row],[CustomerName]])","v":14}]
["H10202","HARBORVIEW MEDICAL CENTER","SEATTLE","WA","98104-2499",null,"0010",{"$f":"LEN(Table_Query_from_SOTAMAS90[[#This Row],[CustomerName]])","v":25}]
["H11313","HARMONS","WEST VALLEY CITY","UT","84119",null,"0004",{"$f":"LEN(Table_Query_from_SOTAMAS90[[#This Row],[CustomerName]])","v":7}]
["H16304","HARRAH'S RENO","RENO","NV","89504",null,"0016",{"$f":"LEN(Table_Query_from_SOTAMAS90[[#This Row],[CustomerName]])","v":13}]
["F07301","HARRY LONDON/FANNIE MAY BRANDS","CANTON","OH","44720",null,"0007",{"$f":"LEN(Table_Query_from_SOTAMAS90[[#This Row],[CustomerName]])","v":30}]
["G16110","HARVEY GLADE","SALT LAKE CITY","UT","84147-0558",null,"0016",{"$f":"LEN(Table_Query_from_SOTAMAS90[[#This Row],[CustomerName]])","v":12}]
["H10201","HAWTHORNE COFFEE MERCHANT","PORTLAND","OR","97214",null,"0010",{"$f":"LEN(Table_Query_from_SOTAMAS90[[#This Row],[CustomerName]])","v":25}]
["H16217","HAZELWOOD","PHOENIX","AZ","85008",null,"0016",{"$f":"LEN(Table_Query_from_SOTAMAS90[[#This Row],[CustomerName]])","v":9}]
["H16105","HEALTH RESOURCE AMERICAN CORP","PERRYVILLE","MD","21903",null,"0016",{"$f":"LEN(Table_Query_from_SOTAMAS90[[#This Row],[CustomerName]])","v":29}]
["H16305","HEART OF AMERICA","MOLINE","IL","61265",null,"0016",{"$f":"LEN(Table_Query_from_SOTAMAS90[[#This Row],[CustomerName]])","v":16}]
["H16203","HEARTLAND SPECIALTY PRODUCTS","Creal Springs","IL","62922","SHAWN757817@AOL.COM","0016",{"$f":"LEN(Table_Query_from_SOTAMAS90[[#This Row],[CustomerName]])","v":28}]
["H16202","HEBER CITY THEATRE, LLC","Heber City","UT","84032",null,"0016",{"$f":"LEN(Table_Query_from_SOTAMAS90[[#This Row],[CustomerName]])","v":23}]
["H10101","HEIDI'S SWEET SHOP","GIG HARBOR","WA","98335",null,"0010",{"$f":"LEN(Table_Query_from_SOTAMAS90[[#This Row],[CustomerName]])","v":18}]
["H09218","HEILMAN'S NUT & CONFECTIONERY","KALAMAZOO","MI","49008","HEILMANSNUT@GMAIL.COM","0009",{"$f":"LEN(Table_Query_from_SOTAMAS90[[#This Row],[CustomerName]])","v":29}]
["H16320","HELEN'S CANDIES","LIBBY","MT","59923",null,"0016",{"$f":"LEN(Table_Query_from_SOTAMAS90[[#This Row],[CustomerName]])","v":15}]
["H16101","HENDERSON NUT FACTORY","LAFAYETTE","CA","94549",null,"0016",{"$f":"LEN(Table_Query_from_SOTAMAS90[[#This Row],[CustomerName]])","v":21}]
["H07101","HENDRICK REGIONAL HEALTH","Danville","IN","46122",null,"0007",{"$f":"LEN(Table_Query_from_SOTAMAS90[[#This Row],[CustomerName]])","v":24}]
["H16104","HENFEATHERS","FREDERICKSBURG","TX","78624",null,"0016",{"$f":"LEN(Table_Query_from_SOTAMAS90[[#This Row],[CustomerName]])","v":11}]
["H06202","HENNY PENNY PRODUCE","Nampa","ID","83651",null,"0006",{"$f":"LEN(Table_Query_from_SOTAMAS90[[#This Row],[CustomerName]])","v":19}]
["H16110","HENRY RADIO INC","Los Angeles","CA","90066",null,"0016",{"$f":"LEN(Table_Query_from_SOTAMAS90[[#This Row],[CustomerName]])","v":15}]
["H09205","HENRY'S","PRINCETON","WI","54968",null,"0009",{"$f":"LEN(Table_Query_from_SOTAMAS90[[#This Row],[CustomerName]])","v":7}]
["H16205","HENRY'S HOSPITALITY GROUP","HENDERSON","NV","89012",null,"0016",{"$f":"LEN(Table_Query_from_SOTAMAS90[[#This Row],[CustomerName]])","v":25}]
["H16208","HEPH-ZI-BAH","WISCONSIN RAPIDS","WI","54495",null,"0016",{"$f":"LEN(Table_Query_from_SOTAMAS90[[#This Row],[CustomerName]])","v":11}]
["H17201","HERITAGE CANDY CO.","VAN NUYS","CA","91406",null,"0017",{"$f":"LEN(Table_Query_from_SOTAMAS90[[#This Row],[CustomerName]])","v":18}]
["H07201","HERITAGE CENTER","SPRINGFIELD","OH","45502",null,"0007",{"$f":"LEN(Table_Query_from_SOTAMAS90[[#This Row],[CustomerName]])","v":15}]
["H13201","HEROLDS FARM MARKET","GLENN ROCK","NJ","07450",null,"0013",{"$f":"LEN(Table_Query_from_SOTAMAS90[[#This Row],[CustomerName]])","v":19}]
["H16107","HERSCHEND FAMILY ENTERTAINMENT","BRANSON","MO","65616",null,"0016",{"$f":"LEN(Table_Query_from_SOTAMAS90[[#This Row],[CustomerName]])","v":30}]
["H16111","HERSCHEND FAMILY ENTERTAINMENT","Branson","MO","65616","MYOUNGER@SILVERDOLLARCITY.COM","0016",{"$f":"LEN(Table_Query_from_SOTAMAS90[[#This Row],[CustomerName]])","v":30}]
["H06101","HI COUNTRY SNACK FOODS","LINCOLN","MT","59639",null,"0006",{"$f":"LEN(Table_Query_from_SOTAMAS90[[#This Row],[CustomerName]])","v":22}]
["H16109","HICKORY HOUSE BBQ & CANDYLAND","DENISON","TX","75020",null,"0016",{"$f":"LEN(Table_Query_from_SOTAMAS90[[#This Row],[CustomerName]])","v":29}]
["H16209","HI-FLYERS KITES & THINGS","PACIFIC BEACH","WA","98571",null,"0010",{"$f":"LEN(Table_Query_from_SOTAMAS90[[#This Row],[CustomerName]])","v":24}]
["H16323","HIGH MARK","North Salt Lake","UT","84054",null,"0016",{"$f":"LEN(Table_Query_from_SOTAMAS90[[#This Row],[CustomerName]])","v":9}]
["H16108","HIGHLAND POP","HIGHLAND PARK","IL","60035",null,"0016",{"$f":"LEN(Table_Query_from_SOTAMAS90[[#This Row],[CustomerName]])","v":12}]
["H09102","HILL COUNTRY MARKET LLC","Salem","WI","53168",null,"0009",{"$f":"LEN(Table_Query_from_SOTAMAS90[[#This Row],[CustomerName]])","v":23}]
["H16207","HILL TOP FRUIT MARKET","GRANTSVILLE","MD","21536",null,"0016",{"$f":"LEN(Table_Query_from_SOTAMAS90[[#This Row],[CustomerName]])","v":21}]
["H16102","HILO COFFEE MILL","Kurtistown","HI","96760",null,"0016",{"$f":"LEN(Table_Query_from_SOTAMAS90[[#This Row],[CustomerName]])","v":16}]
["H16215","HILTON @ MELBOURNE BEACH","Indialantic","FL","32903",null,"0016",{"$f":"LEN(Table_Query_from_SOTAMAS90[[#This Row],[CustomerName]])","v":24}]
["C16259","HILTON HEAD CANDY","HILTON HEAD ISLAND","SC","29926","CHRIS@HILTONHEADCANDY.COM","0016",{"$f":"LEN(Table_Query_from_SOTAMAS90[[#This Row],[CustomerName]])","v":17}]
["H16201","HILTON -SALT LAKE CENTER","SALT LAKE CITY","UT","84101",null,"0016",{"$f":"LEN(Table_Query_from_SOTAMAS90[[#This Row],[CustomerName]])","v":24}]
["H13200","HILZINGER FARMS","CHESHIRE","CT","06410",null,"0013",{"$f":"LEN(Table_Query_from_SOTAMAS90[[#This Row],[CustomerName]])","v":15}]
["H12311","HOBBY LOBBY WAREHOUSE #2","OKLAHOMA CITY","OK","73179",null,"0002",{"$f":"LEN(Table_Query_from_SOTAMAS90[[#This Row],[CustomerName]])","v":24}]
["H16212","HOCKING HILLS ROASTERS &","ROCKBRIDGE","OH","43149","HHROASTERS@VERIZON.NET","0007",{"$f":"LEN(Table_Query_from_SOTAMAS90[[#This Row],[CustomerName]])","v":24}]
["H09101","HOLIDAY MARKET","Canton","MI","48188",null,"0009",{"$f":"LEN(Table_Query_from_SOTAMAS90[[#This Row],[CustomerName]])","v":14}]
["H16340","HOMESPUN","Battle Mountain","NV","89820","HOMESPUN5005@SBCGLOBAL.NET","0016",{"$f":"LEN(Table_Query_from_SOTAMAS90[[#This Row],[CustomerName]])","v":8}]
["H16103","HOMESTEAD GIFT SHOP","Midway","UT","84049",null,"0016",{"$f":"LEN(Table_Query_from_SOTAMAS90[[#This Row],[CustomerName]])","v":19}]
["H11314","HONK'S INC.","BOISE","ID","83709",null,"0004",{"$f":"LEN(Table_Query_from_SOTAMAS90[[#This Row],[CustomerName]])","v":11}]
["H16106","HORIZON MACHINE","TEMPE","AZ","85283","HORIZONMACHINE@AOL.COM","0016",{"$f":"LEN(Table_Query_from_SOTAMAS90[[#This Row],[CustomerName]])","v":15}]
["H16321","HOWELL & WINDHAM ADVERTISING","ODESSA","TX","79760","BROOKEHARPER@HOWELL-WINDHAM.COM","0016",{"$f":"LEN(Table_Query_from_SOTAMAS90[[#This Row],[CustomerName]])","v":28}]
["H16330","HUCKLEBERRY HAVEN, INC.","KALISPELL","MT","59903",null,"0016",{"$f":"LEN(Table_Query_from_SOTAMAS90[[#This Row],[CustomerName]])","v":23}]
["H16310","HUCKLEBERRY MOUNTAIN","JACKSON HOLE","WY","83002",null,"0016",{"$f":"LEN(Table_Query_from_SOTAMAS90[[#This Row],[CustomerName]])","v":20}]
["H06309","HUCKLEBERRY PATCH, THE","SAINT REGIS","MT","59866",null,"0006",{"$f":"LEN(Table_Query_from_SOTAMAS90[[#This Row],[CustomerName]])","v":22}]
["H09303","HUMBIRD CHEESE MART, INC.","TOMAH","WI","54660","HUMBIRDCHEESE@CENTURYTEL.NET","0009",{"$f":"LEN(Table_Query_from_SOTAMAS90[[#This Row],[CustomerName]])","v":25}]
["H16223","HUNGRY FISHERMAN","MORRO BAY","CA","93442",null,"0016",{"$f":"LEN(Table_Query_from_SOTAMAS90[[#This Row],[CustomerName]])","v":16}]
["I16110","I LOVE LICORICE","WALPOLE","NH","03608",null,"0013",{"$f":"LEN(Table_Query_from_SOTAMAS90[[#This Row],[CustomerName]])","v":15}]
["I16204","I LOVE SWEET TREATS","Charleston","SC","29412","TIM@ILOVESWEETTREATS.COM","0016",{"$f":"LEN(Table_Query_from_SOTAMAS90[[#This Row],[CustomerName]])","v":19}]
["I09312","I WANT CANDY","Troy","MI","48083",null,"0009",{"$f":"LEN(Table_Query_from_SOTAMAS90[[#This Row],[CustomerName]])","v":12}]
["I16301","IBC, INC.","VOORHEES","NJ","08043",null,"0016",{"$f":"LEN(Table_Query_from_SOTAMAS90[[#This Row],[CustomerName]])","v":9}]
["I09210","ICE CREAM SHOPPE OF FLORENCE","FLORENCE","WI","54121","ICECREAM232@CHARTER.NET","0009",{"$f":"LEN(Table_Query_from_SOTAMAS90[[#This Row],[CustomerName]])","v":28}]
["I11301","IDAHO CANDY COMPANY","BOISE","ID","83701",null,"0008",{"$f":"LEN(Table_Query_from_SOTAMAS90[[#This Row],[CustomerName]])","v":19}]
["I16203","IDENTITY RESORT WEAR","TRAVERSE CITY","MI","49684","RGIVON@YAHOO.COM","0016",{"$f":"LEN(Table_Query_from_SOTAMAS90[[#This Row],[CustomerName]])","v":20}]
["I16101","IMAGINOS",null,null,null,null,"0016",{"$f":"LEN(Table_Query_from_SOTAMAS90[[#This Row],[CustomerName]])","v":8}]
["I10300","IMPACT CONCESSIONS, LLC.","BELLEVUE","WA","98005",null,"0010",{"$f":"LEN(Table_Query_from_SOTAMAS90[[#This Row],[CustomerName]])","v":24}]
["I09211","IMPERIAL FOODS","Glendale Heights","IL","60139",null,"0009",{"$f":"LEN(Table_Query_from_SOTAMAS90[[#This Row],[CustomerName]])","v":14}]
["I16202","IMPORTS #1","DRAPER","UT","84020",null,"0016",{"$f":"LEN(Table_Query_from_SOTAMAS90[[#This Row],[CustomerName]])","v":10}]
["S16236","INDULDGE SWEETS","SEAL ROCK","OR","97376","99FUDGE@CASCO.NET","0010",{"$f":"LEN(Table_Query_from_SOTAMAS90[[#This Row],[CustomerName]])","v":15}]
["I16201","INFINITE SOURCE DESIGN","SANTA MONICA","CA","90403",null,"0016",{"$f":"LEN(Table_Query_from_SOTAMAS90[[#This Row],[CustomerName]])","v":22}]
["I16207","INN AT THE SHORE","Cannon Beach","OR","97110",null,"0010",{"$f":"LEN(Table_Query_from_SOTAMAS90[[#This Row],[CustomerName]])","v":16}]
["I16103","INTEGRATED SALES GROUP","CHATSWORTH","CA","91311","STEVE EXT.108 (ACCOUNTS PAYABLE)","0016",{"$f":"LEN(Table_Query_from_SOTAMAS90[[#This Row],[CustomerName]])","v":22}]
["I17208","INTERNATIONAL COMMODITY DIST.","GARDEN GROVE","CA","92841",null,"0017",{"$f":"LEN(Table_Query_from_SOTAMAS90[[#This Row],[CustomerName]])","v":29}]
["I16208","INTERNATIONAL FOODSOURCE, LLC","DOVER","NJ","07801",null,"0016",{"$f":"LEN(Table_Query_from_SOTAMAS90[[#This Row],[CustomerName]])","v":29}]
["I16108","INTERNET CUSTOMERS",null,null,null,null,"0016",{"$f":"LEN(Table_Query_from_SOTAMAS90[[#This Row],[CustomerName]])","v":18}]
["I16205","INX INTERNATIONAL INK CO.","SALT LAKE CITY","UT","84104",null,"0016",{"$f":"LEN(Table_Query_from_SOTAMAS90[[#This Row],[CustomerName]])","v":25}]
["I16206","ISLAND BEACH COMPANY","TRURO","NS","B2N 5C1","DWILLIS@ISLANDBEACHCOMPANY.CA","0016",{"$f":"LEN(Table_Query_from_SOTAMAS90[[#This Row],[CustomerName]])","v":20}]
["I10213","ISLAND MARKET","VASHON ISLAND","WA","98070",null,"0010",{"$f":"LEN(Table_Query_from_SOTAMAS90[[#This Row],[CustomerName]])","v":13}]
["I17200","ISLAND SNACKS","BUENA PARK","CA","90621",null,"0017",{"$f":"LEN(Table_Query_from_SOTAMAS90[[#This Row],[CustomerName]])","v":13}]
["I16303","ISLAND TAFFY","KAPOLEI","HI","96707",null,"0016",{"$f":"LEN(Table_Query_from_SOTAMAS90[[#This Row],[CustomerName]])","v":12}]
["I09101","ITASCA STATE PARK","PARK RAPIDS","MN","56470",null,"0009",{"$f":"LEN(Table_Query_from_SOTAMAS90[[#This Row],[CustomerName]])","v":17}]
["J16202","J & P PRODUCE","Forks","WA","98331",null,"0010",{"$f":"LEN(Table_Query_from_SOTAMAS90[[#This Row],[CustomerName]])","v":13}]
["S13301","J. SOSNICK & SON","S. SAN FRANCISCO","CA","94080",null,"0017",{"$f":"LEN(Table_Query_from_SOTAMAS90[[#This Row],[CustomerName]])","v":16}]
["C16233","J.B. EXPORT CO.","NOGALES","AZ","85621",null,"0016",{"$f":"LEN(Table_Query_from_SOTAMAS90[[#This Row],[CustomerName]])","v":15}]
["C16102","JACK'S CANDY BAG","HERCULES","CA","94547",null,"0016",{"$f":"LEN(Table_Query_from_SOTAMAS90[[#This Row],[CustomerName]])","v":16}]
["J16204","JAN'S HOMEMADE CANDIES, INC.","LAUDERDALE-BYTHE-SEA","FL","33308","JANSCANDY@BELLSOUTH.NET","0016",{"$f":"LEN(Table_Query_from_SOTAMAS90[[#This Row],[CustomerName]])","v":28}]
["J16203","JAZZ GOURMET FOODS","SAN CLEMENTE","CA","92673",null,"0016",{"$f":"LEN(Table_Query_from_SOTAMAS90[[#This Row],[CustomerName]])","v":18}]
["S16263","JB CANDY SHOPPE","ABBOTSFORD","BC","V2S3S2","RICK@JBCANDYSHOPPE.COM","0016",{"$f":"LEN(Table_Query_from_SOTAMAS90[[#This Row],[CustomerName]])","v":15}]
["J16301","JEANNE'S CANDY KITCHEN","UNIVERSITY PLACE","WA","98466",null,"0010",{"$f":"LEN(Table_Query_from_SOTAMAS90[[#This Row],[CustomerName]])","v":22}]
["J16302","JELLY BELLY STORES, INC","FAIRFIELD","CA","94533","DCARRANZA@JELLYBELLY.COM","0016",{"$f":"LEN(Table_Query_from_SOTAMAS90[[#This Row],[CustomerName]])","v":23}]
["J16101","JERRY & BEVERLEY PURSCELL","COCHISE","AZ","85606",null,"0016",{"$f":"LEN(Table_Query_from_SOTAMAS90[[#This Row],[CustomerName]])","v":25}]
["J08200","JERRY'S NUT HOUSE","DENVER","CO","80205",null,"0008",{"$f":"LEN(Table_Query_from_SOTAMAS90[[#This Row],[CustomerName]])","v":17}]
["J16303","JESLIN'S SWEET TREATS","FRANKFORT","IN","46041",null,"0007",{"$f":"LEN(Table_Query_from_SOTAMAS90[[#This Row],[CustomerName]])","v":21}]
["J16208","JESSOP AMUSEMENTS","CAMBRIDGE CITY","IN","47327","DECLINED@DIDN'TWANTO.COM","0007",{"$f":"LEN(Table_Query_from_SOTAMAS90[[#This Row],[CustomerName]])","v":17}]
["M16360","JILLYBEANS","FARGO","ND","58103",null,"0016",{"$f":"LEN(Table_Query_from_SOTAMAS90[[#This Row],[CustomerName]])","v":10}]
["J16210","JIM'S APPLE FARM","BELLE PLAINE","MN","56011",null,"0009",{"$f":"LEN(Table_Query_from_SOTAMAS90[[#This Row],[CustomerName]])","v":16}]
["J09310","JIM'S CHEESE PANTRY","WATERLOO","WI","53594",null,"0009",{"$f":"LEN(Table_Query_from_SOTAMAS90[[#This Row],[CustomerName]])","v":19}]
["J10213","JIM'S PHARMACY","PORT ANGELES","WA","98362",null,"0010",{"$f":"LEN(Table_Query_from_SOTAMAS90[[#This Row],[CustomerName]])","v":14}]
["J09101","JOE'S PRODUCE","Livonia","MI","48152",null,"0009",{"$f":"LEN(Table_Query_from_SOTAMAS90[[#This Row],[CustomerName]])","v":13}]
["O17200","JOHN B. SANFILIPPO & SON, INC","MODESTO","CA","95354","STEVEF@ORCHARDVALLEYHARVEST.COM","0017",{"$f":"LEN(Table_Query_from_SOTAMAS90[[#This Row],[CustomerName]])","v":29}]
["S09307","JOHN B. SANFILIPPO & SONS INC.","ELK GROVE VILLAGE","IL","60007",null,"0009",{"$f":"LEN(Table_Query_from_SOTAMAS90[[#This Row],[CustomerName]])","v":30}]
["J16207","JOLLEY PHARMACY","SALT LAKE CITY","UT","84105",null,"0016",{"$f":"LEN(Table_Query_from_SOTAMAS90[[#This Row],[CustomerName]])","v":15}]
["J16201","JONES BEE COMPANY","Salt Lake City","UT","84104",null,"0006",{"$f":"LEN(Table_Query_from_SOTAMAS90[[#This Row],[CustomerName]])","v":17}]
["J13300","JORDAN'S FURNITURE, INC.","EAST TAUNTON","MA","02718",null,"0013",{"$f":"LEN(Table_Query_from_SOTAMAS90[[#This Row],[CustomerName]])","v":24}]
["J16205","JR DISTRIBUTION","BRANDON","SD","57005",null,"0016",{"$f":"LEN(Table_Query_from_SOTAMAS90[[#This Row],[CustomerName]])","v":15}]
["J16209","JUDD'S GENERAL STORE","SAINT GEORGE","UT","84770","JUDDS@USA.COM","0016",{"$f":"LEN(Table_Query_from_SOTAMAS90[[#This Row],[CustomerName]])","v":20}]
["J16105","JULIAN CIDER MILL","JULIAN","CA","92036",null,"0016",{"$f":"LEN(Table_Query_from_SOTAMAS90[[#This Row],[CustomerName]])","v":17}]
["J16304","JULIAN'S TOYS","SAN TAN VALLEY","AZ","85140",null,"0016",{"$f":"LEN(Table_Query_from_SOTAMAS90[[#This Row],[CustomerName]])","v":13}]
["J16102","JULIA'S SWEETS & STEMS","Greensburg","PA","15601",null,"0016",{"$f":"LEN(Table_Query_from_SOTAMAS90[[#This Row],[CustomerName]])","v":22}]
["J07100","JUNGLE JIM'S","CINCINNATI","OH","45245",null,"0007",{"$f":"LEN(Table_Query_from_SOTAMAS90[[#This Row],[CustomerName]])","v":12}]
["J07205","JUNGLE JIM'S","FAIRFIELD","OH","45014",null,"0007",{"$f":"LEN(Table_Query_from_SOTAMAS90[[#This Row],[CustomerName]])","v":12}]
["K09102","K&M FOOD CONCEPTS","JENISON","MI","49428",null,"0009",{"$f":"LEN(Table_Query_from_SOTAMAS90[[#This Row],[CustomerName]])","v":17}]
["K16205","KA JA DISTRIBUTING","VISALIA","CA","93277",null,"0016",{"$f":"LEN(Table_Query_from_SOTAMAS90[[#This Row],[CustomerName]])","v":18}]
["C17304","KAL DISTRIBUTING COMPANY, INC.","VAN NUYS","CA","91406",null,"0017",{"$f":"LEN(Table_Query_from_SOTAMAS90[[#This Row],[CustomerName]])","v":30}]
["K16104","KANDY AT KEMAH","KEMAH","TX","77565",null,"0016",{"$f":"LEN(Table_Query_from_SOTAMAS90[[#This Row],[CustomerName]])","v":14}]
["K17301","KANDY KAYS, INC.","DOWNEY","CA","90241",null,"0017",{"$f":"LEN(Table_Query_from_SOTAMAS90[[#This Row],[CustomerName]])","v":16}]
["K06101","KARA CHOCOLATES","Orem","UT","84058","INFO@KARACHOCOLATES.COM","0006",{"$f":"LEN(Table_Query_from_SOTAMAS90[[#This Row],[CustomerName]])","v":15}]
["C16317","KASTLE'S","KANSAS CITY","MO","64108",null,"0016",{"$f":"LEN(Table_Query_from_SOTAMAS90[[#This Row],[CustomerName]])","v":8}]
["K10210","KATHY CASEY FOOD STUDIO","SEATTLE","WA","98107",null,"0010",{"$f":"LEN(Table_Query_from_SOTAMAS90[[#This Row],[CustomerName]])","v":23}]
["K16204","KATIE'S CANDY COMPANY","ORLANDO","FL","32819",null,"0016",{"$f":"LEN(Table_Query_from_SOTAMAS90[[#This Row],[CustomerName]])","v":21}]
["K09202","KATY'S CORNER","CAMBRIDGE","WI","53523",null,"0009",{"$f":"LEN(Table_Query_from_SOTAMAS90[[#This Row],[CustomerName]])","v":13}]
["K08101","KAUNE FOOD TOWN","Santa Fe","NM","87504",null,"0008",{"$f":"LEN(Table_Query_from_SOTAMAS90[[#This Row],[CustomerName]])","v":15}]
["K16102","KB DISTRIBUTING, INC","WESTMONT","IL","60559","cell # (224)402-4911","0016",{"$f":"LEN(Table_Query_from_SOTAMAS90[[#This Row],[CustomerName]])","v":20}]
["K16301","KELLY'S COUNTRY STORE","GRAND ISLAND","NY","14072",null,"0016",{"$f":"LEN(Table_Query_from_SOTAMAS90[[#This Row],[CustomerName]])","v":21}]
["K16110","KELLY'S MARKET PLACE","HOLLAND","MI","49424",null,"0016",{"$f":"LEN(Table_Query_from_SOTAMAS90[[#This Row],[CustomerName]])","v":20}]
["G16203","KENNETH GOSE","HURON","SD","57350",null,"0016",{"$f":"LEN(Table_Query_from_SOTAMAS90[[#This Row],[CustomerName]])","v":12}]
["K17317","KENSCO","LOS ANGELES","CA","90058",null,"0017",{"$f":"LEN(Table_Query_from_SOTAMAS90[[#This Row],[CustomerName]])","v":6}]
["K16211","KENT'S","ROY","UT","84067",null,"0008",{"$f":"LEN(Table_Query_from_SOTAMAS90[[#This Row],[CustomerName]])","v":6}]
["K09101","KETTLE RIVER CARVING CO.","HINCKLEY","MN","55037",null,"0009",{"$f":"LEN(Table_Query_from_SOTAMAS90[[#This Row],[CustomerName]])","v":24}]
["K16216","KEY GROCERY, INC","ARDMORE","OK","73401","ALICIA.KEY@ATT.NET","0016",{"$f":"LEN(Table_Query_from_SOTAMAS90[[#This Row],[CustomerName]])","v":16}]
["K16203","KEY REXALL PHARMACY","SALINA","KS","67401",null,"0016",{"$f":"LEN(Table_Query_from_SOTAMAS90[[#This Row],[CustomerName]])","v":19}]
["K16209","KEY WEST CROSSING","LAKE WORTH","FL","33460",null,"0016",{"$f":"LEN(Table_Query_from_SOTAMAS90[[#This Row],[CustomerName]])","v":17}]
["K16212","KIDS CORNER","LAKE BONNEY","WA","98391",null,"0010",{"$f":"LEN(Table_Query_from_SOTAMAS90[[#This Row],[CustomerName]])","v":11}]
["K16207","KILWINS","LAKE GENEVA","WI","53147","CANDY@GENEVAONLINE.COM","0016",{"$f":"LEN(Table_Query_from_SOTAMAS90[[#This Row],[CustomerName]])","v":7}]
["K09302","KILWIN'S CHOCOLATE/PETOSKEY","PETOSKEY","MI","49770",null,"0009",{"$f":"LEN(Table_Query_from_SOTAMAS90[[#This Row],[CustomerName]])","v":27}]
["K16210","KIMBERLY AURORA'S STUDIO","ISSAQUAH","WA","98027",null,"0010",{"$f":"LEN(Table_Query_from_SOTAMAS90[[#This Row],[CustomerName]])","v":24}]
["K16108","KIMBERLY'S BOUTIQUE/ S.S.M","ROCKFORD","MI","49341",null,"0016",{"$f":"LEN(Table_Query_from_SOTAMAS90[[#This Row],[CustomerName]])","v":26}]
["K17305","KING HENRY'S INC","Valencia","CA","91355",null,"0017",{"$f":"LEN(Table_Query_from_SOTAMAS90[[#This Row],[CustomerName]])","v":16}]
["K16109","KING'S HARDWARE GRAND, INC","BILLINGS","MT","59102","DPADILLA@KINGSACEHARDWARE.COM","0016",{"$f":"LEN(Table_Query_from_SOTAMAS90[[#This Row],[CustomerName]])","v":26}]
["K09103","KLEIN'S","ABERDEEN","SD","57401",null,"0009",{"$f":"LEN(Table_Query_from_SOTAMAS90[[#This Row],[CustomerName]])","v":7}]
["K16206","KNIGHT FAMILY HONEY","Lehi","UT","84043",null,"0016",{"$f":"LEN(Table_Query_from_SOTAMAS90[[#This Row],[CustomerName]])","v":19}]
["K16101","KNOKE'S CHOCOLATES, INC.","HUDSON","WI","54016","STIERNEY@KNOKESCHOCOLATES.COM","0009",{"$f":"LEN(Table_Query_from_SOTAMAS90[[#This Row],[CustomerName]])","v":24}]
["K17313","KNUDSEN CANDY & NUT","HAYWARD","CA","94545-2703",null,"0017",{"$f":"LEN(Table_Query_from_SOTAMAS90[[#This Row],[CustomerName]])","v":19}]
["K09203","KOEZE'S","WYOMING","MI","49509",null,"0009",{"$f":"LEN(Table_Query_from_SOTAMAS90[[#This Row],[CustomerName]])","v":7}]
["K12201","KOKOPELLI CHOCOLATE","PLANO","TX","75025",null,"0012",{"$f":"LEN(Table_Query_from_SOTAMAS90[[#This Row],[CustomerName]])","v":19}]
["K16105","KONE KOMPANY","SKAGWAY","AK","99840","KRDOREEN@APTALASKA.NET","0016",{"$f":"LEN(Table_Query_from_SOTAMAS90[[#This Row],[CustomerName]])","v":12}]
["K09301","KOWALSKI'S COMPANIES INC.","SAINT PAUL","MN","55105",null,"0009",{"$f":"LEN(Table_Query_from_SOTAMAS90[[#This Row],[CustomerName]])","v":25}]
["K09104","KRAEMER WISCONSIN CHEESE","WATERTOWN","WI","53098",null,"0009",{"$f":"LEN(Table_Query_from_SOTAMAS90[[#This Row],[CustomerName]])","v":24}]
["K16103","KRAUSE'S","ALBANY","NY","12205",null,"0016",{"$f":"LEN(Table_Query_from_SOTAMAS90[[#This Row],[CustomerName]])","v":8}]
["K16107","KRINGLES TOYS & GIFTS","AMERICAN FORK","UT","84003",null,"0016",{"$f":"LEN(Table_Query_from_SOTAMAS90[[#This Row],[CustomerName]])","v":21}]
["K16208","KRISTI'S CONCESSIONS","WOLSEY","SD","57384",null,"0016",{"$f":"LEN(Table_Query_from_SOTAMAS90[[#This Row],[CustomerName]])","v":20}]
["K16112","KRISTI'S SWEETS & TREATS","Fall Creek","WI","54742","ROSANNE1973@HOTMAIL.COM","0016",{"$f":"LEN(Table_Query_from_SOTAMAS90[[#This Row],[CustomerName]])","v":24}]
["K04201","KROGER NASHVILLE - RASC","NASHVILLE","TN","37230-5103",null,"0004",{"$f":"LEN(Table_Query_from_SOTAMAS90[[#This Row],[CustomerName]])","v":23}]
["S16118","KRYDDLAGRET-THE SPICE TREE",null,null,null,null,"0016",{"$f":"LEN(Table_Query_from_SOTAMAS90[[#This Row],[CustomerName]])","v":26}]
["K16111","KUAU STORE","Paia","HI","96779",null,"0016",{"$f":"LEN(Table_Query_from_SOTAMAS90[[#This Row],[CustomerName]])","v":10}]
["K09307","KUGEL'S CHEESE","LENA","WI","54139","JJ@KUGELSCHEESE.COM","0009",{"$f":"LEN(Table_Query_from_SOTAMAS90[[#This Row],[CustomerName]])","v":14}]
["K17315","KURLANDER, SID & SON","Windsor","CA","95492",null,"0017",{"$f":"LEN(Table_Query_from_SOTAMAS90[[#This Row],[CustomerName]])","v":20}]
["L09302","L & M CANDY CORPORATION","WISCONSIN DELLS","WI","53965",null,"0009",{"$f":"LEN(Table_Query_from_SOTAMAS90[[#This Row],[CustomerName]])","v":23}]
["L09303","L & M SUPPLY INC.","GRAND RAPIDS","MN","55744",null,"0009",{"$f":"LEN(Table_Query_from_SOTAMAS90[[#This Row],[CustomerName]])","v":17}]
["L16234","LA COSTA FARMS","San Clemente","CA","92672",null,"0016",{"$f":"LEN(Table_Query_from_SOTAMAS90[[#This Row],[CustomerName]])","v":14}]
["M16222","LA LUNE ENTERPRISES","KIMBERLY","BC","V1A2E6",null,"0016",{"$f":"LEN(Table_Query_from_SOTAMAS90[[#This Row],[CustomerName]])","v":19}]
["L16115","LA SURTIDORA CASH & CARRY, INC","BLOOMINGTON","CA","92316","JESUS@LASURTIDORAINC.COM","0016",{"$f":"LEN(Table_Query_from_SOTAMAS90[[#This Row],[CustomerName]])","v":30}]
["L16107","LABEAU'S OF BEAR LAKE",null,null,null,null,"0016",{"$f":"LEN(Table_Query_from_SOTAMAS90[[#This Row],[CustomerName]])","v":21}]
["L16230","LADS MARKET","SANTA ROSA","CA","95403",null,"0016",{"$f":"LEN(Table_Query_from_SOTAMAS90[[#This Row],[CustomerName]])","v":11}]
["L16203","LADY ANN CANDIES","WARWICK","RI","02886",null,"0016",{"$f":"LEN(Table_Query_from_SOTAMAS90[[#This Row],[CustomerName]])","v":16}]
["L04200","LAGOON","FARMINGTON","UT","84025-0696",null,"0004",{"$f":"LEN(Table_Query_from_SOTAMAS90[[#This Row],[CustomerName]])","v":6}]
["L16233","LAHAINA FUDGE COMPANY","LAHAINA","HI","96761",null,"0016",{"$f":"LEN(Table_Query_from_SOTAMAS90[[#This Row],[CustomerName]])","v":21}]
["L16109","LAKE MEAT, CHEESE & SPICES","CLEAR LAKE","IA","50428",null,"0016",{"$f":"LEN(Table_Query_from_SOTAMAS90[[#This Row],[CustomerName]])","v":26}]
["L16116","LAKESIDE EMPORIUM","MUSKEGON","MI","49441",null,"0016",{"$f":"LEN(Table_Query_from_SOTAMAS90[[#This Row],[CustomerName]])","v":17}]
["L16232","LANDMARK PARK","DOTHAN","AL","36302",null,"0016",{"$f":"LEN(Table_Query_from_SOTAMAS90[[#This Row],[CustomerName]])","v":13}]
["L16219","LANDS END MARKETING","SIDNEY","BC","V8L2W5","JUDI@LANDSENDMARKETING.CA","0016",{"$f":"LEN(Table_Query_from_SOTAMAS90[[#This Row],[CustomerName]])","v":19}]
["L16217","LARCHWOOD FARMS","Post Falls","ID","83854","LARCHWOODFARMS86@GMAIL.COM","0016",{"$f":"LEN(Table_Query_from_SOTAMAS90[[#This Row],[CustomerName]])","v":15}]
["L16213","LARK TOY COMPANY","KELLOGG","MN","55945",null,"0016",{"$f":"LEN(Table_Query_from_SOTAMAS90[[#This Row],[CustomerName]])","v":16}]
["L16222","LARRY HANEY ENTERPRISES","SIMI VALLEY","CA","93065",null,"0016",{"$f":"LEN(Table_Query_from_SOTAMAS90[[#This Row],[CustomerName]])","v":23}]
["L16201","LAS VEGAS FRUITS & NUTS","HENDERSON","NV","89074",null,"0016",{"$f":"LEN(Table_Query_from_SOTAMAS90[[#This Row],[CustomerName]])","v":23}]
["L16212","LAS VEGAS SWEETS, INC","North Las Vegas","NV","89030",null,"0017",{"$f":"LEN(Table_Query_from_SOTAMAS90[[#This Row],[CustomerName]])","v":21}]
["L16121","LATTER DAY SWEETS","West Jordan","UT","84088",null,"0016",{"$f":"LEN(Table_Query_from_SOTAMAS90[[#This Row],[CustomerName]])","v":17}]
["L09304","LAURA SECORD","DON MILLS","ON","M3B2S7",null,"0009",{"$f":"LEN(Table_Query_from_SOTAMAS90[[#This Row],[CustomerName]])","v":12}]
["L16308","LAURA'S FINE CANDIES","ESTES PARK","CO","80517",null,"0016",{"$f":"LEN(Table_Query_from_SOTAMAS90[[#This Row],[CustomerName]])","v":20}]
["L16113","LAURIES HOMEMADE CANDY","WAYNE","NJ","07470","LAURIESCANDIES@OPTONLINE.NET","0016",{"$f":"LEN(Table_Query_from_SOTAMAS90[[#This Row],[CustomerName]])","v":22}]
["L13205","LAWNSCAPE LTD.","PETERSBURG","PA","16669",null,"0013",{"$f":"LEN(Table_Query_from_SOTAMAS90[[#This Row],[CustomerName]])","v":14}]
["L16118","LAWSON'S LANDING","Dillon Beach","CA","94929",null,"0016",{"$f":"LEN(Table_Query_from_SOTAMAS90[[#This Row],[CustomerName]])","v":16}]
["L16231","LAYMON PRODUCE","MIDDLESBORO","KY","40965",null,"0007",{"$f":"LEN(Table_Query_from_SOTAMAS90[[#This Row],[CustomerName]])","v":14}]
["L09201","LAYTON FRUIT MARKET","ST. FRANCIS","WI","53235",null,"0009",{"$f":"LEN(Table_Query_from_SOTAMAS90[[#This Row],[CustomerName]])","v":19}]
["L16205","LE BONBON","OAKLAND","CA","94611",null,"0016",{"$f":"LEN(Table_Query_from_SOTAMAS90[[#This Row],[CustomerName]])","v":9}]
["L16102","LE POPCORN","SOUTHLAKE","TX","76092","CHAD@LEPOPCORNANDCANDY.COM","0016",{"$f":"LEN(Table_Query_from_SOTAMAS90[[#This Row],[CustomerName]])","v":10}]
["L16122","LEAVITT FAMILY MAPLE","Sunapee","NH","03782","LEAVITT_FAMILY_MAPLE@YAHOO.COM","0016",{"$f":"LEN(Table_Query_from_SOTAMAS90[[#This Row],[CustomerName]])","v":20}]
["L16214","LEE TRADING","CASTRO VALLEY","CA","94546",null,"0016",{"$f":"LEN(Table_Query_from_SOTAMAS90[[#This Row],[CustomerName]])","v":11}]
["L11205","LEE'S CANDIES","BOISE","ID","83705","LEESCANDIESINC@GMAIL.COM","0006",{"$f":"LEN(Table_Query_from_SOTAMAS90[[#This Row],[CustomerName]])","v":13}]
["L16309","LENNY'S SALES","DAYTONA BEACH","FL","32117",null,"0016",{"$f":"LEN(Table_Query_from_SOTAMAS90[[#This Row],[CustomerName]])","v":13}]
["L16117","LESLIE CANDY COMPANY","Clovis","NM","88101","LESLIECANDYCOMPANY@YAHOO.COM","0016",{"$f":"LEN(Table_Query_from_SOTAMAS90[[#This Row],[CustomerName]])","v":20}]
["L16112","LESTERVILLE FLORIST & GIFTS","LESTERVILLE","MO","63654",null,"0016",{"$f":"LEN(Table_Query_from_SOTAMAS90[[#This Row],[CustomerName]])","v":27}]
["L16120","LIBERTY TAX SERVICE BOISE",null,null,null,null,"0016",{"$f":"LEN(Table_Query_from_SOTAMAS90[[#This Row],[CustomerName]])","v":25}]
["L16119","LIBERTY TAX SERVICE-BLUFFDALE","BLUFFDALE","UT","84065",null,"0016",{"$f":"LEN(Table_Query_from_SOTAMAS90[[#This Row],[CustomerName]])","v":29}]
["L16202","LI'L RED'S SWEET SHOPPE","OGDEN","UT","84401",null,"0016",{"$f":"LEN(Table_Query_from_SOTAMAS90[[#This Row],[CustomerName]])","v":23}]
["L16106","LIL SWEET SHOP","CRAWFORDSVILLE","AR","72327",null,"0016",{"$f":"LEN(Table_Query_from_SOTAMAS90[[#This Row],[CustomerName]])","v":14}]
["L16207","LILED'S CANDY KITCHEN","VALLEJO","CA","94590",null,"0016",{"$f":"LEN(Table_Query_from_SOTAMAS90[[#This Row],[CustomerName]])","v":21}]
["L16306","LILLIE MAE CANDIES","MARSHALLTOWN","IA","50158",null,"0016",{"$f":"LEN(Table_Query_from_SOTAMAS90[[#This Row],[CustomerName]])","v":18}]
["L16210","LIMMCO, INC.","NEW ALBANY","IN","47150",null,"0007",{"$f":"LEN(Table_Query_from_SOTAMAS90[[#This Row],[CustomerName]])","v":12}]
["L09102","LINDEN SWEET SHOPPE/RAZZMATAZZ","LINDEN","MI","48451",null,"0009",{"$f":"LEN(Table_Query_from_SOTAMAS90[[#This Row],[CustomerName]])","v":30}]
["L09300","LINTON HARDWARE","Linton","ND","58552","TBS@BEKTEL.COM","0009",{"$f":"LEN(Table_Query_from_SOTAMAS90[[#This Row],[CustomerName]])","v":15}]
["L16208","LION LEDGE ANTIQUES","CABOOL","MO","65689",null,"0016",{"$f":"LEN(Table_Query_from_SOTAMAS90[[#This Row],[CustomerName]])","v":19}]
["L09305","LIPARI FOODS INC.","WARREN","MI","48089",null,"0009",{"$f":"LEN(Table_Query_from_SOTAMAS90[[#This Row],[CustomerName]])","v":17}]
["L10101","LITTLE CITY CANDY COMPANY","Kingston","WA","98346","lmaxwell07@me.com","0010",{"$f":"LEN(Table_Query_from_SOTAMAS90[[#This Row],[CustomerName]])","v":25}]
["L16334","LITTLE NELLIE'S SWEETS","SANDY","UT","84070",null,"0016",{"$f":"LEN(Table_Query_from_SOTAMAS90[[#This Row],[CustomerName]])","v":22}]
["L16199","LITTLE SHOP OF VENDORS","Lacon","IL","61540",null,"0016",{"$f":"LEN(Table_Query_from_SOTAMAS90[[#This Row],[CustomerName]])","v":22}]
["L16225","LITTLE SWEET PEA","VERNAL","UT","84078",null,"0006",{"$f":"LEN(Table_Query_from_SOTAMAS90[[#This Row],[CustomerName]])","v":16}]
["L09101","LIW MEMORIAL SOCIETY","DE SMET","SD","57231",null,"0009",{"$f":"LEN(Table_Query_from_SOTAMAS90[[#This Row],[CustomerName]])","v":20}]
["L16101","LLOYDS SWEET SHOPPE","Chillicophe","OH","45601",null,"0007",{"$f":"LEN(Table_Query_from_SOTAMAS90[[#This Row],[CustomerName]])","v":19}]
["C16347","LOCAL NATURAL FOODS","PHOENIX","AZ","85017",null,"0016",{"$f":"LEN(Table_Query_from_SOTAMAS90[[#This Row],[CustomerName]])","v":19}]
["L16216","LOLLIPOP SHOP","Alpine","AZ","85920",null,"0016",{"$f":"LEN(Table_Query_from_SOTAMAS90[[#This Row],[CustomerName]])","v":13}]
["L16220","LOLLIPOP SHOP","JONESBOROUGH","TN","37659",null,"0016",{"$f":"LEN(Table_Query_from_SOTAMAS90[[#This Row],[CustomerName]])","v":13}]
["L16221","LOLLIPOP SHOP","Warne","NC","28909",null,"0016",{"$f":"LEN(Table_Query_from_SOTAMAS90[[#This Row],[CustomerName]])","v":13}]
["L16223","LOLLIPOP SHOP -BEAUFORT","BEAUFORT","SC","29907",null,"0016",{"$f":"LEN(Table_Query_from_SOTAMAS90[[#This Row],[CustomerName]])","v":23}]
["L16104","LOLLIPOP SHOP- GREENVILLE","GREENVILLE","SC","29607",null,"0016",{"$f":"LEN(Table_Query_from_SOTAMAS90[[#This Row],[CustomerName]])","v":25}]
["L16103","LOLLIPOP'S, LLC","SOUTH HAVEN","MI","49090",null,"0016",{"$f":"LEN(Table_Query_from_SOTAMAS90[[#This Row],[CustomerName]])","v":15}]
["L16215","LONDON BRIDGE CANDY EMPORIUM","LAKE HAVASU CITY","AZ","86403",null,"0016",{"$f":"LEN(Table_Query_from_SOTAMAS90[[#This Row],[CustomerName]])","v":28}]
["L16114","LONE PEAK VETERINERY HOSPITAL",null,null,null,null,"0016",{"$f":"LEN(Table_Query_from_SOTAMAS90[[#This Row],[CustomerName]])","v":29}]
["L16218","LONE STAR CANDY BAR","FREDERICKSBURG","TX","78624","LONESTARCANDYBAR@YAHOO.COM","0016",{"$f":"LEN(Table_Query_from_SOTAMAS90[[#This Row],[CustomerName]])","v":19}]
["L16105","LONESTAR GOURMET POPCORN","FLOWER MOUND","TX","75028",null,"0016",{"$f":"LEN(Table_Query_from_SOTAMAS90[[#This Row],[CustomerName]])","v":24}]
["L09306","LONG GROVE CONFECTIONERY","Buffalo Grove","IL","60089","JODI_HUTCH@LONGGROVE.COM","0009",{"$f":"LEN(Table_Query_from_SOTAMAS90[[#This Row],[CustomerName]])","v":24}]
["L16204","LOOMIS FARGO & CO","BOUNTIFUL","UT","84010",null,"0016",{"$f":"LEN(Table_Query_from_SOTAMAS90[[#This Row],[CustomerName]])","v":17}]
["L16235","LOUIE'S FINER MEATS","CUMBERLAND","WI","54829",null,"0016",{"$f":"LEN(Table_Query_from_SOTAMAS90[[#This Row],[CustomerName]])","v":19}]
["L16108","LOVE FROM MINNESOTA HUB","ROSEVILLE","MN","55113",null,"0009",{"$f":"LEN(Table_Query_from_SOTAMAS90[[#This Row],[CustomerName]])","v":23}]
["L16111","LOVE WITH FOOD","SAN MATEO","CA","94402","katie@lovewithfood.com","0016",{"$f":"LEN(Table_Query_from_SOTAMAS90[[#This Row],[CustomerName]])","v":14}]
["L09103","LOVIN OVEN CAKERY","ROUND LAKE BEACH","IL","60073",null,"0009",{"$f":"LEN(Table_Query_from_SOTAMAS90[[#This Row],[CustomerName]])","v":17}]
["L16123","LTD COMMODITIES LLC","BANNOCKBURN","IL","60015","MERCHANDISING@LTDCOMMODITIES.COM","0016",{"$f":"LEN(Table_Query_from_SOTAMAS90[[#This Row],[CustomerName]])","v":19}]
["L16110","LULU LONDON, LLC","FRANKFORT","IL","60423","JESSIE@SHOPSWEETLULU.COM","0016",{"$f":"LEN(Table_Query_from_SOTAMAS90[[#This Row],[CustomerName]])","v":16}]
["L16206","LUNCHBAG THE","Houghton","MI","49931",null,"0016",{"$f":"LEN(Table_Query_from_SOTAMAS90[[#This Row],[CustomerName]])","v":12}]
["L16307","LUV OUTDOOR","SAN FRANCISCO","CA","94133",null,"0016",{"$f":"LEN(Table_Query_from_SOTAMAS90[[#This Row],[CustomerName]])","v":11}]
["L16209","LYNDEN CHOCOLATE & CANDY SHOP","WILLISTON","ND","58802","DECLINED@DIDN'TWANTTO.COM","0010",{"$f":"LEN(Table_Query_from_SOTAMAS90[[#This Row],[CustomerName]])","v":29}]
["L09301","LYNN MARIE CANDIES","HAYWARD","WI","54843",null,"0009",{"$f":"LEN(Table_Query_from_SOTAMAS90[[#This Row],[CustomerName]])","v":18}]
["L09203","LYNN'S CANDIES INC.","SPARTA","WI","54656",null,"0009",{"$f":"LEN(Table_Query_from_SOTAMAS90[[#This Row],[CustomerName]])","v":19}]
["M16327","M&D'S GENERAL STORE","BRANSON","MO","65616",null,"0016",{"$f":"LEN(Table_Query_from_SOTAMAS90[[#This Row],[CustomerName]])","v":19}]
["M16216","M.M.C. DISCOUNTS","APPLE VALLEY","CA","92308","MMCDISCOUNTS@LIVE.COM","0016",{"$f":"LEN(Table_Query_from_SOTAMAS90[[#This Row],[CustomerName]])","v":16}]
["M16311","MACKINACA FUDGE CO.","NAUBINWAY","MI","49762",null,"0016",{"$f":"LEN(Table_Query_from_SOTAMAS90[[#This Row],[CustomerName]])","v":19}]
["M16100","MACPHAIL'S CORNER CAFE","EDGARTOWN","MA","02539","brymac4@aol.com","0016",{"$f":"LEN(Table_Query_from_SOTAMAS90[[#This Row],[CustomerName]])","v":22}]
["M09200","MACY'S",null,null,null,"MARY.ARNETT@MACYS.COM","0009",{"$f":"LEN(Table_Query_from_SOTAMAS90[[#This Row],[CustomerName]])","v":6}]
["M09300","MACY'S CANDY KITCHEN","Minneapolis","MN","55402",null,"0009",{"$f":"LEN(Table_Query_from_SOTAMAS90[[#This Row],[CustomerName]])","v":20}]
["M16108","MACY'S CORPORATE SERVICES, INC","NEW YORK","NY","10001",null,"0016",{"$f":"LEN(Table_Query_from_SOTAMAS90[[#This Row],[CustomerName]])","v":30}]
["M16214","MADELAINE INC.","WILLITS","CA","95490",null,"0016",{"$f":"LEN(Table_Query_from_SOTAMAS90[[#This Row],[CustomerName]])","v":14}]
["M07102","MADISON NUT AND CANDY CO.","MADISON","IN","47250","KHAUTMAN@GMAIL.COM","0007",{"$f":"LEN(Table_Query_from_SOTAMAS90[[#This Row],[CustomerName]])","v":25}]
["M16301","MAGGIE LYON CHOCOLATIERS","NORCROSS","GA","30071","SALES@MAGGIELYON.COM","0016",{"$f":"LEN(Table_Query_from_SOTAMAS90[[#This Row],[CustomerName]])","v":24}]
["M16209","MAGIC WATERS WATERPARK-ROCKFOR","Rockford","IL","61101",null,"0016",{"$f":"LEN(Table_Query_from_SOTAMAS90[[#This Row],[CustomerName]])","v":30}]
["M16225","MAIN STREET CANDY & FUDGE SHOP","VAN BUREN","AR","72956","declined@didn'tcare.com","0016",{"$f":"LEN(Table_Query_from_SOTAMAS90[[#This Row],[CustomerName]])","v":30}]
["M09105","MAIN STREET CHOCOLATES","OSSEO","MN","55369",null,"0009",{"$f":"LEN(Table_Query_from_SOTAMAS90[[#This Row],[CustomerName]])","v":22}]
["M16201","MAIN STREET SWEETS","MASON","OH","45040",null,"0007",{"$f":"LEN(Table_Query_from_SOTAMAS90[[#This Row],[CustomerName]])","v":18}]
["M16113","MAINE-LY SANDWICHES","Houston","TX","77098","MAINELYSAND@GMAIL.COM","0016",{"$f":"LEN(Table_Query_from_SOTAMAS90[[#This Row],[CustomerName]])","v":19}]
["M16115","MAINE-LY SANDWICHES","Houston","TX","77037","MAINELYSAND@GMAIL.COM","0016",{"$f":"LEN(Table_Query_from_SOTAMAS90[[#This Row],[CustomerName]])","v":19}]
["M16223","MALIBU BEACH, LLC","MALIBU","CA","90265","CARLOS@MALIBUBEACH.COM","0016",{"$f":"LEN(Table_Query_from_SOTAMAS90[[#This Row],[CustomerName]])","v":17}]
["M07302","MALLEY'S CHOCOLATES","CLEVELAND","OH","44135","SHLAVAC@MALLEYS.COM","0007",{"$f":"LEN(Table_Query_from_SOTAMAS90[[#This Row],[CustomerName]])","v":19}]
["M16111","MANDEL TOBACCO OF NJ, INC","LAKEWOOD","NJ","08701","JOSEPH@MANDELTOBACCO.COM","0016",{"$f":"LEN(Table_Query_from_SOTAMAS90[[#This Row],[CustomerName]])","v":25}]
["M20305","MANGELSEN, DAVID M. INC.","OMAHA","NE","68124",null,"0020",{"$f":"LEN(Table_Query_from_SOTAMAS90[[#This Row],[CustomerName]])","v":24}]
["M16362","MAPLE LAKE BAKERY & SWT SHOPPE","MAPLE LAKE","MN","55358",null,"0016",{"$f":"LEN(Table_Query_from_SOTAMAS90[[#This Row],[CustomerName]])","v":30}]
["M17309","MAR VAL MARKET","LODI","CA","95240",null,"0017",{"$f":"LEN(Table_Query_from_SOTAMAS90[[#This Row],[CustomerName]])","v":14}]
["M16215","MARICH CONFECTIONERY COMPANY","HOLLISTER","CA","95024-1477",null,"0016",{"$f":"LEN(Table_Query_from_SOTAMAS90[[#This Row],[CustomerName]])","v":28}]
["M13201","MARIE'S COUNTRY FURNISHING","SOUTHBURY","CT","06488",null,"0013",{"$f":"LEN(Table_Query_from_SOTAMAS90[[#This Row],[CustomerName]])","v":26}]
["M16309","MARIE'S PARFUMS, INC.","SACRAMENTO","CA","95814",null,"0017",{"$f":"LEN(Table_Query_from_SOTAMAS90[[#This Row],[CustomerName]])","v":21}]
["M10203","MARKS HALLMARK","SEATTLE","WA","98188",null,"0010",{"$f":"LEN(Table_Query_from_SOTAMAS90[[#This Row],[CustomerName]])","v":14}]
["M11201","MARRIOTT GIFT SHOP","SALT LAKE CITY","UT","84101",null,"0006",{"$f":"LEN(Table_Query_from_SOTAMAS90[[#This Row],[CustomerName]])","v":18}]
["M09202","MARS CHEESE CASTLE","KENOSHA","WI","53142",null,"0009",{"$f":"LEN(Table_Query_from_SOTAMAS90[[#This Row],[CustomerName]])","v":18}]
["M09308","MARSHALL FIELDS","MINNEAPOLIS","MN","55402",null,"0009",{"$f":"LEN(Table_Query_from_SOTAMAS90[[#This Row],[CustomerName]])","v":15}]
["M16306","MARVIN CANDY & DISPLAYS","WHITBY","ON","L1R 2T2","MARNA@MARVINCANDY.COM","0016",{"$f":"LEN(Table_Query_from_SOTAMAS90[[#This Row],[CustomerName]])","v":23}]
["M09306","MARY JANE'S CEDARBURG CNFCTNS.","CEDARBURG","WI","53012",null,"0009",{"$f":"LEN(Table_Query_from_SOTAMAS90[[#This Row],[CustomerName]])","v":30}]
["M16104","MARY-ANNS ANTIQUES","CUBA","MO","65453",null,"0016",{"$f":"LEN(Table_Query_from_SOTAMAS90[[#This Row],[CustomerName]])","v":18}]
["M16203","MARY'S COUNTRY MARKET","Rolling Prairie","IN","46371",null,"0007",{"$f":"LEN(Table_Query_from_SOTAMAS90[[#This Row],[CustomerName]])","v":21}]
["M16217","MA'S LITTLE RED BARN","PERHAM","MN","56573","MASBARN@ARVIG.NET","0016",{"$f":"LEN(Table_Query_from_SOTAMAS90[[#This Row],[CustomerName]])","v":20}]
["R09313","MAUD BORUP INC.","MINNEAPOLIS","MN","55418",null,"0009",{"$f":"LEN(Table_Query_from_SOTAMAS90[[#This Row],[CustomerName]])","v":15}]
["M16112","MAUI OCEAN CENTER, INC","WAILUKU","HI","96793",null,"0016",{"$f":"LEN(Table_Query_from_SOTAMAS90[[#This Row],[CustomerName]])","v":22}]
["M09204","MAURIE'S","MADISON","WI","53711",null,"0009",{"$f":"LEN(Table_Query_from_SOTAMAS90[[#This Row],[CustomerName]])","v":8}]
["M09310","MAY GARDEN CENTER INC.","OCONOMOWOC","WI","53066",null,"0009",{"$f":"LEN(Table_Query_from_SOTAMAS90[[#This Row],[CustomerName]])","v":22}]
["M12305","MC CARTY HULL, INC.","AMARILLO","TX","79120",null,"0012",{"$f":"LEN(Table_Query_from_SOTAMAS90[[#This Row],[CustomerName]])","v":19}]
["M16114","MC G'S TASTY TREATS","CUYAHOGA FALLS","OH","44221",null,"0016",{"$f":"LEN(Table_Query_from_SOTAMAS90[[#This Row],[CustomerName]])","v":19}]
["M10201","McBRIDES HALLMARK","SILVERDALE","WA","98383",null,"0010",{"$f":"LEN(Table_Query_from_SOTAMAS90[[#This Row],[CustomerName]])","v":17}]
["M16213","McCALL CANDY COMPANY","MC CALL","ID","83638",null,"0006",{"$f":"LEN(Table_Query_from_SOTAMAS90[[#This Row],[CustomerName]])","v":20}]
["M16304","MCCLAIN'S OLD FLORIDA GOURMET","SARASOTA","FL","34240","TAYLOR@MCCLAINSGOURMET.COM","0016",{"$f":"LEN(Table_Query_from_SOTAMAS90[[#This Row],[CustomerName]])","v":29}]
["M09106","MCDONALD'S HOMEMADE CANDIES","Muskegon","MI","49442","CANDYWAGEN@COMCAST.NET","0009",{"$f":"LEN(Table_Query_from_SOTAMAS90[[#This Row],[CustomerName]])","v":27}]
["M16365","MCNALLY'S","HAMPSTEAD","NC","28443",null,"0016",{"$f":"LEN(Table_Query_from_SOTAMAS90[[#This Row],[CustomerName]])","v":9}]
["M16012","MEGA TOYS","LOS ANGELES","CA","90012",null,"0016",{"$f":"LEN(Table_Query_from_SOTAMAS90[[#This Row],[CustomerName]])","v":9}]
["Z11301","MEIER & FRANK","Portland","OR","97208-5157",null,"0010",{"$f":"LEN(Table_Query_from_SOTAMAS90[[#This Row],[CustomerName]])","v":13}]
["M16202","MELS","SPOKANE","WA","99218","SHOPMELS@AOL.COM","0010",{"$f":"LEN(Table_Query_from_SOTAMAS90[[#This Row],[CustomerName]])","v":4}]
["M16218","MEMORIES IN CANDY","EAST ROCKAWAY","NY","11518","MEMORIESINCANDY@AOL.COM","0016",{"$f":"LEN(Table_Query_from_SOTAMAS90[[#This Row],[CustomerName]])","v":17}]
["M17300","MEMORY LANE OLD TIME CANDY","PLACERVILLE","CA","95667",null,"0017",{"$f":"LEN(Table_Query_from_SOTAMAS90[[#This Row],[CustomerName]])","v":26}]
["M17213","MEPCO, INC.","FRESNO","CA","93722",null,"0017",{"$f":"LEN(Table_Query_from_SOTAMAS90[[#This Row],[CustomerName]])","v":11}]
["M16144","MEREDITH BAY","LACONIA","NH","03246",null,"0016",{"$f":"LEN(Table_Query_from_SOTAMAS90[[#This Row],[CustomerName]])","v":12}]
["M07101","MIAMI UNIVERSITY CULINARY","OXFORD","OH","45056","SMITHMJ5@MUOHIO.EDU","0007",{"$f":"LEN(Table_Query_from_SOTAMAS90[[#This Row],[CustomerName]])","v":25}]
["M16109","MIA'S MARKETPLACE","HOLLY RIDGE","NC","28445","PAM@MIASOFTOPSAILISLAND.COM","0016",{"$f":"LEN(Table_Query_from_SOTAMAS90[[#This Row],[CustomerName]])","v":17}]
["M16117","MICHAEL RICHARDS ORTHODONTICS","Salt Lake City","UT","84108",null,"0016",{"$f":"LEN(Table_Query_from_SOTAMAS90[[#This Row],[CustomerName]])","v":29}]
["M09301","MICHIGAN'S ADVENTURE AMUSEMENT","Muskegon","MI","49445",null,"0009",{"$f":"LEN(Table_Query_from_SOTAMAS90[[#This Row],[CustomerName]])","v":30}]
["M16211","MICO'S CANDY","Saugus","MA","01906",null,"0016",{"$f":"LEN(Table_Query_from_SOTAMAS90[[#This Row],[CustomerName]])","v":12}]
["M16310","MID-NITE SNAX","MINEOLA","NY","11501",null,"0016",{"$f":"LEN(Table_Query_from_SOTAMAS90[[#This Row],[CustomerName]])","v":13}]
["M16106","MID-USA ANTIQUES","ABILENE","KS","67410",null,"0016",{"$f":"LEN(Table_Query_from_SOTAMAS90[[#This Row],[CustomerName]])","v":16}]
["M06101","MIDVALE MAIN STREET THEATRE","MIDVALE","UT","84047",null,"0006",{"$f":"LEN(Table_Query_from_SOTAMAS90[[#This Row],[CustomerName]])","v":27}]
["M09104","MIDWEST NORTHERN NUT","MINNEAPOLIS","MN","55418",null,"0009",{"$f":"LEN(Table_Query_from_SOTAMAS90[[#This Row],[CustomerName]])","v":20}]
["M16207","MIKE'S TRUCK GARDEN","FULTON","CA","95439",null,"0016",{"$f":"LEN(Table_Query_from_SOTAMAS90[[#This Row],[CustomerName]])","v":19}]
["M09312","MILES KIMBALL","OSHKOSH","WI","54903-3635","SHIPPING(920)232-6457","0009",{"$f":"LEN(Table_Query_from_SOTAMAS90[[#This Row],[CustomerName]])","v":13}]
["M16233","MILLER'S CANDY COMPANY","SEBASTOPOL","CA","95472",null,"0016",{"$f":"LEN(Table_Query_from_SOTAMAS90[[#This Row],[CustomerName]])","v":22}]
["M09107","MILLER'S CHEESE HOUSE, INC","RICE LAKE","WI","54868",null,"0009",{"$f":"LEN(Table_Query_from_SOTAMAS90[[#This Row],[CustomerName]])","v":26}]
["M16204","MILLER'S HONEY COMPANY","SALT LAKE CITY","UT","84165-0807",null,"0016",{"$f":"LEN(Table_Query_from_SOTAMAS90[[#This Row],[CustomerName]])","v":22}]
["M09302","MILLIE'S GIFT HAUS","DELAVAN","WI","53115","INFO@MILLIESWI.COM","0009",{"$f":"LEN(Table_Query_from_SOTAMAS90[[#This Row],[CustomerName]])","v":18}]
["M09101","MINNESOTA HISTORICAL SOCIETY","SAINT PAUL","MN","55102",null,"0009",{"$f":"LEN(Table_Query_from_SOTAMAS90[[#This Row],[CustomerName]])","v":28}]
["M09102","MINNETONKA ORCHARDS","MOUND","MN","55364",null,"0009",{"$f":"LEN(Table_Query_from_SOTAMAS90[[#This Row],[CustomerName]])","v":19}]
["F16316","MIXON & WIGGINS","BRADENTON","FL","34204",null,"0016",{"$f":"LEN(Table_Query_from_SOTAMAS90[[#This Row],[CustomerName]])","v":15}]
["M16116","MIZ LOLAS SPIRITS AND GAMING","Las Vegas","NV","89120",null,"0016",{"$f":"LEN(Table_Query_from_SOTAMAS90[[#This Row],[CustomerName]])","v":28}]
["M16105","MOAB GENERAL STORE","MOAB","UT","84532",null,"0016",{"$f":"LEN(Table_Query_from_SOTAMAS90[[#This Row],[CustomerName]])","v":18}]
["M08101","MODEL PHARMACY","Albuquerque","NM","87106",null,"0008",{"$f":"LEN(Table_Query_from_SOTAMAS90[[#This Row],[CustomerName]])","v":14}]
["M13203","MOHEGAN SUN REC-GAS STATION","BELLEVILLE","PA","17004",null,"0013",{"$f":"LEN(Table_Query_from_SOTAMAS90[[#This Row],[CustomerName]])","v":27}]
["M12200","MOM AND POPCORN CO, THE","MC KINNEY","TX","75069","MOMANDPOPCORN@SBCGLOBAL.NET","0012",{"$f":"LEN(Table_Query_from_SOTAMAS90[[#This Row],[CustomerName]])","v":23}]
["M08102","MONKEY FACE CANDY & ICE CREAM","LARKSPUR","CO","80118",null,"0008",{"$f":"LEN(Table_Query_from_SOTAMAS90[[#This Row],[CustomerName]])","v":29}]
["M06201","MONTANA ARTISTIC IMPRESSIONS","HAMILTON","MT","59840",null,"0006",{"$f":"LEN(Table_Query_from_SOTAMAS90[[#This Row],[CustomerName]])","v":28}]
["M11315","MONTANA CANDY BAR","BILLINGS","MT","59102",null,"0006",{"$f":"LEN(Table_Query_from_SOTAMAS90[[#This Row],[CustomerName]])","v":17}]
["M11310","MONTANA CANDY EMPORIUM","RED LODGE","MT","59068",null,"0006",{"$f":"LEN(Table_Query_from_SOTAMAS90[[#This Row],[CustomerName]])","v":22}]
["M11211","MONTANA FLATHEAD FUDGE & CHOC.","Columbia Falls","MT","59912","SALES@MTFUDGE.COM","0006",{"$f":"LEN(Table_Query_from_SOTAMAS90[[#This Row],[CustomerName]])","v":30}]
["M11217","MONTANA STATE UNIVERSITY","BOZEMAN","MT","59717",null,"0006",{"$f":"LEN(Table_Query_from_SOTAMAS90[[#This Row],[CustomerName]])","v":24}]
["M16212","MONTROSE CANDY COMPANY","MONTROSE","CA","91020","MONTROSECANDY@YAHOO.COM","0016",{"$f":"LEN(Table_Query_from_SOTAMAS90[[#This Row],[CustomerName]])","v":22}]
["M16206","MORGAN HOUSE","Dublin","OH","43017",null,"0007",{"$f":"LEN(Table_Query_from_SOTAMAS90[[#This Row],[CustomerName]])","v":12}]
["M16303","MORLEY CANDY MAKERS","CLINTON TOWNSHIP","MI","48036",null,"0009",{"$f":"LEN(Table_Query_from_SOTAMAS90[[#This Row],[CustomerName]])","v":19}]
["M16363","MORRIS NATIONAL","LASALLE","QC","H8N 1B7",null,"0016",{"$f":"LEN(Table_Query_from_SOTAMAS90[[#This Row],[CustomerName]])","v":15}]
["M16364","MORRIS NATIONAL CA","AZUSA","CA","91702",null,"0016",{"$f":"LEN(Table_Query_from_SOTAMAS90[[#This Row],[CustomerName]])","v":18}]
["M16205","MOTHER'S MONEY","MANTEO","NC","27954",null,"0016",{"$f":"LEN(Table_Query_from_SOTAMAS90[[#This Row],[CustomerName]])","v":14}]
["M06202","MOUNT RUSHMORE NATIONAL","Keystone","SD","57751",null,"0006",{"$f":"LEN(Table_Query_from_SOTAMAS90[[#This Row],[CustomerName]])","v":23}]
["M10312","MOUNTAIN MAN NUT & FRUIT CO.","SALEM","OR","97303",null,"0010",{"$f":"LEN(Table_Query_from_SOTAMAS90[[#This Row],[CustomerName]])","v":28}]
["M16224","MOUNTAIN MERCHANTS","CRYSTAL BAY","NV","89402",null,"0016",{"$f":"LEN(Table_Query_from_SOTAMAS90[[#This Row],[CustomerName]])","v":18}]
["M16220","MOUNTAIN MILL COUNTRY STORE","LOA","UT","84747",null,"0016",{"$f":"LEN(Table_Query_from_SOTAMAS90[[#This Row],[CustomerName]])","v":27}]
["M16305","MOUNTAIN SWEETS DIST.","Maggie Valley","NC","28751","INFO@MOUNTAINSWEETSCANDY.COM","0016",{"$f":"LEN(Table_Query_from_SOTAMAS90[[#This Row],[CustomerName]])","v":21}]
["M06200","MRS CALL'S CANDY CO","HEBER CITY","UT","84032",null,"0006",{"$f":"LEN(Table_Query_from_SOTAMAS90[[#This Row],[CustomerName]])","v":19}]
["M11210","MRS. CAVANAUGH'S CANDIES","NORTH SALT LAKE","UT","84054",null,"0006",{"$f":"LEN(Table_Query_from_SOTAMAS90[[#This Row],[CustomerName]])","v":24}]
["M16118","MRS. HONEYPEEPS","Coeur D Alene","ID","83814",null,"0016",{"$f":"LEN(Table_Query_from_SOTAMAS90[[#This Row],[CustomerName]])","v":15}]
["M16107","MS. BEE'S","WINTER GARDEN","FL","34787","MSBEE123@AOL.COM","0016",{"$f":"LEN(Table_Query_from_SOTAMAS90[[#This Row],[CustomerName]])","v":9}]
["M16226","MT. BAKER CANDY CO.","BELLINGHAM","WA","98226",null,"0010",{"$f":"LEN(Table_Query_from_SOTAMAS90[[#This Row],[CustomerName]])","v":19}]
["M09103","MT. OLYMPUS WATER & THEME PARK","WISCONSIN DELLS","WI","53965",null,"0009",{"$f":"LEN(Table_Query_from_SOTAMAS90[[#This Row],[CustomerName]])","v":30}]
["M16210","MT. RUSHMORE KOA","HILL CITY","SD","57745",null,"0016",{"$f":"LEN(Table_Query_from_SOTAMAS90[[#This Row],[CustomerName]])","v":16}]
["M16101","MULBERRY KNOWLL INC.","Waterloo","NY","13165",null,"0016",{"$f":"LEN(Table_Query_from_SOTAMAS90[[#This Row],[CustomerName]])","v":20}]
["M16208","MULBERRY PATCH","EDWARDS","CO","81632",null,"0016",{"$f":"LEN(Table_Query_from_SOTAMAS90[[#This Row],[CustomerName]])","v":14}]
["M16110","MUNCHIES","HILTON HEAD ISLAND","SC","29926","munchiesshoppe@gmail.com","0016",{"$f":"LEN(Table_Query_from_SOTAMAS90[[#This Row],[CustomerName]])","v":8}]
["M16102","MUNCHIES SWEETS & TREATS","Solvang","CA","93463","DWILBUR78@GMAIL.COM","0016",{"$f":"LEN(Table_Query_from_SOTAMAS90[[#This Row],[CustomerName]])","v":24}]
["M16103","MURDICKS FUDGE SHOPPE","SUTTONS BAY","MI","49682",null,"0016",{"$f":"LEN(Table_Query_from_SOTAMAS90[[#This Row],[CustomerName]])","v":21}]
["M16302","MY CANDY","Colorado Springs","CO","80903",null,"0008",{"$f":"LEN(Table_Query_from_SOTAMAS90[[#This Row],[CustomerName]])","v":8}]
["M16119","MY CHOCOLATE SHOPPE","Charlottesville","VA","22902",null,"0016",{"$f":"LEN(Table_Query_from_SOTAMAS90[[#This Row],[CustomerName]])","v":19}]
["M16143","MY HONEY COMPANY","RICHMOND","IL","60071","lindasamorez@yahoo.com","0016",{"$f":"LEN(Table_Query_from_SOTAMAS90[[#This Row],[CustomerName]])","v":16}]
["M07209","MYERS CONCESSIONS, INC.","ELIDA","OH","45807-1404",null,"0007",{"$f":"LEN(Table_Query_from_SOTAMAS90[[#This Row],[CustomerName]])","v":23}]
["N10234","N.W. FUDGE & CONFECTIONS","PORT ANGELES","WA","98362","NWPA@OLYPEN.COM","0010",{"$f":"LEN(Table_Query_from_SOTAMAS90[[#This Row],[CustomerName]])","v":24}]
["N10215","NAMA'S CANDY STORE","Edmonds","WA","98020",null,"0010",{"$f":"LEN(Table_Query_from_SOTAMAS90[[#This Row],[CustomerName]])","v":18}]
["N17222","NANA & POP POP'S SWEET SHOP","OCEANSIDE","CA","92054",null,"0017",{"$f":"LEN(Table_Query_from_SOTAMAS90[[#This Row],[CustomerName]])","v":27}]
["N16202","NANCY'S CANDY COMPANY","Meadows Of Dan","VA","24120",null,"0016",{"$f":"LEN(Table_Query_from_SOTAMAS90[[#This Row],[CustomerName]])","v":21}]
["N16106","NAN'S NUMMIES","WEST DES MOINES","IA","50265","DECLINED@DONTCARE.COM","0016",{"$f":"LEN(Table_Query_from_SOTAMAS90[[#This Row],[CustomerName]])","v":13}]
["N09205","NAPER NUTS & SWEETS","NAPERVILLE","IL","60540",null,"0009",{"$f":"LEN(Table_Query_from_SOTAMAS90[[#This Row],[CustomerName]])","v":19}]
["N16300","NASSAU CANDY DISTRIBUTORS","Hicksville","NY","11801",null,"0016",{"$f":"LEN(Table_Query_from_SOTAMAS90[[#This Row],[CustomerName]])","v":25}]
["N16108","NATIONAL BANK PRODUCTS","Warner Robins","GA","31095",null,"0016",{"$f":"LEN(Table_Query_from_SOTAMAS90[[#This Row],[CustomerName]])","v":22}]
["N09301","NATIONAL BULK FOODS","TAYLOR","MI","48180",null,"0009",{"$f":"LEN(Table_Query_from_SOTAMAS90[[#This Row],[CustomerName]])","v":19}]
["N16204","NATURAL FOODS","Toledo","OH","43607","BUYING@BULKFOODS.COM","0007",{"$f":"LEN(Table_Query_from_SOTAMAS90[[#This Row],[CustomerName]])","v":13}]
["N13204","NATURALLY YOURS","ERIE","PA","16505","KATHY@YOURSNATURALLY.COM","0013",{"$f":"LEN(Table_Query_from_SOTAMAS90[[#This Row],[CustomerName]])","v":15}]
["N09304","NATURE'S BEST","SHEBOYGAN","WI","53081",null,"0009",{"$f":"LEN(Table_Query_from_SOTAMAS90[[#This Row],[CustomerName]])","v":13}]
["N07200","NAUTI NELL'S","DELTAVILLE","VA","23043","NAUTINELL@VERIZON.NET","0007",{"$f":"LEN(Table_Query_from_SOTAMAS90[[#This Row],[CustomerName]])","v":12}]
["N07101","NEFF'S CARD & GIFTS","CHILLICOTHE","OH","45601",null,"0007",{"$f":"LEN(Table_Query_from_SOTAMAS90[[#This Row],[CustomerName]])","v":19}]
["N16101","NELLIE'S SWEET SHOPPE","Smithville","MO","64089","RONNA@NELLIESSWEETSHOP.COM","0016",{"$f":"LEN(Table_Query_from_SOTAMAS90[[#This Row],[CustomerName]])","v":21}]
["N16207","NEON EATERS","OREM","UT","84057",null,"0016",{"$f":"LEN(Table_Query_from_SOTAMAS90[[#This Row],[CustomerName]])","v":11}]
["R16104","NESBITT'S NURSERY INC.","PRESCOTT","WI","54021",null,"0016",{"$f":"LEN(Table_Query_from_SOTAMAS90[[#This Row],[CustomerName]])","v":22}]
["N16315","NETTERFIELD'S CONCESSIONS","ZEPHYRHILLS","FL","33540",null,"0016",{"$f":"LEN(Table_Query_from_SOTAMAS90[[#This Row],[CustomerName]])","v":25}]
["N08321","NETTIE'S COLORADO CANDIES","Pueblo","CO","81004","MICHELE.WARFIELD@GMAIL.COM","0008",{"$f":"LEN(Table_Query_from_SOTAMAS90[[#This Row],[CustomerName]])","v":25}]
["N16102","NEUMANATIONS","SAN FRANCISCO","CA","94127",null,"0016",{"$f":"LEN(Table_Query_from_SOTAMAS90[[#This Row],[CustomerName]])","v":12}]
["N16107","NEUMEISTER'S CANDY SHOPPE","PLANT CITY","FL","33563",null,"0016",{"$f":"LEN(Table_Query_from_SOTAMAS90[[#This Row],[CustomerName]])","v":25}]
["N16110","NEVADA CITY CHOCOLATES","Nevada City","CA","95959",null,"0016",{"$f":"LEN(Table_Query_from_SOTAMAS90[[#This Row],[CustomerName]])","v":22}]
["N16104","NEW ENGLAND SALT BOX","PUYALLUP","WA","98372",null,"0016",{"$f":"LEN(Table_Query_from_SOTAMAS90[[#This Row],[CustomerName]])","v":20}]
["N16205","NEW INNOVATIVE PRODUCTS","SCOTTSDALE","AZ","85251","NEWINNOVATIVEPRODUCTS@GMAIL.COM","0016",{"$f":"LEN(Table_Query_from_SOTAMAS90[[#This Row],[CustomerName]])","v":23}]
["N16109","NEWPORT AVENUE MARKET","Bend","OR","97701","RUDY@NEWPORTAVEMARKET.COM","0016",{"$f":"LEN(Table_Query_from_SOTAMAS90[[#This Row],[CustomerName]])","v":21}]
["N16203","NIAGARA RIVER TRADING COMPANY","NIAGARA FALLS","ON","L2E4B5","NRT@NIAGRA.COM","0016",{"$f":"LEN(Table_Query_from_SOTAMAS90[[#This Row],[CustomerName]])","v":29}]
["N13205","NIBBLES & BITS","DUNMORE","PA","18510",null,"0013",{"$f":"LEN(Table_Query_from_SOTAMAS90[[#This Row],[CustomerName]])","v":14}]
["N12301","NICKLES & DIMES","CARROLLTON","TX","75010",null,"0012",{"$f":"LEN(Table_Query_from_SOTAMAS90[[#This Row],[CustomerName]])","v":15}]
["N16317","NIELSEN'S CONCESSIONS, INC","UNIVERSITY PLACE","WA","98466",null,"0010",{"$f":"LEN(Table_Query_from_SOTAMAS90[[#This Row],[CustomerName]])","v":26}]
["N13208","NINA'S SWEET SHOPPE","Lake George","NY","12845",null,"0013",{"$f":"LEN(Table_Query_from_SOTAMAS90[[#This Row],[CustomerName]])","v":19}]
["J16103","NO DAK SIS LP","GRAND FORKS","ND","58208","JUJUSWEETS2013@YAHOO.COM","0016",{"$f":"LEN(Table_Query_from_SOTAMAS90[[#This Row],[CustomerName]])","v":13}]
["N09303","NOAH'S ARK","WISCONSIN DELLS","WI","53965",null,"0009",{"$f":"LEN(Table_Query_from_SOTAMAS90[[#This Row],[CustomerName]])","v":10}]
["N16326","NORDSTROM","SEATTLE","WA","98111",null,"0010",{"$f":"LEN(Table_Query_from_SOTAMAS90[[#This Row],[CustomerName]])","v":9}]
["N06200","NORM'S NEWS","KALISPELL","MT","59901",null,"0006",{"$f":"LEN(Table_Query_from_SOTAMAS90[[#This Row],[CustomerName]])","v":11}]
["N17321","NORTH STATE GROCERY","Cottonwood","CA","96022",null,"0017",{"$f":"LEN(Table_Query_from_SOTAMAS90[[#This Row],[CustomerName]])","v":19}]
["N09101","NORTHERN EXPRESSIONS","Ely","MN","55731",null,"0009",{"$f":"LEN(Table_Query_from_SOTAMAS90[[#This Row],[CustomerName]])","v":20}]
["N13301","NORTHVILLE MARKET","NEW MILFORD","CT","06776",null,"0013",{"$f":"LEN(Table_Query_from_SOTAMAS90[[#This Row],[CustomerName]])","v":17}]
["N10111","NORTHWEST ENERGETIC SERVICES","Seal Rock","OR","97376",null,"0010",{"$f":"LEN(Table_Query_from_SOTAMAS90[[#This Row],[CustomerName]])","v":28}]
["N16201","NORTHWOODS CONFECTIONS","DULUTH","MN","55802",null,"0016",{"$f":"LEN(Table_Query_from_SOTAMAS90[[#This Row],[CustomerName]])","v":22}]
["N16105","NORTHWOODS USA","PARK CITY","UT","84060","NWUSA@MSN.COM","0016",{"$f":"LEN(Table_Query_from_SOTAMAS90[[#This Row],[CustomerName]])","v":14}]
["N06305","NOVELTY SPECIALTIES","ONTARIO","CA","91761","(800) 231-5309","0017",{"$f":"LEN(Table_Query_from_SOTAMAS90[[#This Row],[CustomerName]])","v":19}]
["N17320","NUGGET CORPORATE","WOODLAND","CA","95695",null,"0017",{"$f":"LEN(Table_Query_from_SOTAMAS90[[#This Row],[CustomerName]])","v":16}]
["N17203","NUGGET MARKET #7","ROSEVILLE","CA","95678",null,"0017",{"$f":"LEN(Table_Query_from_SOTAMAS90[[#This Row],[CustomerName]])","v":16}]
["N17202","NUGGET MARKET #8","Elk Grove","CA","95758",null,"0017",{"$f":"LEN(Table_Query_from_SOTAMAS90[[#This Row],[CustomerName]])","v":16}]
["N17325","NUGGET MARKET / FOOD 4 LESS","SACRAMENTO","CA","95842",null,"0017",{"$f":"LEN(Table_Query_from_SOTAMAS90[[#This Row],[CustomerName]])","v":27}]
["N17201","NUGGET MARKET- VACAVILLE","Vacaville","CA","95688",null,"0017",{"$f":"LEN(Table_Query_from_SOTAMAS90[[#This Row],[CustomerName]])","v":24}]
["N16103","NUT FACTORY","GREENACRES","WA","99016",null,"0016",{"$f":"LEN(Table_Query_from_SOTAMAS90[[#This Row],[CustomerName]])","v":11}]
["N16215","NUT TREE","BERNE","IN","46711",null,"0007",{"$f":"LEN(Table_Query_from_SOTAMAS90[[#This Row],[CustomerName]])","v":8}]
["N09302","NUTHATCH GIFT SHOP, THE","CRIVITZ","WI","54114",null,"0009",{"$f":"LEN(Table_Query_from_SOTAMAS90[[#This Row],[CustomerName]])","v":23}]
["N09215","NUTMAN COMPANY USA, INC.","HUBERTUS","WI","53033",null,"0009",{"$f":"LEN(Table_Query_from_SOTAMAS90[[#This Row],[CustomerName]])","v":24}]
["N13201","NUTS ABOUT CANDY","DRACUT","MA","01826",null,"0013",{"$f":"LEN(Table_Query_from_SOTAMAS90[[#This Row],[CustomerName]])","v":16}]
["O16204","O.C. TANNER","SALT LAKE CITY","UT","84115",null,"0016",{"$f":"LEN(Table_Query_from_SOTAMAS90[[#This Row],[CustomerName]])","v":11}]
["O11302","O.K. DISTRIBUTING COMPANY, INC","WILLISTON","ND","58802-1252",null,"0004",{"$f":"LEN(Table_Query_from_SOTAMAS90[[#This Row],[CustomerName]])","v":30}]
["O16217","OAKDALE CHEESE","OAKDALE","CA","95361",null,"0016",{"$f":"LEN(Table_Query_from_SOTAMAS90[[#This Row],[CustomerName]])","v":14}]
["O09302","OAK'S INC.","OSHKOSH","WI","54902","DAWNOAKS701@GMAIL.COM","0009",{"$f":"LEN(Table_Query_from_SOTAMAS90[[#This Row],[CustomerName]])","v":10}]
["O16101","OASIS TRADING COMPANY","Madera","CA","93637",null,"0016",{"$f":"LEN(Table_Query_from_SOTAMAS90[[#This Row],[CustomerName]])","v":21}]
["O16301","OBIE'S FINE CANDIES","REEDSPORT","OR","97467",null,"0010",{"$f":"LEN(Table_Query_from_SOTAMAS90[[#This Row],[CustomerName]])","v":19}]
["O17300","O'BRIEN'S SUPERMARKET","RIVERBANK","CA","95367",null,"0017",{"$f":"LEN(Table_Query_from_SOTAMAS90[[#This Row],[CustomerName]])","v":21}]
["O16219","OCEAN GRILL","MADISON","WI","53703-3311",null,"0016",{"$f":"LEN(Table_Query_from_SOTAMAS90[[#This Row],[CustomerName]])","v":11}]
["O16333","OCEAN SHORES IGA","OCEAN SHORES","WA","98569",null,"0010",{"$f":"LEN(Table_Query_from_SOTAMAS90[[#This Row],[CustomerName]])","v":16}]
["O16303","OCEANSIDE SALES & MARKETING","SAN MARCOS","CA","92079",null,"0016",{"$f":"LEN(Table_Query_from_SOTAMAS90[[#This Row],[CustomerName]])","v":27}]
["O16103","OH BABY/SHIRTS AND MORE","FORT BRAGG","CA","95437",null,"0016",{"$f":"LEN(Table_Query_from_SOTAMAS90[[#This Row],[CustomerName]])","v":23}]
["O16334","OH GELATO","VICTORIA","BC","V8V 1X6","johngidden@shaw.ca","0016",{"$f":"LEN(Table_Query_from_SOTAMAS90[[#This Row],[CustomerName]])","v":9}]
["O16206","OH SUGAR!","ROSWELL","GA","30076",null,"0016",{"$f":"LEN(Table_Query_from_SOTAMAS90[[#This Row],[CustomerName]])","v":9}]
["O16220","OKOBOJI FUDGE FACTORY","SPIRIT LAKE","IA","51360",null,"0016",{"$f":"LEN(Table_Query_from_SOTAMAS90[[#This Row],[CustomerName]])","v":21}]
["O16202","OLD BELL SCHOOL DUP MUSEUM","CEDAR HILLS","UT","84062","1FUNFAMILY@GMAIL.COM","0016",{"$f":"LEN(Table_Query_from_SOTAMAS90[[#This Row],[CustomerName]])","v":26}]
["O09201","OLD GLORY CANDY","Slinger","WI","53086","CKPRESTON@CHARTER.NET","0009",{"$f":"LEN(Table_Query_from_SOTAMAS90[[#This Row],[CustomerName]])","v":15}]
["O16215","OLD KENTUCKY CHOCOLATES","LEXINGTON","KY","40544",null,"0007",{"$f":"LEN(Table_Query_from_SOTAMAS90[[#This Row],[CustomerName]])","v":23}]
["P16315","OLD MARKET CANDY SHOP,INC.","OMAHA","NE","68102","JEFF@OLDMARKETCANDY.COM","0016",{"$f":"LEN(Table_Query_from_SOTAMAS90[[#This Row],[CustomerName]])","v":26}]
["O16207","OLD VILLAGE MERCANTILE","CALEDONIA","MO","63631",null,"0016",{"$f":"LEN(Table_Query_from_SOTAMAS90[[#This Row],[CustomerName]])","v":22}]
["O06101","OLD WEST CANDY STORE","DARBY","MT","59829",null,"0006",{"$f":"LEN(Table_Query_from_SOTAMAS90[[#This Row],[CustomerName]])","v":20}]
["O16316","OLD WEST GALLERY","DARBY","MT","59829",null,"0006",{"$f":"LEN(Table_Query_from_SOTAMAS90[[#This Row],[CustomerName]])","v":16}]
["C16282","OLMSTED","POULSBO","WA","98370","OLMLAND@YAHOO.COM","0010",{"$f":"LEN(Table_Query_from_SOTAMAS90[[#This Row],[CustomerName]])","v":7}]
["O16104","O'NEALS COUNTRY STORE","Union City","TN","38261","WWMS@WWMSINC.NET","0016",{"$f":"LEN(Table_Query_from_SOTAMAS90[[#This Row],[CustomerName]])","v":21}]
["O16315","O'QUIGLEY ENTERPRISES","VIRGINIA CITY","NV","89440",null,"0016",{"$f":"LEN(Table_Query_from_SOTAMAS90[[#This Row],[CustomerName]])","v":21}]
["O16208","ORANGE PATCH TOO","Mesa","AZ","85215",null,"0016",{"$f":"LEN(Table_Query_from_SOTAMAS90[[#This Row],[CustomerName]])","v":16}]
["O16224","ORCHARD NURSERY & FLORAL INC.","Lafayette","CA","94549",null,"0016",{"$f":"LEN(Table_Query_from_SOTAMAS90[[#This Row],[CustomerName]])","v":29}]
["O20305","ORIENTAL TRADING COMPANY","OMAHA","NE","68127",null,"0020",{"$f":"LEN(Table_Query_from_SOTAMAS90[[#This Row],[CustomerName]])","v":24}]
["O16314","ORIGINAL FUDGE KITCHEN, THE","CAPE MAY","NJ","08204",null,"0013",{"$f":"LEN(Table_Query_from_SOTAMAS90[[#This Row],[CustomerName]])","v":27}]
["C16313","ORTHO MED SPORTS SPECIALTIES","SANDY","UT","84092",null,"0016",{"$f":"LEN(Table_Query_from_SOTAMAS90[[#This Row],[CustomerName]])","v":28}]
["O11307","OSCO DRUG #2044","GREAT FALLS","MT","59401",null,"0004",{"$f":"LEN(Table_Query_from_SOTAMAS90[[#This Row],[CustomerName]])","v":15}]
["O16203","OUR COUNTRY HOME","GRABILL","IN","46741",null,"0007",{"$f":"LEN(Table_Query_from_SOTAMAS90[[#This Row],[CustomerName]])","v":16}]
["O06102","OWLFIES FLOWERS & GIFTS","Rock Springs","WY","82901",null,"0006",{"$f":"LEN(Table_Query_from_SOTAMAS90[[#This Row],[CustomerName]])","v":23}]
["O09101","OWLS 'N THINGS","OUTING","MN","56662",null,"0009",{"$f":"LEN(Table_Query_from_SOTAMAS90[[#This Row],[CustomerName]])","v":14}]
["O16205","OXFORD HOTEL ANTIQUES","BILLINGS","MT","59101",null,"0016",{"$f":"LEN(Table_Query_from_SOTAMAS90[[#This Row],[CustomerName]])","v":21}]
["O16201","OZARK OIL CO.","DOOLITTLE","MO","65550",null,"0016",{"$f":"LEN(Table_Query_from_SOTAMAS90[[#This Row],[CustomerName]])","v":13}]
["P16109","P.S. I LOVE YOU TOO","VISALIA","CA","93291",null,"0016",{"$f":"LEN(Table_Query_from_SOTAMAS90[[#This Row],[CustomerName]])","v":19}]
["P17302","P.W. SUPERMARKET #1","SAN JOSE","CA","95116",null,"0017",{"$f":"LEN(Table_Query_from_SOTAMAS90[[#This Row],[CustomerName]])","v":19}]
["P16122","PACIFIC BEACH RESORT","Hoquiam","WA","98550",null,"0016",{"$f":"LEN(Table_Query_from_SOTAMAS90[[#This Row],[CustomerName]])","v":20}]
["P04201","PACIFIC FLYWAY WHOLESALE, LLC","MIDVALE","UT","84047",null,"0004",{"$f":"LEN(Table_Query_from_SOTAMAS90[[#This Row],[CustomerName]])","v":29}]
["P16212","PACIFIC GIFT COMPANY","FORT BRAGG","CA","95437","GARBE@MCN.ORG","0016",{"$f":"LEN(Table_Query_from_SOTAMAS90[[#This Row],[CustomerName]])","v":20}]
["P16210","PACIFIC OCEAN CANDY COMPANY","AROMAS","CA","95004",null,"0016",{"$f":"LEN(Table_Query_from_SOTAMAS90[[#This Row],[CustomerName]])","v":27}]
["P10201","PALAPA BEACH","SEASIDE","OR","97138","LPVENTURES@AOL.COM","0010",{"$f":"LEN(Table_Query_from_SOTAMAS90[[#This Row],[CustomerName]])","v":12}]
["P20302","PALMER'S CANDIES","SIOUX CITY","IA","51102",null,"0016",{"$f":"LEN(Table_Query_from_SOTAMAS90[[#This Row],[CustomerName]])","v":16}]
["P16208","PALSIE'S POPCORN & SWEETS","RALEIGH","NC","27614",null,"0016",{"$f":"LEN(Table_Query_from_SOTAMAS90[[#This Row],[CustomerName]])","v":25}]
["P20301","PAMIDA, INC.","OMAHA","NE","68103",null,"0020",{"$f":"LEN(Table_Query_from_SOTAMAS90[[#This Row],[CustomerName]])","v":12}]
["P06101","PAM'S PURPLE DOOR","DEADWOOD","SD","57732",null,"0006",{"$f":"LEN(Table_Query_from_SOTAMAS90[[#This Row],[CustomerName]])","v":17}]
["P16113","PANACHE","SUWANEE","GA","30024",null,"0016",{"$f":"LEN(Table_Query_from_SOTAMAS90[[#This Row],[CustomerName]])","v":7}]
["P16302","PANDORA CANDY AT MT. OLYMPUS","WISCONSIN DELLS","WI","53965","LINDA@MTOLYMPUSTHEMEPARK.COM","0016",{"$f":"LEN(Table_Query_from_SOTAMAS90[[#This Row],[CustomerName]])","v":28}]
["P16116","PAPA'S FINE CHOCOLATES","MONTPELIER","ID","83254",null,"0016",{"$f":"LEN(Table_Query_from_SOTAMAS90[[#This Row],[CustomerName]])","v":22}]
["P16101","PAPA'S KETTLE KORN","Antioch","CA","94509",null,"0016",{"$f":"LEN(Table_Query_from_SOTAMAS90[[#This Row],[CustomerName]])","v":18}]
["P16317","PAPA'S RESTAURANT","Gore","OK","74435",null,"0016",{"$f":"LEN(Table_Query_from_SOTAMAS90[[#This Row],[CustomerName]])","v":17}]
["P10102","PAPER DELIGHTS","Seattle","WA","98103",null,"0010",{"$f":"LEN(Table_Query_from_SOTAMAS90[[#This Row],[CustomerName]])","v":14}]
["P10105","PARADIGM FOODWORKS","LAKE OSWEGO","OR","97035",null,"0010",{"$f":"LEN(Table_Query_from_SOTAMAS90[[#This Row],[CustomerName]])","v":18}]
["P11308","PARK DISTRIBUTING","Island Park","ID","83429",null,"0004",{"$f":"LEN(Table_Query_from_SOTAMAS90[[#This Row],[CustomerName]])","v":17}]
["P09301","PARKSIDE PRODUCE","RACINE","WI","53402",null,"0009",{"$f":"LEN(Table_Query_from_SOTAMAS90[[#This Row],[CustomerName]])","v":16}]
["P09201","PARKSIDE PRODUCE-RACINE","RACINE","WI","53402",null,"0009",{"$f":"LEN(Table_Query_from_SOTAMAS90[[#This Row],[CustomerName]])","v":23}]
["P16123","PARKSIDE PRODUCTS",null,null,null,null,"0016",{"$f":"LEN(Table_Query_from_SOTAMAS90[[#This Row],[CustomerName]])","v":17}]
["P11101","PARROT CONFECTIONERY","HELENA","MT","59601",null,"0006",{"$f":"LEN(Table_Query_from_SOTAMAS90[[#This Row],[CustomerName]])","v":20}]
["P16206","PARTY EXPRESS","PRICE","UT","84501",null,"0016",{"$f":"LEN(Table_Query_from_SOTAMAS90[[#This Row],[CustomerName]])","v":13}]
["P07100","PARTY SHOP","RICHMOND","KY","40475",null,"0007",{"$f":"LEN(Table_Query_from_SOTAMAS90[[#This Row],[CustomerName]])","v":10}]
["P16203","PATRICKS OF BODEGA BAY","BODEGA BAY","CA","94923",null,"0016",{"$f":"LEN(Table_Query_from_SOTAMAS90[[#This Row],[CustomerName]])","v":22}]
["P16120","PATSY'S CANDIES INC.","COLORADO SPRINGS","CO","80904",null,"0016",{"$f":"LEN(Table_Query_from_SOTAMAS90[[#This Row],[CustomerName]])","v":20}]
["P07101","PATTY'S OLD FASHIONED POPCORN","CINCINNATI","OH","45201",null,"0007",{"$f":"LEN(Table_Query_from_SOTAMAS90[[#This Row],[CustomerName]])","v":29}]
["P16119","PATTY'S OLD FASHIONED POPCORN","FLORENCE","KY","41042",null,"0016",{"$f":"LEN(Table_Query_from_SOTAMAS90[[#This Row],[CustomerName]])","v":29}]
["P06202","PAULA'S EDIBLES","Billings","MT","59101","PAULASEDIBLES@MSN.COM","0006",{"$f":"LEN(Table_Query_from_SOTAMAS90[[#This Row],[CustomerName]])","v":15}]
["P10103","PAULA'S HALLMARK","MERCER ISLAND","WA","98040","TRICIAK.HALLMARK@COMCAST.NET","0010",{"$f":"LEN(Table_Query_from_SOTAMAS90[[#This Row],[CustomerName]])","v":16}]
["P16200","PEANUT LAND EXPRESS LTD.","ALBANY","NY","12220",null,"0016",{"$f":"LEN(Table_Query_from_SOTAMAS90[[#This Row],[CustomerName]])","v":24}]
["P16102","PEDRO'S PRIDE","Sagle","ID","83860",null,"0016",{"$f":"LEN(Table_Query_from_SOTAMAS90[[#This Row],[CustomerName]])","v":13}]
["P13305","PEGASUS","WINDSOR LOCKS","CT","06096",null,"0013",{"$f":"LEN(Table_Query_from_SOTAMAS90[[#This Row],[CustomerName]])","v":7}]
["P07200","PELZ LETTERING SHIRT SHACK","SANDUSKY","OH","44870","dspec@aol.com","0007",{"$f":"LEN(Table_Query_from_SOTAMAS90[[#This Row],[CustomerName]])","v":26}]
["P13100","PEMBERTON FARMS","CAMBRIDGE","MA","02140",null,"0013",{"$f":"LEN(Table_Query_from_SOTAMAS90[[#This Row],[CustomerName]])","v":15}]
["P13214","PEMBERTON FARMS","Cambridge","MA","02140",null,"0013",{"$f":"LEN(Table_Query_from_SOTAMAS90[[#This Row],[CustomerName]])","v":15}]
["P09101","PENGAL'S","Ely","MN","55731",null,"0009",{"$f":"LEN(Table_Query_from_SOTAMAS90[[#This Row],[CustomerName]])","v":8}]
["P11303","PENNINGTON'S, INC. (G.F.)","GREAT FALLS","MT","59403",null,"0008",{"$f":"LEN(Table_Query_from_SOTAMAS90[[#This Row],[CustomerName]])","v":25}]
["P06201","PENNY CANDY STORE","COEUR D ALENE","ID","83814",null,"0006",{"$f":"LEN(Table_Query_from_SOTAMAS90[[#This Row],[CustomerName]])","v":17}]
["P16222","PENTWATER POPCORN","PENTWATER","MI","49449",null,"0016",{"$f":"LEN(Table_Query_from_SOTAMAS90[[#This Row],[CustomerName]])","v":17}]
["P16121","PEPPER SPRINGS OUTWEST","El Paso","TX","79935","ROGER10812@FLASH.NET","0016",{"$f":"LEN(Table_Query_from_SOTAMAS90[[#This Row],[CustomerName]])","v":22}]
["K11205","PEPPERMINT PLACE","AMERICAN FORK","UT","84003",null,"0006",{"$f":"LEN(Table_Query_from_SOTAMAS90[[#This Row],[CustomerName]])","v":16}]
["P09205","PET EXPRESSIONS","ONEIDA","WI","54155","VERNAFGK@NEW.RR.COM","0009",{"$f":"LEN(Table_Query_from_SOTAMAS90[[#This Row],[CustomerName]])","v":15}]
["P09308","PETER'S IMPORTS","GRANDVILLE","MI","49418",null,"0009",{"$f":"LEN(Table_Query_from_SOTAMAS90[[#This Row],[CustomerName]])","v":15}]
["P16214","PETERSON POPCORN","INVER GROVES HEIGHTS","MN","55076",null,"0016",{"$f":"LEN(Table_Query_from_SOTAMAS90[[#This Row],[CustomerName]])","v":16}]
["P11302","PETERSON'S MARKET PLACE","RIVERTON","UT","84065",null,"0008",{"$f":"LEN(Table_Query_from_SOTAMAS90[[#This Row],[CustomerName]])","v":23}]
["P07201","PFANDER, INC.","CINCINNATI","OH","45238",null,"0007",{"$f":"LEN(Table_Query_from_SOTAMAS90[[#This Row],[CustomerName]])","v":13}]
["P16209","PICKLES DELI","LITTLETON","CO","80127","ACCOUNTING@TIPSYLIQUORWORLD.COM","0016",{"$f":"LEN(Table_Query_from_SOTAMAS90[[#This Row],[CustomerName]])","v":12}]
["P08101","PIKES PEAK CHOCOLATES","Manitou Springs","CO","80829",null,"0008",{"$f":"LEN(Table_Query_from_SOTAMAS90[[#This Row],[CustomerName]])","v":21}]
["P09304","PINCKNEY PHARMACY","PINCKNEY","MI","48169","pinoff@charterni.net","0009",{"$f":"LEN(Table_Query_from_SOTAMAS90[[#This Row],[CustomerName]])","v":17}]
["P16107","PINE COUNTRY ANTIQUES","PINE","AZ","85544",null,"0016",{"$f":"LEN(Table_Query_from_SOTAMAS90[[#This Row],[CustomerName]])","v":21}]
["P13311","PINOTTI DISTRIBUTING CO., INC.","SUTTER CREEK","CA","95685",null,"0017",{"$f":"LEN(Table_Query_from_SOTAMAS90[[#This Row],[CustomerName]])","v":30}]
["P16117","PIONEER COUNTRY STORE","LAUGHLIN","NV","89029",null,"0016",{"$f":"LEN(Table_Query_from_SOTAMAS90[[#This Row],[CustomerName]])","v":21}]
["P16223","PIXIE CANDY SHOPPE","NELSON","BC","V1L 4J1","pixie99@telus.net","0016",{"$f":"LEN(Table_Query_from_SOTAMAS90[[#This Row],[CustomerName]])","v":18}]
["R11205","PLANET RAINBOW","OGDEN","UT","84401",null,"0006",{"$f":"LEN(Table_Query_from_SOTAMAS90[[#This Row],[CustomerName]])","v":14}]
["P16205","PLANO JERKY","PORTERVILLE","CA","93257",null,"0016",{"$f":"LEN(Table_Query_from_SOTAMAS90[[#This Row],[CustomerName]])","v":11}]
["P16207","POHL DISTRIBUTING","MINNEAPOLIS","MN","55414","SHERTHRUSH@POHLFOOD.COM","0016",{"$f":"LEN(Table_Query_from_SOTAMAS90[[#This Row],[CustomerName]])","v":17}]
["P16103","POLKA DOT PENGUIN POTTERY","Rye","NY","10580",null,"0016",{"$f":"LEN(Table_Query_from_SOTAMAS90[[#This Row],[CustomerName]])","v":25}]
["P16304","POLLY'S INC.","ANAHEIM","CA","92801",null,"0016",{"$f":"LEN(Table_Query_from_SOTAMAS90[[#This Row],[CustomerName]])","v":12}]
["P09103","POP THIS POPCORN SHOP","CHICAGO","IL","60605",null,"0009",{"$f":"LEN(Table_Query_from_SOTAMAS90[[#This Row],[CustomerName]])","v":21}]
["P16213","POPALOP'S","Raleigh","NC","27607",null,"0016",{"$f":"LEN(Table_Query_from_SOTAMAS90[[#This Row],[CustomerName]])","v":9}]
["P09303","POPCORN FACTORY, THE","LAKE FOREST","IL","60045-4533",null,"0009",{"$f":"LEN(Table_Query_from_SOTAMAS90[[#This Row],[CustomerName]])","v":20}]
["P16106","POPCORN GIRL","LAS VEGAS","NV","89117","LAURIESABOL@GMAIL.COM","0016",{"$f":"LEN(Table_Query_from_SOTAMAS90[[#This Row],[CustomerName]])","v":12}]
["P12200","POPCORN PAPA","DALLAS","TX","75248","INFO@POPCORNPAPA.COM","0012",{"$f":"LEN(Table_Query_from_SOTAMAS90[[#This Row],[CustomerName]])","v":12}]
["P16316","POPCORN SHOPPE","North Liberty","IA","52317","JAN_Y@HOTMAIL.COM","0016",{"$f":"LEN(Table_Query_from_SOTAMAS90[[#This Row],[CustomerName]])","v":14}]
["P16204","POPCORN STOP","Arlington","TX","76001",null,"0016",{"$f":"LEN(Table_Query_from_SOTAMAS90[[#This Row],[CustomerName]])","v":12}]
["P16112","POPIT POPCORN","PLANO","TX","75025",null,"0016",{"$f":"LEN(Table_Query_from_SOTAMAS90[[#This Row],[CustomerName]])","v":13}]
["P16201","PORT CITY CANDY COMPANY","Manistee","MI","49660",null,"0016",{"$f":"LEN(Table_Query_from_SOTAMAS90[[#This Row],[CustomerName]])","v":23}]
["P16110","PORT JEFFERSON FRIGATE","PORT JEFFERSON","NY","11777","INFO@PORTJEFFERSONFRIGATE.COM","0016",{"$f":"LEN(Table_Query_from_SOTAMAS90[[#This Row],[CustomerName]])","v":22}]
["P16115","PORTER'S OFFICE PRODUCTS","REXBURG","ID","83440","BCOOK@PORTERSHOP.COM","0016",{"$f":"LEN(Table_Query_from_SOTAMAS90[[#This Row],[CustomerName]])","v":24}]
["P16118","POTLUCK TRADING POST","BURNEY","CA","96013",null,"0016",{"$f":"LEN(Table_Query_from_SOTAMAS90[[#This Row],[CustomerName]])","v":20}]
["P16306","POWERS CANDY & NUT COMPANY","SPOKANE","WA","99217-0909",null,"0010",{"$f":"LEN(Table_Query_from_SOTAMAS90[[#This Row],[CustomerName]])","v":26}]
["P11306","POWERS CANDY CO. INC.","POCATELLO","ID","83201",null,"0008",{"$f":"LEN(Table_Query_from_SOTAMAS90[[#This Row],[CustomerName]])","v":21}]
["P16202","PREMIUM NUT & DRIED FRUIT CO.","Chula Vista","CA","91911",null,"0016",{"$f":"LEN(Table_Query_from_SOTAMAS90[[#This Row],[CustomerName]])","v":29}]
["P16301","PRESCOTT FOOD STORE","PRESCOTT","AZ","86301",null,"0016",{"$f":"LEN(Table_Query_from_SOTAMAS90[[#This Row],[CustomerName]])","v":19}]
["P16105","PRIEST LAKE STATE PARK","COOLIN","ID","83821",null,"0016",{"$f":"LEN(Table_Query_from_SOTAMAS90[[#This Row],[CustomerName]])","v":22}]
["P16104","PRIESTER'S PECANS","Fort Deposit","AL","36032",null,"0016",{"$f":"LEN(Table_Query_from_SOTAMAS90[[#This Row],[CustomerName]])","v":17}]
["P16108","PRISCILLA CANDY SHOP","GARDNER","MA","01440","PRISCANDY@VERISON.NET","0016",{"$f":"LEN(Table_Query_from_SOTAMAS90[[#This Row],[CustomerName]])","v":20}]
["P16218","PROVO MARRIOTT","PROVO","UT","84601",null,"0016",{"$f":"LEN(Table_Query_from_SOTAMAS90[[#This Row],[CustomerName]])","v":14}]
["P16211","PUBLISHERS CLEARING HOUSE","PORT WASHINGTON","NY","11050",null,"0016",{"$f":"LEN(Table_Query_from_SOTAMAS90[[#This Row],[CustomerName]])","v":25}]
["P16114","PUMPKINLAND CHOCOLATE COMPANY","RED BLUFF","CA","96080","B96080@GMAIL.COM","0016",{"$f":"LEN(Table_Query_from_SOTAMAS90[[#This Row],[CustomerName]])","v":29}]
["P17312","PW SUPERMARKET INC.","SAN JOSE","CA","95116-2080",null,"0017",{"$f":"LEN(Table_Query_from_SOTAMAS90[[#This Row],[CustomerName]])","v":19}]
["Q09304","QUALITY AIR FORWARDING","MILWAUKEE","WI","53237",null,"0009",{"$f":"LEN(Table_Query_from_SOTAMAS90[[#This Row],[CustomerName]])","v":22}]
["Q09301","QUALITY CANDY CO.","MILWAUKEE","WI","53207",null,"0009",{"$f":"LEN(Table_Query_from_SOTAMAS90[[#This Row],[CustomerName]])","v":17}]
["Q16101","QUALTRUST CREDIT UNION","BEDFORD","TX","76021",null,"0016",{"$f":"LEN(Table_Query_from_SOTAMAS90[[#This Row],[CustomerName]])","v":22}]
["R16226","R & W CREATIVE GROUP","IRVINE","CA","92614",null,"0016",{"$f":"LEN(Table_Query_from_SOTAMAS90[[#This Row],[CustomerName]])","v":20}]
["R12301","R.C. TAYLOR DISTRIBUTING, INC.","LUBBOCK","TX","79408","DLOVELL@RCTTEXAS.COM","0012",{"$f":"LEN(Table_Query_from_SOTAMAS90[[#This Row],[CustomerName]])","v":30}]
["R16228","R.C. WILLEY","SALT LAKE CITY","UT","84165-0320",null,"0016",{"$f":"LEN(Table_Query_from_SOTAMAS90[[#This Row],[CustomerName]])","v":11}]
["R16210","R.U. NUTS","LINCOLN","NE","68502",null,"0016",{"$f":"LEN(Table_Query_from_SOTAMAS90[[#This Row],[CustomerName]])","v":9}]
["R20301","R.U. NUTS CO.","LINCOLN","NE","68502",null,"0020",{"$f":"LEN(Table_Query_from_SOTAMAS90[[#This Row],[CustomerName]])","v":13}]
["R16247","RADIOLOGICAL ASSOCIATES OF","Sacramento","CA","95815","MCCONNELLCA@RADIOLOGICAL.COM","0016",{"$f":"LEN(Table_Query_from_SOTAMAS90[[#This Row],[CustomerName]])","v":26}]
["R16208","RADISSON HOTEL","SALT LAKE CITY","UT","84116","ANISSA.ELKINS@RADISSON.COM","0016",{"$f":"LEN(Table_Query_from_SOTAMAS90[[#This Row],[CustomerName]])","v":14}]
["R16304","RADISSON HOTEL BLOOMINGTON","Minneapolis","MN","55425",null,"0016",{"$f":"LEN(Table_Query_from_SOTAMAS90[[#This Row],[CustomerName]])","v":26}]
["R16202","RAG THYME","LAKE GENEVA","WI","53147",null,"0016",{"$f":"LEN(Table_Query_from_SOTAMAS90[[#This Row],[CustomerName]])","v":9}]
["R12303","RAGSDALE ENTERPRISES","COPPERAS COVE","TX","76522",null,"0012",{"$f":"LEN(Table_Query_from_SOTAMAS90[[#This Row],[CustomerName]])","v":20}]
["R11301","RAINBOW GARDENS","OGDEN","UT","84401",null,"0006",{"$f":"LEN(Table_Query_from_SOTAMAS90[[#This Row],[CustomerName]])","v":15}]
["R13202","RANDALL FARMS","LUDLOW","MA","01056",null,"0013",{"$f":"LEN(Table_Query_from_SOTAMAS90[[#This Row],[CustomerName]])","v":13}]
["R11201","RASPBERRY PATCH","GREAT FALLS","MT","59405",null,"0006",{"$f":"LEN(Table_Query_from_SOTAMAS90[[#This Row],[CustomerName]])","v":15}]
["R16305","RAU'S COUNTRY STORE","FRANKENMUTH","MI","48734","STEVE@RAUSCOUNTRYSTORE.COM","0009",{"$f":"LEN(Table_Query_from_SOTAMAS90[[#This Row],[CustomerName]])","v":19}]
["R11304","REAMS # 4","Salt Lake City","UT","84115",null,"0008",{"$f":"LEN(Table_Query_from_SOTAMAS90[[#This Row],[CustomerName]])","v":9}]
["R11309","REAM'S (MAIN OFFICE)","SALT LAKE CITY","UT","84115",null,"0008",{"$f":"LEN(Table_Query_from_SOTAMAS90[[#This Row],[CustomerName]])","v":20}]
["R11314","REAM'S#14","LAYTON","UT","84041",null,"0008",{"$f":"LEN(Table_Query_from_SOTAMAS90[[#This Row],[CustomerName]])","v":9}]
["R16106","RED BERRY","MADISON","OH","44057",null,"0016",{"$f":"LEN(Table_Query_from_SOTAMAS90[[#This Row],[CustomerName]])","v":9}]
["R09307","RED WING POTTERY SALES","RED WING","MN","55066",null,"0009",{"$f":"LEN(Table_Query_from_SOTAMAS90[[#This Row],[CustomerName]])","v":22}]
["R16306","REDMON'S TRAVEL CENTER","Phillipsburg","MO","65722",null,"0016",{"$f":"LEN(Table_Query_from_SOTAMAS90[[#This Row],[CustomerName]])","v":22}]
["R12304","REDSTONE FOODS, INC.","CARROLLTON","TX","75011-8888","josh@redstonefoods.com","0012",{"$f":"LEN(Table_Query_from_SOTAMAS90[[#This Row],[CustomerName]])","v":20}]
["R16206","REDWOOD GROCERY & HEALTH FOOD","Salt Lake City","UT","84123",null,"0016",{"$f":"LEN(Table_Query_from_SOTAMAS90[[#This Row],[CustomerName]])","v":29}]
["R10213","REED COLLEGE BOOKSTORE","PORTLAND","OR","97202",null,"0010",{"$f":"LEN(Table_Query_from_SOTAMAS90[[#This Row],[CustomerName]])","v":22}]
["R07300","REGENCY OF HOWLAND","WARREN","OH","44484","REGOFHOW@AOL.COM","0007",{"$f":"LEN(Table_Query_from_SOTAMAS90[[#This Row],[CustomerName]])","v":18}]
["R09312","REGINA CANDIES","ST. PAUL","MN","55105",null,"0009",{"$f":"LEN(Table_Query_from_SOTAMAS90[[#This Row],[CustomerName]])","v":14}]
["R16227","REMARKABLE SWEETS","BONITA SPRINGS","FL","34134","MARKSMARY69@AOL.COM","0016",{"$f":"LEN(Table_Query_from_SOTAMAS90[[#This Row],[CustomerName]])","v":17}]
["K16315","RESORT SCENIC PHOTO &","BIG BEAR LAKE","CA","92315","RSPSROMERO@GMAIL.COM","0016",{"$f":"LEN(Table_Query_from_SOTAMAS90[[#This Row],[CustomerName]])","v":21}]
["R16105","RETAIL",null,null,null,null,"0016",{"$f":"LEN(Table_Query_from_SOTAMAS90[[#This Row],[CustomerName]])","v":6}]
["R17205","RICHLAND MARKETS","CERES","CA","95307",null,"0017",{"$f":"LEN(Table_Query_from_SOTAMAS90[[#This Row],[CustomerName]])","v":16}]
["R16324","RIDE THE DUCKS OF BRANSON, INC","BRANSON","MO","65615",null,"0016",{"$f":"LEN(Table_Query_from_SOTAMAS90[[#This Row],[CustomerName]])","v":30}]
["R16301","RIEDEL FARMS","BURLINGTON","WA","98233",null,"0010",{"$f":"LEN(Table_Query_from_SOTAMAS90[[#This Row],[CustomerName]])","v":12}]
["R16204","RITZ CARLTON, NAPLES","Naples","FL","34108",null,"0016",{"$f":"LEN(Table_Query_from_SOTAMAS90[[#This Row],[CustomerName]])","v":20}]
["R16215","RITZ CARLTON-LAGUNA NIGUEL","DANA POINT","CA","92629",null,"0016",{"$f":"LEN(Table_Query_from_SOTAMAS90[[#This Row],[CustomerName]])","v":26}]
["R16302","RIVER CITY SWEET SHOP","CAMBRIDGE","MN","55008",null,"0016",{"$f":"LEN(Table_Query_from_SOTAMAS90[[#This Row],[CustomerName]])","v":21}]
["R13204","RIVER DELL FLOWERS & GIFTS","ORADELL","NJ","07649",null,"0013",{"$f":"LEN(Table_Query_from_SOTAMAS90[[#This Row],[CustomerName]])","v":26}]
["R06201","RIVER ROCK CANDY EMPORIUM","MISSOULA","MT","59802",null,"0006",{"$f":"LEN(Table_Query_from_SOTAMAS90[[#This Row],[CustomerName]])","v":25}]
["R16317","RIVERBIRCH MERCANTILE","BRANSON","MO","65616",null,"0016",{"$f":"LEN(Table_Query_from_SOTAMAS90[[#This Row],[CustomerName]])","v":21}]
["R16107","RIVERS EDGE SHOPPE","Waupun","WI","53963","INFO@RIVERSEDGESHOPPE.COM","0016",{"$f":"LEN(Table_Query_from_SOTAMAS90[[#This Row],[CustomerName]])","v":18}]
["R16203","RIVERSIDE CHOCOLATE FACTORY","MCHENRY","IL","60050",null,"0016",{"$f":"LEN(Table_Query_from_SOTAMAS90[[#This Row],[CustomerName]])","v":27}]
["R16235","RNW MARKETING, INC.","Ocean Shores","WA","98569",null,"0010",{"$f":"LEN(Table_Query_from_SOTAMAS90[[#This Row],[CustomerName]])","v":19}]
["R16307","ROBERT D. ARNOLD & ASSOCIATES","FLINT","MI","48501",null,"0016",{"$f":"LEN(Table_Query_from_SOTAMAS90[[#This Row],[CustomerName]])","v":29}]
["R13207","ROBINSON GARDENS","HOLLAND","NY","14080",null,"0013",{"$f":"LEN(Table_Query_from_SOTAMAS90[[#This Row],[CustomerName]])","v":16}]
["R16303","ROBISON, E.A., CO.","MURRAY","UT","84123",null,"0016",{"$f":"LEN(Table_Query_from_SOTAMAS90[[#This Row],[CustomerName]])","v":18}]
["R16103","ROCK CANDY JEWELRY","LEONARD","ND","58052",null,"0016",{"$f":"LEN(Table_Query_from_SOTAMAS90[[#This Row],[CustomerName]])","v":18}]
["R16205","ROCKY MOUNTAIN CHOC. FACTORY","MAPLE GROVE","MN","55369","declined@didn'tcare.com","0016",{"$f":"LEN(Table_Query_from_SOTAMAS90[[#This Row],[CustomerName]])","v":28}]
["R16245","ROCKY MOUNTAIN CHOC. FACTORY","LOVELAND","CO","80538",null,"0016",{"$f":"LEN(Table_Query_from_SOTAMAS90[[#This Row],[CustomerName]])","v":28}]
["R16200","ROCKY MOUNTAIN CHOCOLATE","GALVESTON","TX","77550","iroberts@gvtc.com","0016",{"$f":"LEN(Table_Query_from_SOTAMAS90[[#This Row],[CustomerName]])","v":24}]
["R16242","ROCKY MT. CHOC. FACTORY","SAN MARCOS","TX","78666",null,"0016",{"$f":"LEN(Table_Query_from_SOTAMAS90[[#This Row],[CustomerName]])","v":23}]
["R09214","ROCKY MT. CHOCOLATE FACTORY","NORTHFIELD","IL","60093",null,"0009",{"$f":"LEN(Table_Query_from_SOTAMAS90[[#This Row],[CustomerName]])","v":27}]
["R16240","ROCKY MT. CHOCOLATE FACTORY","FORT COLLINS","CO","80525",null,"0016",{"$f":"LEN(Table_Query_from_SOTAMAS90[[#This Row],[CustomerName]])","v":27}]
["R16211","RODEO CITY POPCORN","MESQUITE","TX","75150","TONY.VALENTI@RCPOPCORN.COM","0016",{"$f":"LEN(Table_Query_from_SOTAMAS90[[#This Row],[CustomerName]])","v":18}]
["R16232","ROME CANDY CO, INC.","South Yarmouth","MA","02664",null,"0016",{"$f":"LEN(Table_Query_from_SOTAMAS90[[#This Row],[CustomerName]])","v":19}]
["R13203","ROMITOS & SONS","EAST LONGMEADOW","MA","01028",null,"0013",{"$f":"LEN(Table_Query_from_SOTAMAS90[[#This Row],[CustomerName]])","v":14}]
["R17203","ROPAMEX WHOLESALE","CARUTHERS","CA","93609-9712",null,"0017",{"$f":"LEN(Table_Query_from_SOTAMAS90[[#This Row],[CustomerName]])","v":17}]
["R13205","ROSE FLOWERS & GIFTS","MERIDEN","CT","06451",null,"0013",{"$f":"LEN(Table_Query_from_SOTAMAS90[[#This Row],[CustomerName]])","v":20}]
["C16208","ROSELL SPECIALTIES","NOVATO","CA","94947","NANCY@ROSELLSPECIALTIES.COM","0016",{"$f":"LEN(Table_Query_from_SOTAMAS90[[#This Row],[CustomerName]])","v":18}]
["R16209","ROSELL SPECIALTIES","NOVATO","CA","94947","NANCY@ROSELLSPECIALTIES.COM","0016",{"$f":"LEN(Table_Query_from_SOTAMAS90[[#This Row],[CustomerName]])","v":18}]
["R09216","ROSES-R-READ","MADISON","WI","53703",null,"0009",{"$f":"LEN(Table_Query_from_SOTAMAS90[[#This Row],[CustomerName]])","v":12}]
["R16207","ROSEVILLE GIFTS","Wild Rose","WI","54984",null,"0016",{"$f":"LEN(Table_Query_from_SOTAMAS90[[#This Row],[CustomerName]])","v":15}]
["R16238","ROSIE'S SWEET SHOPPE","TEHACHAPI","CA","93561",null,"0016",{"$f":"LEN(Table_Query_from_SOTAMAS90[[#This Row],[CustomerName]])","v":20}]
["R16323","ROSS STORES, INC.","PLEASANTON","CA","94588","OTP-ROSS@ROS.COM","0017",{"$f":"LEN(Table_Query_from_SOTAMAS90[[#This Row],[CustomerName]])","v":17}]
["R09211","ROUNDYS SUPERMARKETS INC","MILWAUKEE","WI","53201",null,"0009",{"$f":"LEN(Table_Query_from_SOTAMAS90[[#This Row],[CustomerName]])","v":24}]
["R16212","ROUTE 66 CANDY SHOPPE","Waynesville","MO","65583",null,"0016",{"$f":"LEN(Table_Query_from_SOTAMAS90[[#This Row],[CustomerName]])","v":21}]
["R06101","ROWLEY SOUTH RIDGE","SANTAQUIN","UT","84655",null,"0006",{"$f":"LEN(Table_Query_from_SOTAMAS90[[#This Row],[CustomerName]])","v":18}]
["R16108","ROYAL SCOOP HOMEMADE ICE CREAM","Bonita Springs","FL","34134",null,"0016",{"$f":"LEN(Table_Query_from_SOTAMAS90[[#This Row],[CustomerName]])","v":30}]
["R05200","RT'S MARKET","Bluffton","SC","29910","MARKET@PALMETTOBLUFFCLUB.COM","0016",{"$f":"LEN(Table_Query_from_SOTAMAS90[[#This Row],[CustomerName]])","v":11}]
["R16102","RUBY'S INN GENERAL STORE","BRYCE","UT","84764",null,"0016",{"$f":"LEN(Table_Query_from_SOTAMAS90[[#This Row],[CustomerName]])","v":24}]
["R16101","RUDY KAZOODY'S","ROCKFORD","MI","49341","MBCAVENDER@GMAIL.COM","0016",{"$f":"LEN(Table_Query_from_SOTAMAS90[[#This Row],[CustomerName]])","v":14}]
["R10214","RUDY'S MARKETS INC.","BEND","OR","97701",null,"0010",{"$f":"LEN(Table_Query_from_SOTAMAS90[[#This Row],[CustomerName]])","v":19}]
["S16219","S & S FLAVORS","Brea","CA","92821","LINDSAY@SSFLAVORS.COM","0016",{"$f":"LEN(Table_Query_from_SOTAMAS90[[#This Row],[CustomerName]])","v":13}]
["S16147","S.A.S.L, LLC","PUYALLUP","WA","98374","THEFRANKFURTER.SEATTLE@GMAIL.COM","0016",{"$f":"LEN(Table_Query_from_SOTAMAS90[[#This Row],[CustomerName]])","v":12}]
["S16102","SACRAMENTO BEEKEEPING SUPPLIES","Sacramento","CA","95818","INFO@SACRAMENTOBEEKEEPING.COM","0016",{"$f":"LEN(Table_Query_from_SOTAMAS90[[#This Row],[CustomerName]])","v":30}]
["S16207","SACRED HEARTS PARISH","Sun Prairie","WI","53590",null,"0016",{"$f":"LEN(Table_Query_from_SOTAMAS90[[#This Row],[CustomerName]])","v":20}]
["S13306","SADO GAS SALES, INC.","HAMBURG","NY","14075",null,"0013",{"$f":"LEN(Table_Query_from_SOTAMAS90[[#This Row],[CustomerName]])","v":20}]
["0000001","SageCRM Prospects",null,null,null,null,"0016",{"$f":"LEN(Table_Query_from_SOTAMAS90[[#This Row],[CustomerName]])","v":17}]
["S09207","SAINT LAURENT BROTHERS","BAY CITY","MI","48708",null,"0009",{"$f":"LEN(Table_Query_from_SOTAMAS90[[#This Row],[CustomerName]])","v":22}]
["S13103","SALA DOLCE","LYNN","MA","01902",null,"0013",{"$f":"LEN(Table_Query_from_SOTAMAS90[[#This Row],[CustomerName]])","v":10}]
["S13208","SALEM WITCH MUSEUM","SALEM","MA","01970",null,"0013",{"$f":"LEN(Table_Query_from_SOTAMAS90[[#This Row],[CustomerName]])","v":18}]
["S16243","SALT AND PAPER","MANZANITA","OR","97130","SALTANDPAPER@NEHALEMTEL.NET","0010",{"$f":"LEN(Table_Query_from_SOTAMAS90[[#This Row],[CustomerName]])","v":14}]
["C16136","SALT CITY GIFTING","Salt Lake City","UT","84101",null,"0016",{"$f":"LEN(Table_Query_from_SOTAMAS90[[#This Row],[CustomerName]])","v":17}]
["S16232","SALT ISLAND ADVENTURES","SALT LAKE CITY","UT","84108",null,"0016",{"$f":"LEN(Table_Query_from_SOTAMAS90[[#This Row],[CustomerName]])","v":22}]
["S16112","SALT LAKE KOA",null,null,null,null,"0016",{"$f":"LEN(Table_Query_from_SOTAMAS90[[#This Row],[CustomerName]])","v":13}]
["S16131","SALT LAKE SOUVENIR SHOP","SALT LAKE CITY","UT","84101","COANDJER@COMCAST.NET","0016",{"$f":"LEN(Table_Query_from_SOTAMAS90[[#This Row],[CustomerName]])","v":23}]
["S08101","SALT LAKE SPECIALTY FOODS","Draper","UT","84020",null,"0008",{"$f":"LEN(Table_Query_from_SOTAMAS90[[#This Row],[CustomerName]])","v":25}]
["S06202","SALTAIR BOUTIQUE, LLC","MESA","AZ","85201",null,"0006",{"$f":"LEN(Table_Query_from_SOTAMAS90[[#This Row],[CustomerName]])","v":21}]
["S16228","SALTAIR GIFTS","Salt Lake City","UT","84110-2213",null,"0016",{"$f":"LEN(Table_Query_from_SOTAMAS90[[#This Row],[CustomerName]])","v":13}]
["S16139","SALTAIR GIFTSHOP, INC","Salt Lake City","UT","84121",null,"0016",{"$f":"LEN(Table_Query_from_SOTAMAS90[[#This Row],[CustomerName]])","v":21}]
["T16201","SALTAIR TAFFY COMPANY","Sierra Vista","AZ","85650",null,"0016",{"$f":"LEN(Table_Query_from_SOTAMAS90[[#This Row],[CustomerName]])","v":21}]
["S16211","SAMAK SMOKEHOUSE","KAMAS","UT","84036",null,"0016",{"$f":"LEN(Table_Query_from_SOTAMAS90[[#This Row],[CustomerName]])","v":16}]
["S10203","SAMMIE JO'S","SNOHOMISH","WA","98290",null,"0010",{"$f":"LEN(Table_Query_from_SOTAMAS90[[#This Row],[CustomerName]])","v":11}]
["S11215","SAM'S CANDY","Centerville","UT","84014",null,"0006",{"$f":"LEN(Table_Query_from_SOTAMAS90[[#This Row],[CustomerName]])","v":11}]
["S16254","SANDEE'S CANDEE'S","SALMON","ID","83467",null,"0016",{"$f":"LEN(Table_Query_from_SOTAMAS90[[#This Row],[CustomerName]])","v":17}]
["S16273","SANDEE'S CANDEE'S","Salmon","ID","83467",null,"0016",{"$f":"LEN(Table_Query_from_SOTAMAS90[[#This Row],[CustomerName]])","v":17}]
["S09211","SANDERS OF MACKINAW","LEVERING","MI","49755",null,"0009",{"$f":"LEN(Table_Query_from_SOTAMAS90[[#This Row],[CustomerName]])","v":19}]
["S16252","SANDERSON FARMS","KEREMEOS","BC","V0X1N1",null,"0016",{"$f":"LEN(Table_Query_from_SOTAMAS90[[#This Row],[CustomerName]])","v":15}]
["S16309","SANDMAN'S CANDYLAND","HOLDEN BEACH","NC","28462","BONNIECOX@BRUNSWICKLANDREALTY.COM","0016",{"$f":"LEN(Table_Query_from_SOTAMAS90[[#This Row],[CustomerName]])","v":19}]
["S08102","SANDY OFFICE SUPPLY","ASPEN","CO","81611",null,"0008",{"$f":"LEN(Table_Query_from_SOTAMAS90[[#This Row],[CustomerName]])","v":19}]
["S16104","SANTA FE BASKET COMPANY","Santa Fe","NM","87501",null,"0016",{"$f":"LEN(Table_Query_from_SOTAMAS90[[#This Row],[CustomerName]])","v":23}]
["S06101","SARAH'S CANDY COTTAGE","IDAHO FALLS","ID","83403",null,"0006",{"$f":"LEN(Table_Query_from_SOTAMAS90[[#This Row],[CustomerName]])","v":21}]
["S16109","SARAH'S CANDY COTTAGE","IDAHO FALLS","ID","83403",null,"0016",{"$f":"LEN(Table_Query_from_SOTAMAS90[[#This Row],[CustomerName]])","v":21}]
["S07221","SARRIS CANDIES,INC.","CANONSBURG","PA","15317",null,"0007",{"$f":"LEN(Table_Query_from_SOTAMAS90[[#This Row],[CustomerName]])","v":19}]
["S16315","SAS SHOEMAKERS","SAN ANTONIO","TX","78224-0760",null,"0016",{"$f":"LEN(Table_Query_from_SOTAMAS90[[#This Row],[CustomerName]])","v":14}]
["S16275","SAWDUST TRAILS","Virginia City","NV","89440",null,"0016",{"$f":"LEN(Table_Query_from_SOTAMAS90[[#This Row],[CustomerName]])","v":14}]
["S16239","SAY HELLO TO A GOOD BUY","North Branch","MN","55056",null,"0016",{"$f":"LEN(Table_Query_from_SOTAMAS90[[#This Row],[CustomerName]])","v":23}]
["S16120","SCHEELS","WAITE PARK","MN","56387",null,"0016",{"$f":"LEN(Table_Query_from_SOTAMAS90[[#This Row],[CustomerName]])","v":7}]
["S04201","SCHEELS ALL SPORTS-SANDY","FARGO","ND","58103",null,"0004",{"$f":"LEN(Table_Query_from_SOTAMAS90[[#This Row],[CustomerName]])","v":24}]
["S09215","SCHULTZ CHEESE HAUS","BEAVER DAM","WI","53916",null,"0009",{"$f":"LEN(Table_Query_from_SOTAMAS90[[#This Row],[CustomerName]])","v":19}]
["S16205","SCHWAB'S FUDGE INC.","NASHVILLE","IN","47448",null,"0007",{"$f":"LEN(Table_Query_from_SOTAMAS90[[#This Row],[CustomerName]])","v":19}]
["S16126","SCOOPERS","LONG BEACH","WA","98631",null,"0016",{"$f":"LEN(Table_Query_from_SOTAMAS90[[#This Row],[CustomerName]])","v":8}]
["S16138","SCOOPS HOMEMADE ICE CREAM","Lake Havasu City","AZ","86403",null,"0016",{"$f":"LEN(Table_Query_from_SOTAMAS90[[#This Row],[CustomerName]])","v":25}]
["S16321","SCOTT-BATHGATE LTD.","DELTA","BC","V4G 1H6",null,"0016",{"$f":"LEN(Table_Query_from_SOTAMAS90[[#This Row],[CustomerName]])","v":19}]
["S16113","SCOTTY'S ICE CREAM & CANDY","HAVRE","MT","59501",null,"0016",{"$f":"LEN(Table_Query_from_SOTAMAS90[[#This Row],[CustomerName]])","v":26}]
["S08201","SCRUMPTIOUS","ARVADA","CO","80001",null,"0008",{"$f":"LEN(Table_Query_from_SOTAMAS90[[#This Row],[CustomerName]])","v":11}]
["S16150","SCRUMPTIOUS LONGMONT","Arvada","CO","80001",null,"0008",{"$f":"LEN(Table_Query_from_SOTAMAS90[[#This Row],[CustomerName]])","v":20}]
["S16344","SEA BREEZE CANDY & TEE'S","EUREKA","CA","95501","SHORELINES@SBCGLOBAL.NET","0016",{"$f":"LEN(Table_Query_from_SOTAMAS90[[#This Row],[CustomerName]])","v":24}]
["S16246","SEA GRASS","NEWPORT","NC","28570","HOYTSALLY@HOTMAIL.COM","0016",{"$f":"LEN(Table_Query_from_SOTAMAS90[[#This Row],[CustomerName]])","v":9}]
["S09326","SEA SHELL CITY","Cheboygan","MI","49721",null,"0009",{"$f":"LEN(Table_Query_from_SOTAMAS90[[#This Row],[CustomerName]])","v":14}]
["S16307","SEA VIEW SWEETS","Point Pleasant Beach","NJ","08742",null,"0013",{"$f":"LEN(Table_Query_from_SOTAMAS90[[#This Row],[CustomerName]])","v":15}]
["S16313","SEABEL'S","PUEBLO","CO","81003",null,"0016",{"$f":"LEN(Table_Query_from_SOTAMAS90[[#This Row],[CustomerName]])","v":8}]
["S16237","SEALED WITH A KISS","GUTHRIE","OK","73044","SWAK@SWAKKNIT.COM","0016",{"$f":"LEN(Table_Query_from_SOTAMAS90[[#This Row],[CustomerName]])","v":18}]
["S09302","SEAQUIST ORCHARDS","SISTER BAY","WI","54234",null,"0009",{"$f":"LEN(Table_Query_from_SOTAMAS90[[#This Row],[CustomerName]])","v":17}]
["S16220","SEASHORE CANDY CO.","MORRO BAY","CA","93442",null,"0016",{"$f":"LEN(Table_Query_from_SOTAMAS90[[#This Row],[CustomerName]])","v":18}]
["S16255","SEASIDE SWEETS DISTRIBUTIN","VENICE","FL","34293",null,"0016",{"$f":"LEN(Table_Query_from_SOTAMAS90[[#This Row],[CustomerName]])","v":26}]
["S16200","SEASONALLY YOURS, LLC","Evergreen","CO","80439","SEASONALLYYOURS@MSN.COM","0016",{"$f":"LEN(Table_Query_from_SOTAMAS90[[#This Row],[CustomerName]])","v":21}]
["S16311","SEASONS","San Juan Capistrano","CA","92675",null,"0016",{"$f":"LEN(Table_Query_from_SOTAMAS90[[#This Row],[CustomerName]])","v":7}]
["S13303","SECRET ADMIRER","MOUNT KISCO","NY","10549",null,"0013",{"$f":"LEN(Table_Query_from_SOTAMAS90[[#This Row],[CustomerName]])","v":14}]
["S09304","SEGUIN'S HOUSE OF CHEESE","MARINETTE","WI","54143","SEGUINSCHEESE@CYBRZN.COM","0009",{"$f":"LEN(Table_Query_from_SOTAMAS90[[#This Row],[CustomerName]])","v":24}]
["S16271","SELECT-A-GRAM","Brewster","NY","10509",null,"0016",{"$f":"LEN(Table_Query_from_SOTAMAS90[[#This Row],[CustomerName]])","v":13}]
["S09107","SELMAS ICE CREAM PARLOUR","AFTON","MN","55001","SELMASPARLOUR@YAHOO.COM","0009",{"$f":"LEN(Table_Query_from_SOTAMAS90[[#This Row],[CustomerName]])","v":24}]
["S16203","SENATOR BENNETT","FAIRFAX","VA","22033",null,"0016",{"$f":"LEN(Table_Query_from_SOTAMAS90[[#This Row],[CustomerName]])","v":15}]
["S09108","SEND A CARE PACKAGE","Chicago","IL","60614","MICKEY@SENDACAREPACKAGE.COM","0009",{"$f":"LEN(Table_Query_from_SOTAMAS90[[#This Row],[CustomerName]])","v":19}]
["S16121","SEND A GIFT USA",null,null,null,"skeltongeorge@yahoo.com","0016",{"$f":"LEN(Table_Query_from_SOTAMAS90[[#This Row],[CustomerName]])","v":15}]
["S16235","SEND OUT CARDS",null,null,null,null,"0016",{"$f":"LEN(Table_Query_from_SOTAMAS90[[#This Row],[CustomerName]])","v":14}]
["S09312","SENDIKS MEQUON","MILWAUKEE","WI","53217",null,"0009",{"$f":"LEN(Table_Query_from_SOTAMAS90[[#This Row],[CustomerName]])","v":14}]
["S09103","SENDIKS-BROOKFIELD","BROOKFIELD","WI","53045",null,"0009",{"$f":"LEN(Table_Query_from_SOTAMAS90[[#This Row],[CustomerName]])","v":18}]
["S09104","SENDIKS-GREENFIELD","Milwaukee","WI","53223",null,"0009",{"$f":"LEN(Table_Query_from_SOTAMAS90[[#This Row],[CustomerName]])","v":18}]
["S09303","SENTRY FOODS - DELAFIELD","DELAFIELD","WI","53018",null,"0009",{"$f":"LEN(Table_Query_from_SOTAMAS90[[#This Row],[CustomerName]])","v":24}]
["S16229","SERENITY ON SPRUCE","OGALLALA","NE","69153",null,"0016",{"$f":"LEN(Table_Query_from_SOTAMAS90[[#This Row],[CustomerName]])","v":18}]
["S09205","SEROOGY'S HOLIDAY HOUSE","DE PERE","WI","54115",null,"0009",{"$f":"LEN(Table_Query_from_SOTAMAS90[[#This Row],[CustomerName]])","v":23}]
["S11308","SERVICE CANDY COMPANY","BILLINGS","MT","59103",null,"0008",{"$f":"LEN(Table_Query_from_SOTAMAS90[[#This Row],[CustomerName]])","v":21}]
["S16208","SERVICE COMPANY, THE","LUBBOCK","TX","79416",null,"0016",{"$f":"LEN(Table_Query_from_SOTAMAS90[[#This Row],[CustomerName]])","v":20}]
["S16213","SERVICE PRESS","SALT LAKE CITY","UT","84101",null,"0016",{"$f":"LEN(Table_Query_from_SOTAMAS90[[#This Row],[CustomerName]])","v":13}]
["S09206","SETZER PHARMACY & GIFT CENTER","SAINT PAUL","MN","55113",null,"0009",{"$f":"LEN(Table_Query_from_SOTAMAS90[[#This Row],[CustomerName]])","v":29}]
["S12305","SF VENTURE GROUP","AMARILLO","TX","79106",null,"0012",{"$f":"LEN(Table_Query_from_SOTAMAS90[[#This Row],[CustomerName]])","v":16}]
["S16114","SHADES DIESEL","ROOSEVELT","UT","84066","SHADES@UBTANET.COM","0016",{"$f":"LEN(Table_Query_from_SOTAMAS90[[#This Row],[CustomerName]])","v":13}]
["S11302","SHEEHAN MAJESTIC INC.","MISSOULA","MT","59807",null,"0008",{"$f":"LEN(Table_Query_from_SOTAMAS90[[#This Row],[CustomerName]])","v":21}]
["S16128","SHELL PORT","PANAMA CITY","FL","32408","INFO@SHELLPORT.COM","0016",{"$f":"LEN(Table_Query_from_SOTAMAS90[[#This Row],[CustomerName]])","v":10}]
["S16105","SHELTER COVE GENERAL STORE","WHITETHORN","CA","95589",null,"0016",{"$f":"LEN(Table_Query_from_SOTAMAS90[[#This Row],[CustomerName]])","v":26}]
["S16148","SHERNNI'S CANDIES","WASHINGTON","MI","48095",null,"0016",{"$f":"LEN(Table_Query_from_SOTAMAS90[[#This Row],[CustomerName]])","v":17}]
["S16320","SHINES MINI MART","MC INTOSH","AL","36553",null,"0016",{"$f":"LEN(Table_Query_from_SOTAMAS90[[#This Row],[CustomerName]])","v":16}]
["S09201","SHIPWRECKED GIFT SHOP","BEAVER BAY","MN","55601",null,"0009",{"$f":"LEN(Table_Query_from_SOTAMAS90[[#This Row],[CustomerName]])","v":21}]
["S09502","SHOPKO STORES INC.  D.C.","GREEN BAY","WI","54307-9045",null,"0009",{"$f":"LEN(Table_Query_from_SOTAMAS90[[#This Row],[CustomerName]])","v":24}]
["S09503","SHOPKO STORES INC. D.C. #997","GREEN BAY","WI","54307-9045",null,"0009",{"$f":"LEN(Table_Query_from_SOTAMAS90[[#This Row],[CustomerName]])","v":28}]
["S09501","SHOPKO STORES INC. D.C. #999","GREEN BAY","WI","54307-9045",null,"0009",{"$f":"LEN(Table_Query_from_SOTAMAS90[[#This Row],[CustomerName]])","v":28}]
["S16101","SHOPPING EWORLD","LOOMIS","CA","95650",null,"0016",{"$f":"LEN(Table_Query_from_SOTAMAS90[[#This Row],[CustomerName]])","v":15}]
["S13102","SHUBIES MARKET","MARBLEHEAD","MA","01945",null,"0013",{"$f":"LEN(Table_Query_from_SOTAMAS90[[#This Row],[CustomerName]])","v":14}]
["S13302","SHUBIES MARKETPLACE","MARBLEHEAD","MA","01945","WALT GILBRIDE BROKER GUARANTEE","0013",{"$f":"LEN(Table_Query_from_SOTAMAS90[[#This Row],[CustomerName]])","v":19}]
["S17300","SILVEYVILLE TREE FARM","DIXON","CA","95620",null,"0017",{"$f":"LEN(Table_Query_from_SOTAMAS90[[#This Row],[CustomerName]])","v":21}]
["S16225","SIMMONS MEDIA GROUP","Salt Lake City","UT","84102",null,"0016",{"$f":"LEN(Table_Query_from_SOTAMAS90[[#This Row],[CustomerName]])","v":19}]
["S09212","SIMON'S SPECIALTY CHEESE","APPLETON","WI","54913",null,"0009",{"$f":"LEN(Table_Query_from_SOTAMAS90[[#This Row],[CustomerName]])","v":24}]
["S16716","SIMPLY BOVINE","DODGEVILLE","WI","53533",null,"0016",{"$f":"LEN(Table_Query_from_SOTAMAS90[[#This Row],[CustomerName]])","v":13}]
["S16141","SIMPLY DELIGHTFUL","Cadillac","MI","49601",null,"0016",{"$f":"LEN(Table_Query_from_SOTAMAS90[[#This Row],[CustomerName]])","v":17}]
["S16214","SIMPLY IRRESISTABLE","BRANSON","MO","65616",null,"0016",{"$f":"LEN(Table_Query_from_SOTAMAS90[[#This Row],[CustomerName]])","v":19}]
["S16223","SIMPLY NATURAL","SUPERIOR","WI","54880",null,"0016",{"$f":"LEN(Table_Query_from_SOTAMAS90[[#This Row],[CustomerName]])","v":14}]
["S10229","SIMPLY NORTHWEST","SPOKANE","WA","99214","DENIELLE@SIMPLYNORTHWEST.COM","0010",{"$f":"LEN(Table_Query_from_SOTAMAS90[[#This Row],[CustomerName]])","v":16}]
["S16245","SIMPLY NUTS AND MORE","CHANHASSEN","MN","55317",null,"0016",{"$f":"LEN(Table_Query_from_SOTAMAS90[[#This Row],[CustomerName]])","v":20}]
["S16107","SIMPLY PRIMATIVE","La Plata","MO","63549","SHANEROSS@CENTURYTEL.NET","0016",{"$f":"LEN(Table_Query_from_SOTAMAS90[[#This Row],[CustomerName]])","v":16}]
["S16233","SIMPLY SALT LAKE","SALT LAKE","UT","84101","TENGLAND@VISITSALTLAKE.COM","0016",{"$f":"LEN(Table_Query_from_SOTAMAS90[[#This Row],[CustomerName]])","v":16}]
["S10201","SIMPLY SEATTLE","KIRKLAND","WA","98083",null,"0010",{"$f":"LEN(Table_Query_from_SOTAMAS90[[#This Row],[CustomerName]])","v":14}]
["S16301","SIMPLY UNIQUE","Middletown","MD","21769",null,"0016",{"$f":"LEN(Table_Query_from_SOTAMAS90[[#This Row],[CustomerName]])","v":13}]
["S16330","SIMPLY YOU-NIQUE","WEST JORDAN","UT","84084-1049",null,"0016",{"$f":"LEN(Table_Query_from_SOTAMAS90[[#This Row],[CustomerName]])","v":16}]
["S16248","SISTER SISTER","CUMMING","GA","30041",null,"0016",{"$f":"LEN(Table_Query_from_SOTAMAS90[[#This Row],[CustomerName]])","v":13}]
["S08200","SKYLINE RAZOR RIDGE PARK","CANON CITY","CO","81212",null,"0008",{"$f":"LEN(Table_Query_from_SOTAMAS90[[#This Row],[CustomerName]])","v":24}]
["S06201","SLATE CREEK GIFT CO.","SALT LAKE CITY","UT","84101",null,"0006",{"$f":"LEN(Table_Query_from_SOTAMAS90[[#This Row],[CustomerName]])","v":20}]
["S16264","SLOAN'S","WEST PALM BEACH","FL","33401",null,"0016",{"$f":"LEN(Table_Query_from_SOTAMAS90[[#This Row],[CustomerName]])","v":7}]
["S10210","SLUGS N' STONE 'N ICE CREAM","HARBOR","OR","97415",null,"0010",{"$f":"LEN(Table_Query_from_SOTAMAS90[[#This Row],[CustomerName]])","v":27}]
["S16304","SMALL PAKS DISTRIBUTION, INC.","JOHNSTOWN","CO","80534",null,"0016",{"$f":"LEN(Table_Query_from_SOTAMAS90[[#This Row],[CustomerName]])","v":29}]
["C16225","SMITH NOVELTY COMPANY","SAN FRANCISCO","CA","94103",null,"0016",{"$f":"LEN(Table_Query_from_SOTAMAS90[[#This Row],[CustomerName]])","v":21}]
["C11300","SMITHS & EDWARDS","OGDEN","UT","84404",null,"0008",{"$f":"LEN(Table_Query_from_SOTAMAS90[[#This Row],[CustomerName]])","v":16}]
["S07305","SMITH'S CANDIES & COMPANY, INC","MYERSTOWN","PA","17067-1598","SMITHCANDIES@COMCAST.NET","0007",{"$f":"LEN(Table_Query_from_SOTAMAS90[[#This Row],[CustomerName]])","v":30}]
["S11305","SMITHS FOOD & DRUG","SALT LAKE CITY","UT","84130",null,"0004",{"$f":"LEN(Table_Query_from_SOTAMAS90[[#This Row],[CustomerName]])","v":18}]
["S07310","SNACC DISTRIBUTING COMPANY","CINCINNATI","OH","45214",null,"0007",{"$f":"LEN(Table_Query_from_SOTAMAS90[[#This Row],[CustomerName]])","v":26}]
["S16303","SNAP, LLC","Scranton","PA","18512",null,"0016",{"$f":"LEN(Table_Query_from_SOTAMAS90[[#This Row],[CustomerName]])","v":9}]
["S16231","SNOWBIRD SKI & SUMMER RESORT","SNOWBIRD","UT","84092-9000",null,"0016",{"$f":"LEN(Table_Query_from_SOTAMAS90[[#This Row],[CustomerName]])","v":28}]
["S16129","SOCK CITY","BRENTWOOD","CA","94513",null,"0016",{"$f":"LEN(Table_Query_from_SOTAMAS90[[#This Row],[CustomerName]])","v":9}]
["S16238","SOMETHIN' SWEET, LLC","PROVO","UT","84601",null,"0016",{"$f":"LEN(Table_Query_from_SOTAMAS90[[#This Row],[CustomerName]])","v":20}]
["S16122","SOMETHING FISHY","SUPERIOR","AZ","85273",null,"0016",{"$f":"LEN(Table_Query_from_SOTAMAS90[[#This Row],[CustomerName]])","v":15}]
["S16152","SOUTH FORK LODGE","Swan Valley","ID","83449","J.NIELSEN@NATURALRETREATS.COM","0016",{"$f":"LEN(Table_Query_from_SOTAMAS90[[#This Row],[CustomerName]])","v":16}]
["S16123","SOUTHERN ARIZONA SOUVENIRS","TUMACACORI","AZ","85640","SONORASOUVENIRS@LIVE.COM","0016",{"$f":"LEN(Table_Query_from_SOTAMAS90[[#This Row],[CustomerName]])","v":26}]
["S16106","SOUTHERN FULFILLMENT SERVICES","Vero Beach","FL","32969",null,"0016",{"$f":"LEN(Table_Query_from_SOTAMAS90[[#This Row],[CustomerName]])","v":29}]
["S05321","SOUTHERN FULLFILLMENT SERVICES","Vero Beach","FL","32969",null,"0016",{"$f":"LEN(Table_Query_from_SOTAMAS90[[#This Row],[CustomerName]])","v":30}]
["S16226","SOUVENIR STOP","Salt Lake City","UT","84111",null,"0016",{"$f":"LEN(Table_Query_from_SOTAMAS90[[#This Row],[CustomerName]])","v":13}]
["S10327","SPECIALTIES FOR YOU","OCEAN SHORES","WA","98569","FUDGENGIFTS@GMAIL.COM","0010",{"$f":"LEN(Table_Query_from_SOTAMAS90[[#This Row],[CustomerName]])","v":19}]
["S16317","SPECIALTY GOURMET GOODIES","WEST BLOOMFIELD","MI","48324","SGGOODIES@COMCAST.NET","0016",{"$f":"LEN(Table_Query_from_SOTAMAS90[[#This Row],[CustomerName]])","v":25}]
["S16132","SPIKE AFRICA'S","SAN DIEGO","CA","92101",null,"0016",{"$f":"LEN(Table_Query_from_SOTAMAS90[[#This Row],[CustomerName]])","v":14}]
["S10206","SPOKANDY","SPOKANE","WA","99201",null,"0010",{"$f":"LEN(Table_Query_from_SOTAMAS90[[#This Row],[CustomerName]])","v":8}]
["S10202","SPOONER FARM'S","PUYALLUP","WA","98374-1814",null,"0010",{"$f":"LEN(Table_Query_from_SOTAMAS90[[#This Row],[CustomerName]])","v":14}]
["S09227","SPOONER GENERAL STORE","SPOONER","WI","54801",null,"0009",{"$f":"LEN(Table_Query_from_SOTAMAS90[[#This Row],[CustomerName]])","v":21}]
["S09101","SPORTSMAN'S LODGE","Baudette","MN","56623",null,"0009",{"$f":"LEN(Table_Query_from_SOTAMAS90[[#This Row],[CustomerName]])","v":17}]
["S11306","SPORTSMANS WAREHOUSE","MIDVALE","UT","84047-3759",null,"0008",{"$f":"LEN(Table_Query_from_SOTAMAS90[[#This Row],[CustomerName]])","v":20}]
["S16216","SPRINGDALE COUNTRY","HUNTINGTON BEACH","CA","92649",null,"0016",{"$f":"LEN(Table_Query_from_SOTAMAS90[[#This Row],[CustomerName]])","v":18}]
["S16312","ST VINCENT MERCY HOSPITAL","ELWOOD","IN","46036",null,"0007",{"$f":"LEN(Table_Query_from_SOTAMAS90[[#This Row],[CustomerName]])","v":25}]
["S09230","ST. JOHNS HOSPITAL","GROSSE POINTE","MI","48236",null,"0009",{"$f":"LEN(Table_Query_from_SOTAMAS90[[#This Row],[CustomerName]])","v":18}]
["S16323","ST. LAURENT BROTHERS","BAY CITY","MI","48707",null,"0009",{"$f":"LEN(Table_Query_from_SOTAMAS90[[#This Row],[CustomerName]])","v":20}]
["S16227","ST. SIMONS SWEETS","SAINT SIMONS ISLAND","GA","31522",null,"0016",{"$f":"LEN(Table_Query_from_SOTAMAS90[[#This Row],[CustomerName]])","v":17}]
["S16204","St.JUDE MEDICAL CTR. GIFT SHOP","FULLERTON","CA","92835",null,"0016",{"$f":"LEN(Table_Query_from_SOTAMAS90[[#This Row],[CustomerName]])","v":30}]
["S16153","STAGENINE ENTERTAINMENT STORE","Sacramento","CA","95814",null,"0016",{"$f":"LEN(Table_Query_from_SOTAMAS90[[#This Row],[CustomerName]])","v":29}]
["S16115","STARLITE EXPRESSIONS","SARATOGA SPRINGS","UT","84045",null,"0016",{"$f":"LEN(Table_Query_from_SOTAMAS90[[#This Row],[CustomerName]])","v":20}]
["S16274","STARLITE EXPRESSIONS",null,"UT","84062","STARLITEXPR@YAHOO.COM","0016",{"$f":"LEN(Table_Query_from_SOTAMAS90[[#This Row],[CustomerName]])","v":20}]
["S16155","STARVED ROCK LODGE","Utica","IL","61373",null,"0016",{"$f":"LEN(Table_Query_from_SOTAMAS90[[#This Row],[CustomerName]])","v":18}]
["S16251","STATESIDE CANDY COMPANY LTD.","ALDERSHOT","HA","GU12 4QG","AL@AMERICANSWEETS.CO.UK","0016",{"$f":"LEN(Table_Query_from_SOTAMAS90[[#This Row],[CustomerName]])","v":28}]
["S16221","STEEL BEAR DELI","PETALUMA","CA","94952",null,"0016",{"$f":"LEN(Table_Query_from_SOTAMAS90[[#This Row],[CustomerName]])","v":15}]
["S16144","STEPHEN LIBS FINER CHOCOLATES","EVANSVILLE","IN","47715","MARJLIBS@STEPHENLIBSCHOCOLATES.COM","0007",{"$f":"LEN(Table_Query_from_SOTAMAS90[[#This Row],[CustomerName]])","v":29}]
["S16117","STEVE'S CANDY","GALENA","KS","66739","CANDYMANSTEVENS@YAHOO.COM","0016",{"$f":"LEN(Table_Query_from_SOTAMAS90[[#This Row],[CustomerName]])","v":13}]
["S17206","STIEBER'S SWEET SHOPPE","ROSEVILLE","CA","95678",null,"0017",{"$f":"LEN(Table_Query_from_SOTAMAS90[[#This Row],[CustomerName]])","v":22}]
["S16308","STIRFAMCO","AMARILLO","TX","79106","806-236-1947 DANNY STRILEY CELL PHONE","0016",{"$f":"LEN(Table_Query_from_SOTAMAS90[[#This Row],[CustomerName]])","v":9}]
["D06204","STOMPIN GROUNDS","WALLACE","ID","83873",null,"0006",{"$f":"LEN(Table_Query_from_SOTAMAS90[[#This Row],[CustomerName]])","v":15}]
["C16243","STONEBROOK FUDGE FACTORY","MOUNTAIN VIEW","AR","72560","CANDYBOUQUET423@MUTEL.NET","0016",{"$f":"LEN(Table_Query_from_SOTAMAS90[[#This Row],[CustomerName]])","v":24}]
["S04200","STOP AND SHOP","Ogden","UT","84404","STOPNSHOP@QWESTOFFICE.NET","0008",{"$f":"LEN(Table_Query_from_SOTAMAS90[[#This Row],[CustomerName]])","v":13}]
["S16202","STORK NEWS OF UTAH","WEST JORDAN","UT","84088",null,"0016",{"$f":"LEN(Table_Query_from_SOTAMAS90[[#This Row],[CustomerName]])","v":18}]
["S16146","SUB CULTCURE","LAKE HAVASU CITY","AZ","86403",null,"0016",{"$f":"LEN(Table_Query_from_SOTAMAS90[[#This Row],[CustomerName]])","v":12}]
["S16217","SUCKERS CANDY, INC.","CHICAGO","IL","60618",null,"0016",{"$f":"LEN(Table_Query_from_SOTAMAS90[[#This Row],[CustomerName]])","v":19}]
["S10102","SUGAR","TACOMA","WA","98407",null,"0010",{"$f":"LEN(Table_Query_from_SOTAMAS90[[#This Row],[CustomerName]])","v":5}]
["S16215","SUGAR BLOSSOMS","IDAHO FALLS","ID","83402",null,"0016",{"$f":"LEN(Table_Query_from_SOTAMAS90[[#This Row],[CustomerName]])","v":14}]
["S16319","SUGAR BUZZ","GLENCOE","IL","60022",null,"0016",{"$f":"LEN(Table_Query_from_SOTAMAS90[[#This Row],[CustomerName]])","v":10}]
["S16209","SUGAR DADDY'S CANDIES","MACKINAW CITY","MI","49701",null,"0009",{"$f":"LEN(Table_Query_from_SOTAMAS90[[#This Row],[CustomerName]])","v":21}]
["S16134","SUGAR MOMMA'S","Hermann","MO","65041","TAMMYB@KTIS.NET","0016",{"$f":"LEN(Table_Query_from_SOTAMAS90[[#This Row],[CustomerName]])","v":13}]
["S10209","SUGAR MOUNTAIN INC.","LEAVENWORTH","WA","98826","SUGARMTINC@VERIZON.NET","0010",{"$f":"LEN(Table_Query_from_SOTAMAS90[[#This Row],[CustomerName]])","v":19}]
["S16316","SUGAR PLANTATION","CHARLESTON","SC","29401",null,"0016",{"$f":"LEN(Table_Query_from_SOTAMAS90[[#This Row],[CustomerName]])","v":16}]
["S16230","SUGAR PLUM CANDIES","LINCOLN","NE","68516",null,"0016",{"$f":"LEN(Table_Query_from_SOTAMAS90[[#This Row],[CustomerName]])","v":18}]
["S09266","SUGAR PLUM HOUSE","HARMONY","MN","55939",null,"0009",{"$f":"LEN(Table_Query_from_SOTAMAS90[[#This Row],[CustomerName]])","v":16}]
["S16103","SUGAR RUSH","Lakeland","FL","33813",null,"0016",{"$f":"LEN(Table_Query_from_SOTAMAS90[[#This Row],[CustomerName]])","v":10}]
["S16130","SUGAR RUSH","FRANKENMUTH","MI","48734","CANDY@SWEETSUGARRUSH.COM","0016",{"$f":"LEN(Table_Query_from_SOTAMAS90[[#This Row],[CustomerName]])","v":10}]
["S08103","SUGAR RUSH TUGALS, LLC","LAYTON","UT","84041",null,"0008",{"$f":"LEN(Table_Query_from_SOTAMAS90[[#This Row],[CustomerName]])","v":22}]
["S09204","SUGAR SHACK","BAYFIELD","WI","54814",null,"0009",{"$f":"LEN(Table_Query_from_SOTAMAS90[[#This Row],[CustomerName]])","v":11}]
["S16224","SUGAR SHACK","PAYSON","AZ","85541",null,"0016",{"$f":"LEN(Table_Query_from_SOTAMAS90[[#This Row],[CustomerName]])","v":11}]
["S16244","SUGAR SHACK","Grand Junction","CO","81501","SUGARSHACK08@GMAIL.COM","0008",{"$f":"LEN(Table_Query_from_SOTAMAS90[[#This Row],[CustomerName]])","v":11}]
["S16267","SUGAR SHACK CANDIES & GIFTS","CLARKSTON","WA","99403",null,"0016",{"$f":"LEN(Table_Query_from_SOTAMAS90[[#This Row],[CustomerName]])","v":27}]
["S16269","SUN GROVES","Safety Harbor","FL","34695",null,"0016",{"$f":"LEN(Table_Query_from_SOTAMAS90[[#This Row],[CustomerName]])","v":10}]
["S16100","SUNDANCE SHOES","SISTERS","OR","97759","SUNDANCESHOES@MSN.COM","0016",{"$f":"LEN(Table_Query_from_SOTAMAS90[[#This Row],[CustomerName]])","v":14}]
["S10204","SUNNY FARMS","SEQUIM","WA","98382",null,"0010",{"$f":"LEN(Table_Query_from_SOTAMAS90[[#This Row],[CustomerName]])","v":11}]
["S16222","SUNSET CAFE & DELI","SOUTH PADRE ISLAND","TX","78597",null,"0016",{"$f":"LEN(Table_Query_from_SOTAMAS90[[#This Row],[CustomerName]])","v":18}]
["S17310","SUPER STORE IND./ WEST PAC","LATHROP","CA","95330",null,"0017",{"$f":"LEN(Table_Query_from_SOTAMAS90[[#This Row],[CustomerName]])","v":26}]
["S09203","SUPERIOR NUT & CANDY","CHICAGO","IL","60609",null,"0009",{"$f":"LEN(Table_Query_from_SOTAMAS90[[#This Row],[CustomerName]])","v":20}]
["S09106","SUSIE'S SWEETS","MONROE","MI","48161",null,"0009",{"$f":"LEN(Table_Query_from_SOTAMAS90[[#This Row],[CustomerName]])","v":14}]
["S05101","SUZIE Q'S SWEET SHOP","Griffin","GA","30223",null,"0016",{"$f":"LEN(Table_Query_from_SOTAMAS90[[#This Row],[CustomerName]])","v":20}]
["S09105","SUZIE'S SWEETS","MONROE","MI","48161",null,"0009",{"$f":"LEN(Table_Query_from_SOTAMAS90[[#This Row],[CustomerName]])","v":14}]
["S16135","SUZIN L. CHOCOLATIER","Elyria","OH","44035","LAURY@SUZINL.COM","0016",{"$f":"LEN(Table_Query_from_SOTAMAS90[[#This Row],[CustomerName]])","v":20}]
["K16106","SVH INVESTMENTS LLC","HOBBS","NM","88240",null,"0016",{"$f":"LEN(Table_Query_from_SOTAMAS90[[#This Row],[CustomerName]])","v":19}]
["S10301","SWAIN'S","PORT ANGELES","WA","98362",null,"0010",{"$f":"LEN(Table_Query_from_SOTAMAS90[[#This Row],[CustomerName]])","v":7}]
["S16136","SWEEDEN SWEETS LLC","Superior","WI","54880",null,"0009",{"$f":"LEN(Table_Query_from_SOTAMAS90[[#This Row],[CustomerName]])","v":18}]
["S16140","SWEET","Pigeon Forge","TN","37863",null,"0016",{"$f":"LEN(Table_Query_from_SOTAMAS90[[#This Row],[CustomerName]])","v":5}]
["S09202","SWEET & SPECIAL","Tomah","WI","54660",null,"0009",{"$f":"LEN(Table_Query_from_SOTAMAS90[[#This Row],[CustomerName]])","v":15}]
["S16242","SWEET ADDICTION","Williston","ND","58801",null,"0016",{"$f":"LEN(Table_Query_from_SOTAMAS90[[#This Row],[CustomerName]])","v":15}]
["C10200","SWEET ADDITION","ISSAQUAH","WA","98027",null,"0010",{"$f":"LEN(Table_Query_from_SOTAMAS90[[#This Row],[CustomerName]])","v":14}]
["S11220","SWEET AFTON'S","South Jordan","UT","84095",null,"0006",{"$f":"LEN(Table_Query_from_SOTAMAS90[[#This Row],[CustomerName]])","v":13}]
["S16124","SWEET ART CANDY","SANTA FE","NM","87501",null,"0016",{"$f":"LEN(Table_Query_from_SOTAMAS90[[#This Row],[CustomerName]])","v":15}]
["S16444","SWEET BLESSINGS","LAKE MILLS","WI","53551",null,"0016",{"$f":"LEN(Table_Query_from_SOTAMAS90[[#This Row],[CustomerName]])","v":15}]
["S16234","SWEET CELEBRATIONS","WESTPORT","CT","06880",null,"0013",{"$f":"LEN(Table_Query_from_SOTAMAS90[[#This Row],[CustomerName]])","v":18}]
["S17205","SWEET CELEBRATIONS","Moraga","CA","94556",null,"0017",{"$f":"LEN(Table_Query_from_SOTAMAS90[[#This Row],[CustomerName]])","v":18}]
["S16111","SWEET CHOCOLATE","SAINT PAUL","MN","55113",null,"0016",{"$f":"LEN(Table_Query_from_SOTAMAS90[[#This Row],[CustomerName]])","v":15}]
["S16119","SWEET CHOCOLATE INC","LOVELAND","CO","80538",null,"0016",{"$f":"LEN(Table_Query_from_SOTAMAS90[[#This Row],[CustomerName]])","v":19}]
["S09110","SWEET DREAMS CANDIES & GIFTS","Oconomowoc","WI","53066",null,"0009",{"$f":"LEN(Table_Query_from_SOTAMAS90[[#This Row],[CustomerName]])","v":28}]
["S16265","SWEET DREAMS CONFECTIONS","FARGO","ND","58103","LEE22@CABLEONE.NET","0016",{"$f":"LEN(Table_Query_from_SOTAMAS90[[#This Row],[CustomerName]])","v":24}]
["S10230","SWEET ESCAPES","MONROE","WA","98272",null,"0010",{"$f":"LEN(Table_Query_from_SOTAMAS90[[#This Row],[CustomerName]])","v":13}]
["S16305","SWEET FUDGE KITCHEN","EUREKA SPRINGS","AR","72632","DEBCOLVIN@PEOPLESTRING.COM","0016",{"$f":"LEN(Table_Query_from_SOTAMAS90[[#This Row],[CustomerName]])","v":19}]
["S16333","SWEET GALLERY","SAINT PETERSBURG","FL","33706",null,"0016",{"$f":"LEN(Table_Query_from_SOTAMAS90[[#This Row],[CustomerName]])","v":13}]
["S16127","SWEET GOURMET","CHARLESTON","SC","29401",null,"0016",{"$f":"LEN(Table_Query_from_SOTAMAS90[[#This Row],[CustomerName]])","v":13}]
["C09204","SWEET HUT, LLC","WISCONSIN DELLS","WI","53965",null,"0009",{"$f":"LEN(Table_Query_from_SOTAMAS90[[#This Row],[CustomerName]])","v":14}]
["S16314","SWEET INDULGENCE","WARWICK","RI","02888",null,"0016",{"$f":"LEN(Table_Query_from_SOTAMAS90[[#This Row],[CustomerName]])","v":16}]
["S10207","SWEET MICKEY'S","SEATTLE","WA","98107",null,"0010",{"$f":"LEN(Table_Query_from_SOTAMAS90[[#This Row],[CustomerName]])","v":14}]
["S13210","SWEET OCCASIONS","BRISTOL","RI","02809",null,"0013",{"$f":"LEN(Table_Query_from_SOTAMAS90[[#This Row],[CustomerName]])","v":15}]
["S16125","SWEET REPEATS & US POST OFFICE","CHARLESTON","SC","29414","ROWEN52@AOL.COM","0016",{"$f":"LEN(Table_Query_from_SOTAMAS90[[#This Row],[CustomerName]])","v":30}]
["S16249","SWEET REVENGE CANDIES","DEADWOOD","SD","57732","SWEETREVENGE614@HOTMAIL.COM","0016",{"$f":"LEN(Table_Query_from_SOTAMAS90[[#This Row],[CustomerName]])","v":21}]
["S09102","SWEET SEASON","Alexandria","MN","56308",null,"0009",{"$f":"LEN(Table_Query_from_SOTAMAS90[[#This Row],[CustomerName]])","v":12}]
["S09267","SWEET SERVICES","Frankfort","IL","60423",null,"0009",{"$f":"LEN(Table_Query_from_SOTAMAS90[[#This Row],[CustomerName]])","v":14}]
["S16206","SWEET SERVICES","Orland Park","IL","60462",null,"0016",{"$f":"LEN(Table_Query_from_SOTAMAS90[[#This Row],[CustomerName]])","v":14}]
["S16247","SWEET SPECIALTIES","WINTER","WI","54896",null,"0016",{"$f":"LEN(Table_Query_from_SOTAMAS90[[#This Row],[CustomerName]])","v":17}]
["S16240","SWEET SPOT","EMERALD ISLE","NC","28594","sweetspotei@gmail.com","0016",{"$f":"LEN(Table_Query_from_SOTAMAS90[[#This Row],[CustomerName]])","v":10}]
["S16218","SWEET STUFF","Downey","ID","83234",null,"0016",{"$f":"LEN(Table_Query_from_SOTAMAS90[[#This Row],[CustomerName]])","v":11}]
["S16331","SWEET STUFF CANDY CO.","RIDGECREST","CA","93555",null,"0016",{"$f":"LEN(Table_Query_from_SOTAMAS90[[#This Row],[CustomerName]])","v":21}]
["S16318","SWEET SURF CANDY SHOP","HAMPSTEAD","NC","28443",null,"0016",{"$f":"LEN(Table_Query_from_SOTAMAS90[[#This Row],[CustomerName]])","v":21}]
["S16210","SWEET TEMPTATION","CHELAN","WA","98816",null,"0016",{"$f":"LEN(Table_Query_from_SOTAMAS90[[#This Row],[CustomerName]])","v":16}]
["S16250","SWEET TEMPTATION","FORTUNA","CA","95540",null,"0016",{"$f":"LEN(Table_Query_from_SOTAMAS90[[#This Row],[CustomerName]])","v":16}]
["S13305","SWEET THOUGHTS","GOSHEN","NY","10924",null,"0013",{"$f":"LEN(Table_Query_from_SOTAMAS90[[#This Row],[CustomerName]])","v":14}]
["S16302","SWEET TOOTH","MORRIS","IL","60450",null,"0016",{"$f":"LEN(Table_Query_from_SOTAMAS90[[#This Row],[CustomerName]])","v":11}]
["S07212","SWEET TOOTH CANDIES","NEWPORT","KY","41071",null,"0007",{"$f":"LEN(Table_Query_from_SOTAMAS90[[#This Row],[CustomerName]])","v":19}]
["S07101","SWEET TOOTH CANDY STORE","PAINTSVILLE","KY","41240",null,"0007",{"$f":"LEN(Table_Query_from_SOTAMAS90[[#This Row],[CustomerName]])","v":23}]
["S16145","SWEET TREATS AND DIVINE","ELKTON","MD","21921",null,"0016",{"$f":"LEN(Table_Query_from_SOTAMAS90[[#This Row],[CustomerName]])","v":23}]
["S16241","SWEET TWIST","EAST GREENWICH","RI","02818",null,"0013",{"$f":"LEN(Table_Query_from_SOTAMAS90[[#This Row],[CustomerName]])","v":11}]
["S16149","SWEET! HOLLYWOOD","LOS ANGELES","CA","90028",null,"0016",{"$f":"LEN(Table_Query_from_SOTAMAS90[[#This Row],[CustomerName]])","v":16}]
["S16259","SWEETHEARTS CANDY SHOPPE","TRACY","CA","95376",null,"0016",{"$f":"LEN(Table_Query_from_SOTAMAS90[[#This Row],[CustomerName]])","v":24}]
["C16103","SWEETIES","Sacramento","CA","95819",null,"0016",{"$f":"LEN(Table_Query_from_SOTAMAS90[[#This Row],[CustomerName]])","v":8}]
["S16310","SWEETNESS ON MAIN","ASHLAND","WI","54806",null,"0016",{"$f":"LEN(Table_Query_from_SOTAMAS90[[#This Row],[CustomerName]])","v":17}]
["S16260","SWEETS FROM HEAVEN","STEAMBOAT SPRINGS","CO","80488",null,"0016",{"$f":"LEN(Table_Query_from_SOTAMAS90[[#This Row],[CustomerName]])","v":18}]
["S16110","SWEETS FROM HEAVEN-LAWRENCVILL","LAWRENCEVILLE","GA","30043",null,"0016",{"$f":"LEN(Table_Query_from_SOTAMAS90[[#This Row],[CustomerName]])","v":30}]
["S16325","SWEETS FUDGE KITCHEN","CROWELL","TX","79227","JPLANDGREBE@YAHOO.COM","0016",{"$f":"LEN(Table_Query_from_SOTAMAS90[[#This Row],[CustomerName]])","v":20}]
["S16300","SWEETS FUDGE KITCHEN #2","EUREKA SPRINGS","AR","72632",null,"0016",{"$f":"LEN(Table_Query_from_SOTAMAS90[[#This Row],[CustomerName]])","v":23}]
["S09208","SWEETS N EATS BAKERY","KENOSHA","WI","53140",null,"0009",{"$f":"LEN(Table_Query_from_SOTAMAS90[[#This Row],[CustomerName]])","v":20}]
["S16201","SWEET'S N TREATS","SELBYVILLE","DE","19975",null,"0016",{"$f":"LEN(Table_Query_from_SOTAMAS90[[#This Row],[CustomerName]])","v":16}]
["S09305","SWEETS ON 3RD","WAUSAU","WI","54403",null,"0009",{"$f":"LEN(Table_Query_from_SOTAMAS90[[#This Row],[CustomerName]])","v":13}]
["S10101","SWEETS TREATS","PUYALLUP","WA","98374",null,"0010",{"$f":"LEN(Table_Query_from_SOTAMAS90[[#This Row],[CustomerName]])","v":13}]
["S09301","SWEETS TREATS AND MORE","HAZEL PARK","MI","48030",null,"0009",{"$f":"LEN(Table_Query_from_SOTAMAS90[[#This Row],[CustomerName]])","v":22}]
["S10205","SWEETS, ETC.","PORTLAND","OR","97219",null,"0010",{"$f":"LEN(Table_Query_from_SOTAMAS90[[#This Row],[CustomerName]])","v":12}]
["S09311","SWISS COLONY, THE","MONROE","WI","53566-8016",null,"0009",{"$f":"LEN(Table_Query_from_SOTAMAS90[[#This Row],[CustomerName]])","v":17}]
["S16108","SYNERGY FLAVORS, INC","Wauconda","IL","60084",null,"0016",{"$f":"LEN(Table_Query_from_SOTAMAS90[[#This Row],[CustomerName]])","v":20}]
["S16334","SYNSWEET GROUP INC.","TORONTO","ON","M3J2L4",null,"0016",{"$f":"LEN(Table_Query_from_SOTAMAS90[[#This Row],[CustomerName]])","v":19}]
["S16324","SYSCO RIVERSIDE, INC","RIVERSIDE","CA","92518",null,"0016",{"$f":"LEN(Table_Query_from_SOTAMAS90[[#This Row],[CustomerName]])","v":20}]
["S16137","SYSCO WEST TEXAS","Cypress","TX","77429",null,"0016",{"$f":"LEN(Table_Query_from_SOTAMAS90[[#This Row],[CustomerName]])","v":16}]
["T16203","T.N.M. PROMOTIONS","WINNIPEG","MB","R3Y 1G4","info@tnmpromotions.com","0016",{"$f":"LEN(Table_Query_from_SOTAMAS90[[#This Row],[CustomerName]])","v":17}]
["T10204","TACOMA BOYS","TACOMA","WA","98406","LUNDERWOODZZ@HOTMAIL.COM","0010",{"$f":"LEN(Table_Query_from_SOTAMAS90[[#This Row],[CustomerName]])","v":11}]
["T16340","TAFFY & CO.","IMPERIAL","MO","63052",null,"0016",{"$f":"LEN(Table_Query_from_SOTAMAS90[[#This Row],[CustomerName]])","v":11}]
["T16308","TAFFY BARREL","Atascadero","CA","93422",null,"0016",{"$f":"LEN(Table_Query_from_SOTAMAS90[[#This Row],[CustomerName]])","v":12}]
["T16111","TAFFY SHACK","DANVILLE","CA","94526",null,"0016",{"$f":"LEN(Table_Query_from_SOTAMAS90[[#This Row],[CustomerName]])","v":11}]
["S16133","TAFFY SHOP, LLC","NORTH SALT LAKE","UT","84054","JEFFW@TAFFYSHOP.COM","0016",{"$f":"LEN(Table_Query_from_SOTAMAS90[[#This Row],[CustomerName]])","v":15}]
["T16302","TAFFY SHOP, THE","LEAVENWORTH","WA","98826","ghr4857@hotmail.com","0010",{"$f":"LEN(Table_Query_from_SOTAMAS90[[#This Row],[CustomerName]])","v":15}]
["T16105","TAFFY TIMES","NEW BRAUNFELS","TX","78130",null,"0016",{"$f":"LEN(Table_Query_from_SOTAMAS90[[#This Row],[CustomerName]])","v":11}]
["T16227","TAFFY TREE","Salt Lake City","UT","84115","OWNER@TAFFYTREE.COM","0016",{"$f":"LEN(Table_Query_from_SOTAMAS90[[#This Row],[CustomerName]])","v":10}]
["T16301","TAFFY TYME","SIMI VALLEY","CA","93063","taffytyme@aol.com","0016",{"$f":"LEN(Table_Query_from_SOTAMAS90[[#This Row],[CustomerName]])","v":10}]
["T16356","TAHITIAN NONI INTERNATIONAL","OREM","UT","84059",null,"0016",{"$f":"LEN(Table_Query_from_SOTAMAS90[[#This Row],[CustomerName]])","v":27}]
["T06203","TAI PAN TRADING","SALT LAKE CITY","UT","84119",null,"0006",{"$f":"LEN(Table_Query_from_SOTAMAS90[[#This Row],[CustomerName]])","v":15}]
["T16221","TAMMY'S FLOWERS","SOLDOTNA","AK","99669",null,"0016",{"$f":"LEN(Table_Query_from_SOTAMAS90[[#This Row],[CustomerName]])","v":15}]
["T06202","TASTE OF THE ROCKIES","Littleton","CO","80124",null,"0006",{"$f":"LEN(Table_Query_from_SOTAMAS90[[#This Row],[CustomerName]])","v":20}]
["T16213","TASTE OF UTAH","CEDAR CITY","UT","84720",null,"0016",{"$f":"LEN(Table_Query_from_SOTAMAS90[[#This Row],[CustomerName]])","v":13}]
["T16205","TASTEFUL PROMOTIONS","VALLEY CENTER","CA","92082",null,"0016",{"$f":"LEN(Table_Query_from_SOTAMAS90[[#This Row],[CustomerName]])","v":19}]
["T16307","TEDDY, SET, GO!","METAMORA","IL","61548",null,"0016",{"$f":"LEN(Table_Query_from_SOTAMAS90[[#This Row],[CustomerName]])","v":15}]
["T16204","TEDDY'S CORNER GIFT SHOP","GLENWOOD SPRINGS","CO","81601",null,"0016",{"$f":"LEN(Table_Query_from_SOTAMAS90[[#This Row],[CustomerName]])","v":24}]
["TELLER","TELLER LEVIT & SILVERTRUST","CHICAGO","IL","60603",null,"0016",{"$f":"LEN(Table_Query_from_SOTAMAS90[[#This Row],[CustomerName]])","v":26}]
["T16216","TEMPTATIONS, LLC","LOVELOCK","NV","89419",null,"0016",{"$f":"LEN(Table_Query_from_SOTAMAS90[[#This Row],[CustomerName]])","v":16}]
["T09302","TENUTAS","KENOSHA","WI","53142",null,"0009",{"$f":"LEN(Table_Query_from_SOTAMAS90[[#This Row],[CustomerName]])","v":7}]
["T16223","THANKSGIVING POINT","LEHI","UT","84043",null,"0006",{"$f":"LEN(Table_Query_from_SOTAMAS90[[#This Row],[CustomerName]])","v":18}]
["A16215","THE ALMOND TREE","Mosinee","WI","54455","ALMONDTREE@CHARTER.NET","0016",{"$f":"LEN(Table_Query_from_SOTAMAS90[[#This Row],[CustomerName]])","v":15}]
["A16201","THE ALPS","LEAVENWORTH","WA","98826","THEALPSCANDY@AOL.COM","0010",{"$f":"LEN(Table_Query_from_SOTAMAS90[[#This Row],[CustomerName]])","v":8}]
["A16105","THE ALPS SWEET SHOP","BEACON","NY","12508",null,"0016",{"$f":"LEN(Table_Query_from_SOTAMAS90[[#This Row],[CustomerName]])","v":19}]
["B16123","THE BOAT HOUSE","Narragansett","RI","02882",null,"0016",{"$f":"LEN(Table_Query_from_SOTAMAS90[[#This Row],[CustomerName]])","v":14}]
["C07101","THE CANDI BAR","GALION","OH","44833",null,"0007",{"$f":"LEN(Table_Query_from_SOTAMAS90[[#This Row],[CustomerName]])","v":13}]
["C16209","THE CANDY BAR","WALWORTH","WI","53184",null,"0016",{"$f":"LEN(Table_Query_from_SOTAMAS90[[#This Row],[CustomerName]])","v":13}]
["T16118","THE CANDY BAR","Howell","MI","48843",null,"0016",{"$f":"LEN(Table_Query_from_SOTAMAS90[[#This Row],[CustomerName]])","v":13}]
["C16262","THE CANDY BARREL","BRANDON","FL","33508",null,"0016",{"$f":"LEN(Table_Query_from_SOTAMAS90[[#This Row],[CustomerName]])","v":16}]
["C16276","THE CANDY BASKET","ALBUQUERQUE","NM","87113","THECANDYBASKET@MSN.COM","0016",{"$f":"LEN(Table_Query_from_SOTAMAS90[[#This Row],[CustomerName]])","v":16}]
["C16300","THE CANDY BOUQUET","SEWELL","NJ","08080",null,"0016",{"$f":"LEN(Table_Query_from_SOTAMAS90[[#This Row],[CustomerName]])","v":17}]
["C16105","THE CANDY CAROUSEL","LOS ANGELES","CA","90045","THECANDYCAROUSEL@YAHOO.COM","0016",{"$f":"LEN(Table_Query_from_SOTAMAS90[[#This Row],[CustomerName]])","v":18}]
["T09103","THE CANDY CLUBHOUSE","RAPID CITY","SD","57701",null,"0009",{"$f":"LEN(Table_Query_from_SOTAMAS90[[#This Row],[CustomerName]])","v":19}]
["C16293","THE CANDY PALACE","Albuquerque","NM","87114",null,"0016",{"$f":"LEN(Table_Query_from_SOTAMAS90[[#This Row],[CustomerName]])","v":16}]
["C10227","THE CANDY SHOPPE, LLC","PORT ORCHARD","WA","98366","THECANDYSHOPPE@WAVECABLE.COM","0010",{"$f":"LEN(Table_Query_from_SOTAMAS90[[#This Row],[CustomerName]])","v":21}]
["C09202","THE CANDY STORE","Wyandotte","MI","48192",null,"0009",{"$f":"LEN(Table_Query_from_SOTAMAS90[[#This Row],[CustomerName]])","v":15}]
["C16117","THE CANDY STORE","OTTAWA","ON","K2A0E8",null,"0016",{"$f":"LEN(Table_Query_from_SOTAMAS90[[#This Row],[CustomerName]])","v":15}]
["C16258","THE CAVE RESTAURANT & RESORT","RICHLAND","MO","65556","GDYER30000@YAHOO.COM","0016",{"$f":"LEN(Table_Query_from_SOTAMAS90[[#This Row],[CustomerName]])","v":28}]
["C09105","THE CEDAR CHEST GIFT SHOP","BEAVER BAY","MN","55601",null,"0009",{"$f":"LEN(Table_Query_from_SOTAMAS90[[#This Row],[CustomerName]])","v":25}]
["C16354","THE CHERYL ANN","GRAND BEND","ON","N0M 1T0",null,"0016",{"$f":"LEN(Table_Query_from_SOTAMAS90[[#This Row],[CustomerName]])","v":14}]
["C16211","THE CHOCOLATE OX","NISSWA","MN","56468","RLSTOLL@NISSWA.NET","0009",{"$f":"LEN(Table_Query_from_SOTAMAS90[[#This Row],[CustomerName]])","v":16}]
["C16332","THE CHRISTMAS GARDEN","AKUREYRI",null,"601","JOLAGARD@SIMNET.IS","0016",{"$f":"LEN(Table_Query_from_SOTAMAS90[[#This Row],[CustomerName]])","v":20}]
["C16124","THE CRAVE CANDY & NUTS","WILMINGTON","OH","45177","RWHEASLER@CINCI.RR.COM","0007",{"$f":"LEN(Table_Query_from_SOTAMAS90[[#This Row],[CustomerName]])","v":22}]
["T16215","THE CUCUMBER SANDWICH","Springfield","MO","65802",null,"0016",{"$f":"LEN(Table_Query_from_SOTAMAS90[[#This Row],[CustomerName]])","v":21}]
["E16309","THE EMPORIUM","CARSON CITY","NV","89704",null,"0016",{"$f":"LEN(Table_Query_from_SOTAMAS90[[#This Row],[CustomerName]])","v":12}]
["F16211","THE FAMILY CENTER OF","FARMINGTON","MO","63640","FAMILYCENTER001@CHARTER.NET","0016",{"$f":"LEN(Table_Query_from_SOTAMAS90[[#This Row],[CustomerName]])","v":20}]
["T16120","THE FUDGE FACTORY","HOT SPRINGS","AR","71901",null,"0016",{"$f":"LEN(Table_Query_from_SOTAMAS90[[#This Row],[CustomerName]])","v":17}]
["G16107","THE GRAND AMERICA HOTEL","SALT LAKE CITY","UT","84101",null,"0016",{"$f":"LEN(Table_Query_from_SOTAMAS90[[#This Row],[CustomerName]])","v":23}]
["H16219","THE HOME PLACE","YUMA","CO","80759",null,"0016",{"$f":"LEN(Table_Query_from_SOTAMAS90[[#This Row],[CustomerName]])","v":14}]
["H16204","THE HOMESTEAD GIFT SHOP","Midway","UT","84049",null,"0016",{"$f":"LEN(Table_Query_from_SOTAMAS90[[#This Row],[CustomerName]])","v":23}]
["L10201","THE LITTLE HOUSE","VASHON","WA","98070",null,"0010",{"$f":"LEN(Table_Query_from_SOTAMAS90[[#This Row],[CustomerName]])","v":16}]
["L16226","THE LOG BARN 1912","ARMSTRONG","BC","V0E1B8","LAURA@LOGBARN.CA","0016",{"$f":"LEN(Table_Query_from_SOTAMAS90[[#This Row],[CustomerName]])","v":17}]
["L16211","THE LOLLIPOP SHOP","Kodak","TN","37764",null,"0016",{"$f":"LEN(Table_Query_from_SOTAMAS90[[#This Row],[CustomerName]])","v":17}]
["L16200","THE LOLLIPOP SHOP-RALEIGH","RALEIGH","NC","27609","THELOLLIPOPSHOPOFRALEIGH@YAHOO.COM","0016",{"$f":"LEN(Table_Query_from_SOTAMAS90[[#This Row],[CustomerName]])","v":25}]
["L16224","THE LUCKY ONE DOLLAR STORE","SANTAQUIN","UT","84655",null,"0016",{"$f":"LEN(Table_Query_from_SOTAMAS90[[#This Row],[CustomerName]])","v":26}]
["N17204","THE NUT FACTORY","Lafayette","CA","94549",null,"0017",{"$f":"LEN(Table_Query_from_SOTAMAS90[[#This Row],[CustomerName]])","v":15}]
["O16209","THE OUTLET STORE","Ketchikan","AK","99901","COATESDL@ME.COM","0016",{"$f":"LEN(Table_Query_from_SOTAMAS90[[#This Row],[CustomerName]])","v":16}]
["P16124","THE PASTRY CHEF","Neptune","NJ","07753",null,"0016",{"$f":"LEN(Table_Query_from_SOTAMAS90[[#This Row],[CustomerName]])","v":15}]
["P09102","THE PORTAL","GRAND RAPIDS","MN","55744",null,"0009",{"$f":"LEN(Table_Query_from_SOTAMAS90[[#This Row],[CustomerName]])","v":10}]
["P16111","THE PUEBLO CANDY COMPANY","PUEBLO","CO","81008",null,"0016",{"$f":"LEN(Table_Query_from_SOTAMAS90[[#This Row],[CustomerName]])","v":24}]
["Q16201","THE QUILTED BEAR","Midvale","UT","84047","BUYERS@QUILTEDBEAR.COM","0016",{"$f":"LEN(Table_Query_from_SOTAMAS90[[#This Row],[CustomerName]])","v":16}]
["Q16303","THE QUILTED BEAR","PROVO","UT","84601",null,"0016",{"$f":"LEN(Table_Query_from_SOTAMAS90[[#This Row],[CustomerName]])","v":16}]
["S16154","THE SCOOP OF FRANKFORT","Frankfort","MI","49635",null,"0016",{"$f":"LEN(Table_Query_from_SOTAMAS90[[#This Row],[CustomerName]])","v":22}]
["T16225","THE SEASONS","FREDERICKSBURG","TX","78624",null,"0016",{"$f":"LEN(Table_Query_from_SOTAMAS90[[#This Row],[CustomerName]])","v":11}]
["S06200","THE STAGE STATION","SEELEY LAKE","MT","59868",null,"0006",{"$f":"LEN(Table_Query_from_SOTAMAS90[[#This Row],[CustomerName]])","v":17}]
["S06205","THE STORE","HOLLADAY","UT","84121",null,"0006",{"$f":"LEN(Table_Query_from_SOTAMAS90[[#This Row],[CustomerName]])","v":9}]
["T16114","THE SWEET DEPOT","LITCHFIELD","MN","55355","BOB@THESWEETDEPOT.COM","0016",{"$f":"LEN(Table_Query_from_SOTAMAS90[[#This Row],[CustomerName]])","v":15}]
["S10103","THE SWEET SHOP","Manson","WA","98831",null,"0010",{"$f":"LEN(Table_Query_from_SOTAMAS90[[#This Row],[CustomerName]])","v":14}]
["S16266","THE SWEET STOP","HAYDEN","ID","83835",null,"0006",{"$f":"LEN(Table_Query_from_SOTAMAS90[[#This Row],[CustomerName]])","v":14}]
["T16112","THE SWEET TOOTH OF ROCKFORD","ROCKFORD","MI","49341",null,"0016",{"$f":"LEN(Table_Query_from_SOTAMAS90[[#This Row],[CustomerName]])","v":27}]
["T09304","THE TAFFY BARREL","Charlevoix","MI","49720","taffybarrel@sbcglobal.net","0009",{"$f":"LEN(Table_Query_from_SOTAMAS90[[#This Row],[CustomerName]])","v":16}]
["T16306","THE TAFFY CONNECTION","LAWRENCEVILLE","IL","62439",null,"0016",{"$f":"LEN(Table_Query_from_SOTAMAS90[[#This Row],[CustomerName]])","v":20}]
["T17200","THE TIDES WHARF & RESTAURANT","BODEGA BAY","CA","94923",null,"0017",{"$f":"LEN(Table_Query_from_SOTAMAS90[[#This Row],[CustomerName]])","v":28}]
["T09235","THE TRADING POST","Warroad","MN","56763",null,"0009",{"$f":"LEN(Table_Query_from_SOTAMAS90[[#This Row],[CustomerName]])","v":16}]
["T16303","THE TRADING POST-COLORADO","GEORGETOWN","CO","80444",null,"0016",{"$f":"LEN(Table_Query_from_SOTAMAS90[[#This Row],[CustomerName]])","v":25}]
["T16304","THEATRE CANDY DISTRIBUTING","SALT LAKE CITY","UT","84127-0982",null,"0016",{"$f":"LEN(Table_Query_from_SOTAMAS90[[#This Row],[CustomerName]])","v":26}]
["T16217","THIS IS THE PLACE","SALT LAKE CITY","UT","84108","TKRAMER@THISISTHEPLACE.ORG","0016",{"$f":"LEN(Table_Query_from_SOTAMAS90[[#This Row],[CustomerName]])","v":17}]
["T16219","THIS IS THE PLACE-GIFT STORE","SALT LAKE CITY","UT","84124",null,"0016",{"$f":"LEN(Table_Query_from_SOTAMAS90[[#This Row],[CustomerName]])","v":28}]
["T16300","THIS THAT & THE OTHER","CLE ELUM","WA","98922",null,"0016",{"$f":"LEN(Table_Query_from_SOTAMAS90[[#This Row],[CustomerName]])","v":21}]
["T07201","THOMPSON COUNTRY FLORIST","WINTERSVILLE","OH","43953",null,"0007",{"$f":"LEN(Table_Query_from_SOTAMAS90[[#This Row],[CustomerName]])","v":24}]
["T16115","THOMSON REUTERS","EAGAN","MN","55123","CHERI.ROSE@THOMSONREUTERS.COM","0016",{"$f":"LEN(Table_Query_from_SOTAMAS90[[#This Row],[CustomerName]])","v":15}]
["T16214","THOUGHTS IN A BASKET, LLC","Caldwell","NJ","07006",null,"0016",{"$f":"LEN(Table_Query_from_SOTAMAS90[[#This Row],[CustomerName]])","v":25}]
["T16309","THREE DOG DOWN","POLSON","MT","59860",null,"0016",{"$f":"LEN(Table_Query_from_SOTAMAS90[[#This Row],[CustomerName]])","v":14}]
["T09104","THRIFTY WHITE #37","PERHAM","MN","56573",null,"0009",{"$f":"LEN(Table_Query_from_SOTAMAS90[[#This Row],[CustomerName]])","v":17}]
["T16108","TICKLE PINK","MIDLAND","TX","79707",null,"0016",{"$f":"LEN(Table_Query_from_SOTAMAS90[[#This Row],[CustomerName]])","v":11}]
["T16207","TICKLE YER FANCY FINE CANDIES","RED WING","MN","55066","RBLUHM@CHARTER.NET","0016",{"$f":"LEN(Table_Query_from_SOTAMAS90[[#This Row],[CustomerName]])","v":29}]
["T16206","TIDE POOL, THE","BODEGA BAY","CA","94923",null,"0016",{"$f":"LEN(Table_Query_from_SOTAMAS90[[#This Row],[CustomerName]])","v":14}]
["T16110","'TIL THE COWS COME HOME","SHAWANO","WI","54166",null,"0016",{"$f":"LEN(Table_Query_from_SOTAMAS90[[#This Row],[CustomerName]])","v":23}]
["T06201","TIMBER-LEE CHRISTIAN CENTER","EAST TROY","WI","53120",null,"0009",{"$f":"LEN(Table_Query_from_SOTAMAS90[[#This Row],[CustomerName]])","v":27}]
["T09236","TIMBER-LEE CHRISTIAN CENTER","EAST TROY","WI","53120",null,"0009",{"$f":"LEN(Table_Query_from_SOTAMAS90[[#This Row],[CustomerName]])","v":27}]
["T16107","TINA'S SWEET DELITES ICE CREAM","FLINT","MI","48532",null,"0016",{"$f":"LEN(Table_Query_from_SOTAMAS90[[#This Row],[CustomerName]])","v":30}]
["T16226","TO THE MOON","WILTON MANORS","FL","33305",null,"0016",{"$f":"LEN(Table_Query_from_SOTAMAS90[[#This Row],[CustomerName]])","v":11}]
["T10201","TOLLGATE INN","SANDY","OR","97055",null,"0010",{"$f":"LEN(Table_Query_from_SOTAMAS90[[#This Row],[CustomerName]])","v":12}]
["T09308","TOM'S CANDY KITCHEN","Reedsburg","WI","53959",null,"0009",{"$f":"LEN(Table_Query_from_SOTAMAS90[[#This Row],[CustomerName]])","v":19}]
["T16109","TOM'S COFFEE AND GIFT","BINGHAMTON","NY","13905",null,"0016",{"$f":"LEN(Table_Query_from_SOTAMAS90[[#This Row],[CustomerName]])","v":21}]
["T08101","TONY'S MEANTS COMMISSARY","Englewood","CO","80111",null,"0008",{"$f":"LEN(Table_Query_from_SOTAMAS90[[#This Row],[CustomerName]])","v":24}]
["T16305","TOO GOOD GOURMET","SAN LORENZO","CA","94580",null,"0016",{"$f":"LEN(Table_Query_from_SOTAMAS90[[#This Row],[CustomerName]])","v":16}]
["T16218","TOP SAIL ISLAND TRADING CO.","SURF CITY","NC","28445-6603",null,"0016",{"$f":"LEN(Table_Query_from_SOTAMAS90[[#This Row],[CustomerName]])","v":27}]
["T16104","TOPAZ LODGE","Gardnerville","NV","89410",null,"0016",{"$f":"LEN(Table_Query_from_SOTAMAS90[[#This Row],[CustomerName]])","v":11}]
["T10209","TOPPERS","YACHATS","OR","97498","GARYANDCARLY@HOTMAIL.COM","0010",{"$f":"LEN(Table_Query_from_SOTAMAS90[[#This Row],[CustomerName]])","v":7}]
["T16220","TORCH LAKE MARKET","KEWADIN","MI","49648",null,"0009",{"$f":"LEN(Table_Query_from_SOTAMAS90[[#This Row],[CustomerName]])","v":17}]
["T16224","TOTTENHAM CANDY CO.","BIRMINGHAM","MI","48009",null,"0016",{"$f":"LEN(Table_Query_from_SOTAMAS90[[#This Row],[CustomerName]])","v":19}]
["T16202","TOUCHED BY AN ANGEL","SALT LAKE CITY","UT","84101",null,"0016",{"$f":"LEN(Table_Query_from_SOTAMAS90[[#This Row],[CustomerName]])","v":19}]
["T12201","TOUDOUZE MARKET","SAN ANTONIO","TX","78207",null,"0012",{"$f":"LEN(Table_Query_from_SOTAMAS90[[#This Row],[CustomerName]])","v":15}]
["T13200","TOWN & COUNTRY","SPRINGFIELD","MA","01102-7840",null,"0013",{"$f":"LEN(Table_Query_from_SOTAMAS90[[#This Row],[CustomerName]])","v":14}]
["T16200","TOWN & COUNTRY GARDENS","Idaho Falls","ID","83402",null,"0016",{"$f":"LEN(Table_Query_from_SOTAMAS90[[#This Row],[CustomerName]])","v":22}]
["T10202","TOWN & COUNTRY MARKET","BAINBRIDGE ISLAND","WA","98110",null,"0010",{"$f":"LEN(Table_Query_from_SOTAMAS90[[#This Row],[CustomerName]])","v":21}]
["T16212","TOWN SQUARE CANDY COMPANY","VACAVILLE","CA","95688",null,"0016",{"$f":"LEN(Table_Query_from_SOTAMAS90[[#This Row],[CustomerName]])","v":25}]
["T04200","TOWN SQUARE SIX LTD","BOISE","ID","83709",null,"0008",{"$f":"LEN(Table_Query_from_SOTAMAS90[[#This Row],[CustomerName]])","v":19}]
["T16113","TOY TYME","CHESTERFIELD","MO","63017","ANGIE@TOYTYME.COM","0016",{"$f":"LEN(Table_Query_from_SOTAMAS90[[#This Row],[CustomerName]])","v":8}]
["T16106","TRACY'S ROADSIDE PRODUCE","ENUMCLAW","WA","98022",null,"0010",{"$f":"LEN(Table_Query_from_SOTAMAS90[[#This Row],[CustomerName]])","v":24}]
["T09101","TRADITIONS MINI GOLF","Brooklyn Park","MN","55443",null,"0009",{"$f":"LEN(Table_Query_from_SOTAMAS90[[#This Row],[CustomerName]])","v":20}]
["W16305","TRAIN TOWN CANDIES","JACKSON","CA","95642",null,"0017",{"$f":"LEN(Table_Query_from_SOTAMAS90[[#This Row],[CustomerName]])","v":18}]
["T16310","TRAVEL CENTERS OF AMERICA","LA VERGNE","TN","37086","SWRIGHT@TA-PETRO.COM","0016",{"$f":"LEN(Table_Query_from_SOTAMAS90[[#This Row],[CustomerName]])","v":25}]
["S16306","TRAVEL TRADERS LLC","MIAMI","FL","33126",null,"0016",{"$f":"LEN(Table_Query_from_SOTAMAS90[[#This Row],[CustomerName]])","v":18}]
["T16315","TREAT BOUTIQUE","PEMBROKE PINES","FL","33026",null,"0016",{"$f":"LEN(Table_Query_from_SOTAMAS90[[#This Row],[CustomerName]])","v":14}]
["T16101","TREAT CENTER ON COURTHOUSE SQ.","PRESCOTT","AZ","86303",null,"0016",{"$f":"LEN(Table_Query_from_SOTAMAS90[[#This Row],[CustomerName]])","v":30}]
["C16249","TREAT WREATHS","SHERMAN","CT","06784",null,"0016",{"$f":"LEN(Table_Query_from_SOTAMAS90[[#This Row],[CustomerName]])","v":13}]
["T16209","TREATS AND TREASURES","LAKE CITY","MN","55041","JIL@TREATSANDTREASURESLC.COM","0009",{"$f":"LEN(Table_Query_from_SOTAMAS90[[#This Row],[CustomerName]])","v":20}]
["T16208","TREEHOUSE GIFT & HOME","ONALASKA","WI","54650",null,"0016",{"$f":"LEN(Table_Query_from_SOTAMAS90[[#This Row],[CustomerName]])","v":21}]
["T09301","TREMBLAY'S SWEET SHOP","HAYWARD","WI","54843",null,"0009",{"$f":"LEN(Table_Query_from_SOTAMAS90[[#This Row],[CustomerName]])","v":21}]
["T09303","TREMBLAY'S SWEET SHOP","STILLWATER","MN","55082","TREM1992@SBCGLOBAL.NET","0009",{"$f":"LEN(Table_Query_from_SOTAMAS90[[#This Row],[CustomerName]])","v":21}]
["T16117","TRI-COUNTY GIFT BASKET CO","SHELBY TOWNSHIP","MI","48316","LSHELDON@WOWWAY.COM","0016",{"$f":"LEN(Table_Query_from_SOTAMAS90[[#This Row],[CustomerName]])","v":25}]
["T16102","TRIPLE B FARMS","Monongahela","PA","15063",null,"0016",{"$f":"LEN(Table_Query_from_SOTAMAS90[[#This Row],[CustomerName]])","v":14}]
["T16103","TRIPLE SSS SERVICE","NIPOMO","CA","93444",null,"0016",{"$f":"LEN(Table_Query_from_SOTAMAS90[[#This Row],[CustomerName]])","v":18}]
["T16228","TROPHY FOODS, INC.","MISSISSAUGA","ON","L5T2T1",null,"0016",{"$f":"LEN(Table_Query_from_SOTAMAS90[[#This Row],[CustomerName]])","v":18}]
["T07101","TROPHY NUT","TIPP CITY","OH","45371",null,"0007",{"$f":"LEN(Table_Query_from_SOTAMAS90[[#This Row],[CustomerName]])","v":10}]
["T17310","TROPHY PROPERTIES","SAN DIEGO","CA","92110",null,"0017",{"$f":"LEN(Table_Query_from_SOTAMAS90[[#This Row],[CustomerName]])","v":17}]
["T10215","TROUTDALE GENERAL STORE","TROUTDALE","OR","97060",null,"0010",{"$f":"LEN(Table_Query_from_SOTAMAS90[[#This Row],[CustomerName]])","v":23}]
["P07102","TUCK SHOP","OBERLIN","OH","44074",null,"0007",{"$f":"LEN(Table_Query_from_SOTAMAS90[[#This Row],[CustomerName]])","v":9}]
["T09318","TUCKER'S STORE","HAYWARD","WI","54843",null,"0009",{"$f":"LEN(Table_Query_from_SOTAMAS90[[#This Row],[CustomerName]])","v":14}]
["T16210","TUDOR COTTAGE, THE","LA CANADA","CA","91011",null,"0016",{"$f":"LEN(Table_Query_from_SOTAMAS90[[#This Row],[CustomerName]])","v":18}]
["T16116","TULSA COUNTY PUBLIC FACILITIES","Tulsa","OK","74114",null,"0016",{"$f":"LEN(Table_Query_from_SOTAMAS90[[#This Row],[CustomerName]])","v":30}]
["T16229","TWIN CITY JACUZZI","BURNSVILLE","MN","55337",null,"0016",{"$f":"LEN(Table_Query_from_SOTAMAS90[[#This Row],[CustomerName]])","v":17}]
["T16211","TWIN HILL RANCH","SEBASTOPOL","CA","95472",null,"0016",{"$f":"LEN(Table_Query_from_SOTAMAS90[[#This Row],[CustomerName]])","v":15}]
["T16318","TWO DUMB DAMES","EUREKA SPRINGS","AR","72632","dumbdame@arkansas.net","0016",{"$f":"LEN(Table_Query_from_SOTAMAS90[[#This Row],[CustomerName]])","v":14}]
["T16355","TZETZO BROS. INC","BUFFALO","NY","14217",null,"0016",{"$f":"LEN(Table_Query_from_SOTAMAS90[[#This Row],[CustomerName]])","v":16}]
["U11201","U OF U BOOKSTORE","SALT LAKE CITY","UT","84112-0670",null,"0006",{"$f":"LEN(Table_Query_from_SOTAMAS90[[#This Row],[CustomerName]])","v":16}]
["U16104","UNBEARABLY SWEET","Gatlinburg","TN","37738","UNBEARABLYSWEETS@ATT.NET","0016",{"$f":"LEN(Table_Query_from_SOTAMAS90[[#This Row],[CustomerName]])","v":16}]
["U16208","UNCLE BITCHEN","TEMECULA","CA","92592",null,"0016",{"$f":"LEN(Table_Query_from_SOTAMAS90[[#This Row],[CustomerName]])","v":13}]
["U16203","UNCLE MIKE'S BAKE SHOPPE","DE PERE","WI","54115",null,"0016",{"$f":"LEN(Table_Query_from_SOTAMAS90[[#This Row],[CustomerName]])","v":24}]
["U17201","UNDER THE BIG TOP","Sacramento","CA","95841",null,"0017",{"$f":"LEN(Table_Query_from_SOTAMAS90[[#This Row],[CustomerName]])","v":17}]
["U10200","UNIFIED GROCERS","SEATTLE","WA","98124",null,"0010",{"$f":"LEN(Table_Query_from_SOTAMAS90[[#This Row],[CustomerName]])","v":15}]
["U17200","UNIFIED WESTERN GROCERS","LOS ANGELES","CA","90060",null,"0017",{"$f":"LEN(Table_Query_from_SOTAMAS90[[#This Row],[CustomerName]])","v":23}]
["U13210","UNION TWO FIRE COMPANY","BELLEVILLE","PA","17004",null,"0013",{"$f":"LEN(Table_Query_from_SOTAMAS90[[#This Row],[CustomerName]])","v":22}]
["U16105","UNITED MANUFACTURING GROUP","Corona","CA","92880",null,"0016",{"$f":"LEN(Table_Query_from_SOTAMAS90[[#This Row],[CustomerName]])","v":26}]
["U16204","UNITED MANUFACTURING GROUP LLC","Corona","CA","92880",null,"0016",{"$f":"LEN(Table_Query_from_SOTAMAS90[[#This Row],[CustomerName]])","v":30}]
["U16102","UPCHURCH CANDY CO.","PHOENIX","AZ","85008","UPCHURCHCANDY1@YAHOO.COM","0016",{"$f":"LEN(Table_Query_from_SOTAMAS90[[#This Row],[CustomerName]])","v":18}]
["U10101","URM STORES, INC.","Spokane","WA","99217-8043",null,"0010",{"$f":"LEN(Table_Query_from_SOTAMAS90[[#This Row],[CustomerName]])","v":16}]
["U16210","US FOODSERVICE, INC","PHOENIX","AZ","85038",null,"0016",{"$f":"LEN(Table_Query_from_SOTAMAS90[[#This Row],[CustomerName]])","v":19}]
["U06210","USU CAMPUS STORE","Logan","UT","84322",null,"0006",{"$f":"LEN(Table_Query_from_SOTAMAS90[[#This Row],[CustomerName]])","v":16}]
["U16101","UTAH CAPITOL STORE","SALT LAKE CITY","UT","84114",null,"0016",{"$f":"LEN(Table_Query_from_SOTAMAS90[[#This Row],[CustomerName]])","v":18}]
["U06201","UTAH GIFT","LAYTON","UT","84040",null,"0006",{"$f":"LEN(Table_Query_from_SOTAMAS90[[#This Row],[CustomerName]])","v":9}]
["U16202","UTAH GIFT BASKETS","SARATOGA SPRINGS","UT","84045",null,"0016",{"$f":"LEN(Table_Query_from_SOTAMAS90[[#This Row],[CustomerName]])","v":17}]
["U16103","UTAH MAKES","HIGHLAND","UT","84003",null,"0016",{"$f":"LEN(Table_Query_from_SOTAMAS90[[#This Row],[CustomerName]])","v":10}]
["U16200","UTAH PADDLE SURFING","SALT LAKE CITY","UT","84110","UTAHPADDLESURFING@GMAIL.COM","0016",{"$f":"LEN(Table_Query_from_SOTAMAS90[[#This Row],[CustomerName]])","v":19}]
["U16100","UTAH SALT COMPANY","DRAPER","UT","84020",null,"0016",{"$f":"LEN(Table_Query_from_SOTAMAS90[[#This Row],[CustomerName]])","v":17}]
["U16201","UTAH STATE PARKS & RECREATION","SALT LAKE CITY","UT","84116","TACKLEY@UTAH.GOV","0016",{"$f":"LEN(Table_Query_from_SOTAMAS90[[#This Row],[CustomerName]])","v":29}]
["U16212","UTAH VALLEY CONVENTION &","Provo","UT","84601",null,"0016",{"$f":"LEN(Table_Query_from_SOTAMAS90[[#This Row],[CustomerName]])","v":24}]
["V11304","VALLEY WHOLESALE CO.","BURLEY","ID","83318","TODD- EXT117   MEGAN-EXT 132","0008",{"$f":"LEN(Table_Query_from_SOTAMAS90[[#This Row],[CustomerName]])","v":20}]
["V09202","VALLEYFAIR","Shakopee","MN","55379",null,"0009",{"$f":"LEN(Table_Query_from_SOTAMAS90[[#This Row],[CustomerName]])","v":10}]
["V16202","VAN HOLTEN'S CANDY","SEASIDE PARK","NJ","08752",null,"0013",{"$f":"LEN(Table_Query_from_SOTAMAS90[[#This Row],[CustomerName]])","v":18}]
["V16216","VANCOUVER ISLAND GOURMET TAFFY","VICTORIA","BC","V8S4V4",null,"0016",{"$f":"LEN(Table_Query_from_SOTAMAS90[[#This Row],[CustomerName]])","v":30}]
["V09301","VANDE WALLE'S CANDIES, INC","APPLETON","WI","54915",null,"0009",{"$f":"LEN(Table_Query_from_SOTAMAS90[[#This Row],[CustomerName]])","v":26}]
["V04301","VANS WHOLESALE","LARAMIE","WY","82070",null,"0016",{"$f":"LEN(Table_Query_from_SOTAMAS90[[#This Row],[CustomerName]])","v":14}]
["V10101","VASHON THRIFTWAY","Vashon","WA","98070",null,"0010",{"$f":"LEN(Table_Query_from_SOTAMAS90[[#This Row],[CustomerName]])","v":16}]
["V16302","VEGAS IMAGE","LAS VEGAS","NV","89120",null,"0017",{"$f":"LEN(Table_Query_from_SOTAMAS90[[#This Row],[CustomerName]])","v":11}]
["V08101","VERTICAL MILE MARKET","Layton","UT","84041",null,"0008",{"$f":"LEN(Table_Query_from_SOTAMAS90[[#This Row],[CustomerName]])","v":20}]
["V16201","VICKI BULLARD","ODESSA","TX","79761",null,"0016",{"$f":"LEN(Table_Query_from_SOTAMAS90[[#This Row],[CustomerName]])","v":13}]
["F16304","VIDEO OUTLET","ANDERSON","CA","96007",null,"0016",{"$f":"LEN(Table_Query_from_SOTAMAS90[[#This Row],[CustomerName]])","v":12}]
["V16214","VIDEO USA","Aptos","CA","95003",null,"0016",{"$f":"LEN(Table_Query_from_SOTAMAS90[[#This Row],[CustomerName]])","v":9}]
["V06201","VILLAGE CANDY SHOPPE","PARK CITY","UT","84068",null,"0006",{"$f":"LEN(Table_Query_from_SOTAMAS90[[#This Row],[CustomerName]])","v":20}]
["V16304","VILLAGE CANDY SHOPPE","ORLANDO","FL","32819",null,"0016",{"$f":"LEN(Table_Query_from_SOTAMAS90[[#This Row],[CustomerName]])","v":20}]
["V09302","VILLAGE CHOCOLATIER","EAST TAWAS","MI","48730","VILLAGECHOCOLATIER@ATT.NET","0009",{"$f":"LEN(Table_Query_from_SOTAMAS90[[#This Row],[CustomerName]])","v":19}]
["V16204","VILLAGE GRINDER","OMAHA","NE","68114","VGCOFFEE@COX.NET","0016",{"$f":"LEN(Table_Query_from_SOTAMAS90[[#This Row],[CustomerName]])","v":15}]
["V10352","VILLAGE MARKET THRIFTWAY","Seattle","WA","98155",null,"0010",{"$f":"LEN(Table_Query_from_SOTAMAS90[[#This Row],[CustomerName]])","v":24}]
["V16316","VILLAGE RESAURANT & DONUT SHOP","CHIMNEY ROCK","NC","28720",null,"0016",{"$f":"LEN(Table_Query_from_SOTAMAS90[[#This Row],[CustomerName]])","v":30}]
["V16203","VILLAGE ROASTERY","WINCHESTER BAY","OR","97467",null,"0016",{"$f":"LEN(Table_Query_from_SOTAMAS90[[#This Row],[CustomerName]])","v":16}]
["V13213","VILLAGE SWEETS","CONCORD","NH","03301",null,"0013",{"$f":"LEN(Table_Query_from_SOTAMAS90[[#This Row],[CustomerName]])","v":14}]
["V16212","VINCENT'S DRUG & SODA","CENTENNIAL","CO","80155-3592",null,"0016",{"$f":"LEN(Table_Query_from_SOTAMAS90[[#This Row],[CustomerName]])","v":21}]
["V16101","VINEYARD SQUARE HOTEL","EDGARTOWN","MA","02539","joanne@vineyardsquarehotel.com","0016",{"$f":"LEN(Table_Query_from_SOTAMAS90[[#This Row],[CustomerName]])","v":21}]
["V16205","VINTAGE CONFECTIONS","Clarendon Hills","IL","60514","nicole@vintageconfections.com","0016",{"$f":"LEN(Table_Query_from_SOTAMAS90[[#This Row],[CustomerName]])","v":19}]
["V16210","VONDA'S","FRESNO","CA","93720","VONDAFLANIGAN@AOL.COM","0016",{"$f":"LEN(Table_Query_from_SOTAMAS90[[#This Row],[CustomerName]])","v":7}]
["V09201","V-RICHARDS","BROOKFIELD","WI","53005",null,"0009",{"$f":"LEN(Table_Query_from_SOTAMAS90[[#This Row],[CustomerName]])","v":10}]
["W09301","W.W. ENTERPRISES","LAKEWOOD","WI","54138","WENDY@SWEETMEMORIESCANDYSHOPPE.COM","0009",{"$f":"LEN(Table_Query_from_SOTAMAS90[[#This Row],[CustomerName]])","v":16}]
["W10234","WAGNER'S BAKERY","OLYMPIA","WA","98503",null,"0010",{"$f":"LEN(Table_Query_from_SOTAMAS90[[#This Row],[CustomerName]])","v":15}]
["W09102","WALKER GENERAL STORE","WALKER","MN","56484","KIMBERLY@WALKERGENERALSTORE.COM","0009",{"$f":"LEN(Table_Query_from_SOTAMAS90[[#This Row],[CustomerName]])","v":20}]
["W16313","WALL DRUG","WALL","SD","57790","WALLDRUG@GWTC.NET","0006",{"$f":"LEN(Table_Query_from_SOTAMAS90[[#This Row],[CustomerName]])","v":9}]
["W13206","WALLINGFORD FLOWER SHOPPE","WALLINGFORD","CT","06492",null,"0013",{"$f":"LEN(Table_Query_from_SOTAMAS90[[#This Row],[CustomerName]])","v":25}]
["W16209","WALT CHURCHILL'S MARKET","Perrysburg","OH","43551",null,"0007",{"$f":"LEN(Table_Query_from_SOTAMAS90[[#This Row],[CustomerName]])","v":23}]
["W09307","WARNER CANDY","Schiller Park","IL","60176",null,"0009",{"$f":"LEN(Table_Query_from_SOTAMAS90[[#This Row],[CustomerName]])","v":12}]
["W16105","WARPATH TRADERS INC.","ALBUQUERQUE","NM","87104",null,"0016",{"$f":"LEN(Table_Query_from_SOTAMAS90[[#This Row],[CustomerName]])","v":20}]
["W16204","WARREN'S CRANBERRY FESTIVAL","Warrens","WI","54666",null,"0016",{"$f":"LEN(Table_Query_from_SOTAMAS90[[#This Row],[CustomerName]])","v":27}]
["W16202","WASATCH CONTAINER INC.","NORTH SALT LAKE","UT","84054",null,"0016",{"$f":"LEN(Table_Query_from_SOTAMAS90[[#This Row],[CustomerName]])","v":22}]
["W16312","WASHINGTON CITY HIST. SOCIETY","WASHINGTON","UT","84780",null,"0016",{"$f":"LEN(Table_Query_from_SOTAMAS90[[#This Row],[CustomerName]])","v":29}]
["W16101","WATERS EDGE TRADING COMPANY","Tofte","MN","55615",null,"0016",{"$f":"LEN(Table_Query_from_SOTAMAS90[[#This Row],[CustomerName]])","v":27}]
["W16303","WATSON SYSCO FOOD SERVICE, INC","LEWISVILLE","TX","75056",null,"0016",{"$f":"LEN(Table_Query_from_SOTAMAS90[[#This Row],[CustomerName]])","v":30}]
["W16103","WAVERLY ENTERTAINMENT","HUNTINGTON","WV","25718",null,"0016",{"$f":"LEN(Table_Query_from_SOTAMAS90[[#This Row],[CustomerName]])","v":21}]
["W16106","WAXBERRY, INC.","Hartville","WY","82215","AWILKINS@WAXBERRY.COM","0016",{"$f":"LEN(Table_Query_from_SOTAMAS90[[#This Row],[CustomerName]])","v":14}]
["W13205","WAYSIDE COUNTRY STORE","MARLBOROUGH","MA","01752","BROKER GUARANTEE PER WALT GILBRIDE","0013",{"$f":"LEN(Table_Query_from_SOTAMAS90[[#This Row],[CustomerName]])","v":21}]
["W10228","WAYWARD SONS","LANGLEY","WA","98260",null,"0010",{"$f":"LEN(Table_Query_from_SOTAMAS90[[#This Row],[CustomerName]])","v":12}]
["H16322","WDFG NORTH AMERICA LLC","BETHESDA","MD","20817","ALL CUSTOMER SUPPORT INQUIRIES CONTACT","0016",{"$f":"LEN(Table_Query_from_SOTAMAS90[[#This Row],[CustomerName]])","v":22}]
["W07304","WEAVER NUT COMPANY","EPHRATA","PA","17522",null,"0007",{"$f":"LEN(Table_Query_from_SOTAMAS90[[#This Row],[CustomerName]])","v":18}]
["W16999","WEB GUEST CHECKOUT",null,null,null,null,"0016",{"$f":"LEN(Table_Query_from_SOTAMAS90[[#This Row],[CustomerName]])","v":18}]
["W16301","WEBB DISTRIBUTING","OREM","UT","84058",null,"0016",{"$f":"LEN(Table_Query_from_SOTAMAS90[[#This Row],[CustomerName]])","v":17}]
["W16104","WEBER'S","FISH CREEK","WI","54212","WEBERS@DCWIS.COM","0016",{"$f":"LEN(Table_Query_from_SOTAMAS90[[#This Row],[CustomerName]])","v":7}]
["Z200000","Website Pipeline","Greenville","SC","29607","dan.pannell@websitepipeline.com","0016",{"$f":"LEN(Table_Query_from_SOTAMAS90[[#This Row],[CustomerName]])","v":16}]
["W09100","WESTBORN MARKET","DEARBORN","MI","48124",null,"0009",{"$f":"LEN(Table_Query_from_SOTAMAS90[[#This Row],[CustomerName]])","v":15}]
["W16201","WESTERN HERITAGE MUSEUM","Vernal","UT","84078","EBAKER@CO.UINTAH.UT.US","0016",{"$f":"LEN(Table_Query_from_SOTAMAS90[[#This Row],[CustomerName]])","v":23}]
["W11205","WESTERN NUT","SALT LAKE CITY","UT","84101",null,"0006",{"$f":"LEN(Table_Query_from_SOTAMAS90[[#This Row],[CustomerName]])","v":11}]
["W10230","WESTMARK HOTELS","SEATTLE","WA","98119",null,"0010",{"$f":"LEN(Table_Query_from_SOTAMAS90[[#This Row],[CustomerName]])","v":15}]
["W16208","WHITING NEWS COMPANY INC.","WHITING","IN","46394",null,"0007",{"$f":"LEN(Table_Query_from_SOTAMAS90[[#This Row],[CustomerName]])","v":25}]
["W16206","WICKER & WILLOW","HOUGHTON","MI","49931",null,"0016",{"$f":"LEN(Table_Query_from_SOTAMAS90[[#This Row],[CustomerName]])","v":15}]
["W10201","WIGHTS","LYNNWOOD","WA","98036",null,"0010",{"$f":"LEN(Table_Query_from_SOTAMAS90[[#This Row],[CustomerName]])","v":6}]
["W16102","WILD IDAHO CHOCOLATE COMPANY","Coeur D Alene","ID","83814",null,"0016",{"$f":"LEN(Table_Query_from_SOTAMAS90[[#This Row],[CustomerName]])","v":28}]
["W13200","WILD RASPBERRY","CROMWELL","CT","06416",null,"0013",{"$f":"LEN(Table_Query_from_SOTAMAS90[[#This Row],[CustomerName]])","v":14}]
["W10101","WILD WAVES ENCHANTED VILLAGE","FEDERAL WAY","WA","98003",null,"0010",{"$f":"LEN(Table_Query_from_SOTAMAS90[[#This Row],[CustomerName]])","v":28}]
["W11210","WILD WOOD HUTCH, THE","SALT LAKE CITY","UT","84101",null,"0006",{"$f":"LEN(Table_Query_from_SOTAMAS90[[#This Row],[CustomerName]])","v":20}]
["W16304","WILLIAMS & BENNETT","DELRAY BEACH","FL","33445",null,"0016",{"$f":"LEN(Table_Query_from_SOTAMAS90[[#This Row],[CustomerName]])","v":18}]
["W09208","WILMAR CHOCOLATES","Appleton","WI","54911",null,"0009",{"$f":"LEN(Table_Query_from_SOTAMAS90[[#This Row],[CustomerName]])","v":17}]
["W16310","WINANS' S CHOCOLATES & COFFEES","PIQUA","OH","45356","KAREN.WINANS@LIVE.COM","0007",{"$f":"LEN(Table_Query_from_SOTAMAS90[[#This Row],[CustomerName]])","v":30}]
["W07201","WINDY ACRES","WILMINGTON","OH","45177",null,"0007",{"$f":"LEN(Table_Query_from_SOTAMAS90[[#This Row],[CustomerName]])","v":11}]
["W16306","WING CANDY CO","Branson","MO","65615",null,"0016",{"$f":"LEN(Table_Query_from_SOTAMAS90[[#This Row],[CustomerName]])","v":13}]
["W09315","WINKIE INC.","MILWAUKEE","WI","53217",null,"0009",{"$f":"LEN(Table_Query_from_SOTAMAS90[[#This Row],[CustomerName]])","v":11}]
["W10202","WINSLOW DRUG","BAINBRIDGE ISLAND","WA","98110","NOWAY@DON'TASK.COM","0010",{"$f":"LEN(Table_Query_from_SOTAMAS90[[#This Row],[CustomerName]])","v":12}]
["W09103","WINTER GIFTS & GALLERY","COUDERAY","WI","54828",null,"0009",{"$f":"LEN(Table_Query_from_SOTAMAS90[[#This Row],[CustomerName]])","v":22}]
["W09203","WISCONSIN CHEESEMAN","MADISON","WI","53701",null,"0009",{"$f":"LEN(Table_Query_from_SOTAMAS90[[#This Row],[CustomerName]])","v":19}]
["C09206","WISCONSIN CRANBERRY DISCOVERY","WARRENS","WI","54666",null,"0009",{"$f":"LEN(Table_Query_from_SOTAMAS90[[#This Row],[CustomerName]])","v":29}]
["W09305","WISCONSIN DELLS FUDGE","WISCONSIN DELLS","WI","53965","NLHOLZEM@CHARTER.NET","0009",{"$f":"LEN(Table_Query_from_SOTAMAS90[[#This Row],[CustomerName]])","v":21}]
["W16205","WISEMAN HOUSE","HICO","TX","76457","BEVERLY@WISEMANHOUSECHOCOLATES.COM","0016",{"$f":"LEN(Table_Query_from_SOTAMAS90[[#This Row],[CustomerName]])","v":13}]
["W13201","WISHES UNDER WRAP","JOHNSTON","RI","02919",null,"0013",{"$f":"LEN(Table_Query_from_SOTAMAS90[[#This Row],[CustomerName]])","v":17}]
["W17301","WISHING WELL ENTERPRISES","Sacramento","CA","95826",null,"0017",{"$f":"LEN(Table_Query_from_SOTAMAS90[[#This Row],[CustomerName]])","v":24}]
["W16207","WOODLAND EMPORIUM","WOODLAND","CA","95695",null,"0016",{"$f":"LEN(Table_Query_from_SOTAMAS90[[#This Row],[CustomerName]])","v":17}]
["W09317","WOODMAN'S FOODS","JANESVILLE","WI","53545",null,"0009",{"$f":"LEN(Table_Query_from_SOTAMAS90[[#This Row],[CustomerName]])","v":15}]
["W16314","WORLD FOODS CORP.","Sandy","UT","84070",null,"0016",{"$f":"LEN(Table_Query_from_SOTAMAS90[[#This Row],[CustomerName]])","v":17}]
["W09302","WORLD OF CHRISTMAS","PARK RAPIDS","MN","56470",null,"0009",{"$f":"LEN(Table_Query_from_SOTAMAS90[[#This Row],[CustomerName]])","v":18}]
["W16100","WORLD OF SILK","HOUGHTON LAKE","MI","48629",null,"0016",{"$f":"LEN(Table_Query_from_SOTAMAS90[[#This Row],[CustomerName]])","v":13}]
["B09307","WOW BACK TO THE COUNTRY STORE","PLOVER","WI","54467",null,"0009",{"$f":"LEN(Table_Query_from_SOTAMAS90[[#This Row],[CustomerName]])","v":29}]
["W10211","WOW DISTRIBUTING","MUKILTEO","WA","98275",null,"0010",{"$f":"LEN(Table_Query_from_SOTAMAS90[[#This Row],[CustomerName]])","v":16}]
["W07305","WYTHE-WILL DISTRIBUTING CO","Toano","VA","23168",null,"0007",{"$f":"LEN(Table_Query_from_SOTAMAS90[[#This Row],[CustomerName]])","v":26}]
["Y16203","Y&M WHOLESALE","NATIONAL CITY","CA","91950","SANDRA@YMWHOLESALE.COM","0017",{"$f":"LEN(Table_Query_from_SOTAMAS90[[#This Row],[CustomerName]])","v":13}]
["Y16202","YANKEE CANDLE COMPANY","South Deerfield","MA","01373",null,"0016",{"$f":"LEN(Table_Query_from_SOTAMAS90[[#This Row],[CustomerName]])","v":21}]
["Y16100","YE OLDE CHRISTMAS AND CANDY","ACWORTH","GA","30101","INFO@CHRISTMASANDCANDY.COM","0016",{"$f":"LEN(Table_Query_from_SOTAMAS90[[#This Row],[CustomerName]])","v":27}]
["Y16200","YELLOW BANKS GROVE","LARGO","FL","33774",null,"0016",{"$f":"LEN(Table_Query_from_SOTAMAS90[[#This Row],[CustomerName]])","v":18}]
["R16201","YELLOWSTONE PERK","GARDINER","MT","59030",null,"0016",{"$f":"LEN(Table_Query_from_SOTAMAS90[[#This Row],[CustomerName]])","v":16}]
["Y11310","YIPPY I-O CANDY COMPANY","JACKSON HOLE","WY","83001","YIPPYJH@BRESNAN.NET","0006",{"$f":"LEN(Table_Query_from_SOTAMAS90[[#This Row],[CustomerName]])","v":23}]
["Y16101","YOGURT KRAZE","PLANTATION","FL","33323","STEVEMALEH@GMIAL.COM","0016",{"$f":"LEN(Table_Query_from_SOTAMAS90[[#This Row],[CustomerName]])","v":12}]
["Y16102","YOU LUCKY DOG","San Diego","CA","92113",null,"0016",{"$f":"LEN(Table_Query_from_SOTAMAS90[[#This Row],[CustomerName]])","v":13}]
["Y07101","YOU RX STORE","MARENGO","OH","43334",null,"0007",{"$f":"LEN(Table_Query_from_SOTAMAS90[[#This Row],[CustomerName]])","v":12}]
["Y13203","YOUNGS FARM","GLEN HEAD","NY","11545",null,"0013",{"$f":"LEN(Table_Query_from_SOTAMAS90[[#This Row],[CustomerName]])","v":11}]
["Y16201","YOUNG'S FARM","DEWEY","AZ","86327",null,"0016",{"$f":"LEN(Table_Query_from_SOTAMAS90[[#This Row],[CustomerName]])","v":12}]
["W09101","YOUNIQUE CREATIONS","TOMAH","WI","54660",null,"0009",{"$f":"LEN(Table_Query_from_SOTAMAS90[[#This Row],[CustomerName]])","v":18}]
["Y13305","YUMMIE'S","KITTERY","ME","03904",null,"0013",{"$f":"LEN(Table_Query_from_SOTAMAS90[[#This Row],[CustomerName]])","v":8}]
["Z16301","Z CIOCCOLATO","SAN FRANCISCO","CA","94133",null,"0017",{"$f":"LEN(Table_Query_from_SOTAMAS90[[#This Row],[CustomerName]])","v":12}]
["Z16100","ZAK'S POPCORN SHACK","RAPID CITY","SD","57701",null,"0016",{"$f":"LEN(Table_Query_from_SOTAMAS90[[#This Row],[CustomerName]])","v":19}]
["Z09102","ZEHNDERS OF FRANKENMUTH","Frankenmuth","MI","48734","REGINA.PIERCE@ZEHNDERS.COM","0009",{"$f":"LEN(Table_Query_from_SOTAMAS90[[#This Row],[CustomerName]])","v":23}]
["Z16205","ZENO'S BOARDWALK SWEET SHOP","DAYTONA BEACH","FL","32124","greekgator@aol.com","0016",{"$f":"LEN(Table_Query_from_SOTAMAS90[[#This Row],[CustomerName]])","v":27}]
["Z16101","ZION NATURAL HISTORY","SALT LAKE CITY","UT","84114",null,"0016",{"$f":"LEN(Table_Query_from_SOTAMAS90[[#This Row],[CustomerName]])","v":20}]
["Z06101","ZION PARK DELI AND GIFT","SPRINGDALE","UT","84767",null,"0006",{"$f":"LEN(Table_Query_from_SOTAMAS90[[#This Row],[CustomerName]])","v":23}]
["Z16102","ZIONS BANCORPORATION","WEST VALLEY CITY","UT","84119","TORI.CURTIS@ZIONSBANCORPORATION.COM","0016",{"$f":"LEN(Table_Query_from_SOTAMAS90[[#This Row],[CustomerName]])","v":20}]
["Z09103","ZLANG INC","RAPID CITY","SD","57709",null,"0009",{"$f":"LEN(Table_Query_from_SOTAMAS90[[#This Row],[CustomerName]])","v":9}]
["Z09101","ZOOPER FOOD, LLC","Saint Paul","MN","55103",null,"0009",{"$f":"LEN(Table_Query_from_SOTAMAS90[[#This Row],[CustomerName]])","v":16}]
["Z16201","ZURCHERS PARTY AND WEDDING","DRAPER","UT","84020",null,"0004",{"$f":"LEN(Table_Query_from_SOTAMAS90[[#This Row],[CustomerName]])","v":26}]
["W054281",null,"Simpsonville","SC","29681","lroselli@websitepipeline.com","0016",{"$f":"LEN(Table_Query_from_SOTAMAS90[[#This Row],[CustomerName]])","v":0}]

{"sheet":"Update","index":4,"n_rows":36,"n_cols":8,"rows_kept":36,"cut":false,"hidden":true,"merged":[]}
["ComplaintNo","CustomerNo","ComplaintDate","InvoiceNo","ComplaintDesc","Status","Resolution","Initials"]
["C126","T16340","2014-12-06","I00001","This is a test. I was billed more than the list price.","Open"]
["C127","A16118","2014-12-06","I00002","This is a test. I received chocolate and vanilla taffy that were oozing. Where's this coming from","Open","Muktar cooked a soft batch because his thermostat was not calibrated. This is Muktar's fault.","TSG"]
["C128","V11304","2014-12-06","I00003","This is a test. I came down with the stomach flu after eating a piece of maple bacon.","Open"]
["C130","Z16201","2014-12-06","I00004","This is a test","Open"]
["C131","B16200","2014-12-04","I00005","This is a test","Open"]
["C133","F16109","2014-12-06","I00006","Test","Open"]
["C134","T16203","2014-12-04","I00007","Test","Closed","Done","TSG"]
["C135","D16309","2014-12-06","I00008","This is a test","Closed"]
["C157","A16118","2014-12-08","I00006","The product did not come on time, and I received 2 cases of vanilla instead of assorted.","Closed","We talked to shipping and reviewed SOP","TSG"]
["C166","A16118","2014-12-08","I00028","Test","Open"]
["C175","A16118","2014-12-09","I00030","This is a test to see if the image attaches","Open"]
["C177","A16118","2014-12-09","I00031","This is a test to see if it works from the podium.","Open"]
["C178","A16118","2014-12-09","I00032","Another Test","Open"]
["C179","A16118","2014-12-09","I00033","I received this a week late.","Open"]
["C180","T16203","2014-12-09","I00034","The product was delivered to the incorrect address.","Open"]
["C181","T16106","2014-12-09","I00036","The vanilla was labeled as chocolate.","Open"]
["C182","G17312","2014-12-09","I00037","I was charged $100 more than the actual price.","Open"]
["C183","G12206","2014-12-09","I00038","The product was 2 days late.","Open"]
["C184","T16226","2014-12-09","I00040","I received Key Lime instead of pineapple.","Closed","We reviewed SOP with shipping clerk.","TSG"]
["C187","A16118","2014-12-09","I00056","test","Closed","Done","TSG"]
["C188","B16200","2014-12-10","I00046","The chocolate taffy was coming out of the wrapper.","Open"]
["C190","S16133","2014-12-10","I84894","TEST. Wrong Flavor","Open"]
["C192","G17312","2014-12-10","I009389","Felt sick after eating taffy. Stomach Aches.","Open","We identified contaminent source. Corrective Action will be sent to Customer. ","AG"]
["C198","A09210","2014-12-10","","vanilla taffy has no flavor","Closed","credit issued to customer account.  Cooks have been re-trained.","DG"]
["C77","A16118","2014-11-29","I00009","I am done testing this complaint's ability.","Closed","Make it go back to the beginning of the form's records.",""]
["C87","F09301","2014-12-01","I00010","","Closed","",""]
["C89","Y11310","2014-12-01","I00011","SAYS TAFFY IS OOZING EVERYWHERE.  ALL FLAVORS.","Closed","Retrained quality control","TSG"]
["C90","S16133","2014-12-03","I00012","Gross Tasting Vanilla Flavor. LOT CODE: 14304 (3 Bags) 14303 (1 Bag). 14322 was the LOT on Case. Received 6:20 A.M.","Open"]
["TG65","A0701","2014-11-25","I00013","This is a test  this is a ","Closed","This complaint has been resolved","TSG"]
["TG67","A07301","2014-11-25","I00014","Damaged Case of Blueberry. 4 Cases involved.","Closed","We trained Juan how to better load pallets out the from dock.","TSG"]
["TG74","E09302","2014-11-25","I00015","test","Open","Resolved","TSG"]
["TG76","T16340","2014-11-25","I00016","This is a real complaint now","Closed","We resolved the issue","TSG"]
["TG86","A16118","2014-11-26","I00017","I was billed for 10 cases of peppermint that I did not recieve.","Open"]
["C216","T16203","2014-12-11","I00060","test","Open","done",""]
["C217","T16203","2014-12-11","I00061","test","Open"]